Workbook

Sheet Index
B1: AER opex model
B2: Index
B4: Model index
C6: Sheet Name | D6: Sheet Description
C7: Input | General | D7: Inputs NSP name, regulatory years for the prior and forecast regulatory control period etc.
C8: Input | Inflation | D8: Inputs inflation data.
C9: Input | Reported opex | D9: Inputs the reported operating expenditure (opex) from the prior regulatory control period.
C10: Input | Rate of change | D10: Inputs the cost escalation weights, cost escalation forecast, and inflation actuals and forecast
C11: Input | Step changes | D11: Inputs the operating expenditure (opex) data, including historical opex by category, one-off costs, step changes, demand forecasts, carbon costs, self insurance, network growth, and partial factor productivity
C12: Calc | Opex Forecast | D12: Calculates the opex forecast from RY2014 to RY2020
C13: Output | Models | D13: Outputs the opex forecast needed as a post tax revenue model input (which excludes debt raising costs).
C14: Lookup | Tables | D14: Includes the lookup tables used within this opex model.
C15: Check | List | D15: Shows checks on the calculations within the model
B17: End

Sheet Input|General
B1: =Index!$B$1 -> AER opex model | J1: Back to Index | L1: Key: | M1: Input | N1: External Link | O1: Internal Link | R1: Worksheet check: | S1: =IF(COUNTA($S$5:$S$13)=COUNTIF($S5:$S14,"OK"),"OK","Check") -> OK | U1: Overall Check: | V1: ='Check|List'!$S$1 -> Ok
B2: =Index!$C$7 -> Input | General
B4: Input | General inputs
C6: Inputs | D6: Source | G6: Value
C7: NSP name | D7: NSP | G7: CitiPower | S7: =IF(COUNTBLANK($G7),"Check","Ok") -> Ok
C8: Prior regulatory control period, first year | D8: NSP | G8: 2011 | S8: =IF(COUNTBLANK($G8),"Check","Ok") -> Ok
C9: Forecast base year | D9: NSP | G9: 2014 | S9: Ok
C10: Prior regulatory control period, last year | D10: NSP | G10: 2015 | S10: Ok
C11: Forecast regulatory control period, first year | D11: NSP | G11: 2016 | S11: Ok
C12: Forecast regulatory control period, last year | D12: NSP | G12: 2020 | S12: Ok
B14: End

Sheet Input|Inflation
B1: =Index!$B$1 -> AER opex model | J1: Back to Index | L1: Key: | M1: Input | N1: External Link | O1: Internal Link | R1: Worksheet check: | S1: =IF(COUNTA($S$5:$S$45)=COUNTIF($S5:$S46,"OK"),"OK","Check") -> OK | U1: Overall Check: | V1: ='Check|List'!$S$1 -> Ok
B2: =Index!$C$7 -> Input | General
B4: Input | General inputs
D6: Index value, old base | E6: Index value, new base
C7: Source | D7: ABS | E7: ABS
C8: Unit | D8: index | E8: index
C9: 2007-03-31 | D9: 155.6 | S9: =IF(COUNTBLANK($D9),"Check","Ok") -> Ok
C10: 2007-06-30 | D10: 157.5 | S10: Ok
C11: 2007-09-30 | D11: 158.6 | S11: Ok
C12: 2007-12-31 | D12: 160.1 | S12: Ok
C13: 2008-03-31 | D13: 162.2 | S13: Ok
C14: 2008-06-30 | D14: 164.6 | S14: Ok
C15: 2008-09-30 | D15: 166.5 | S15: Ok
C16: 2008-12-31 | D16: 166 | S16: Ok
C17: 2009-03-31 | D17: 166.2 | S17: Ok
C18: 2009-06-30 | D18: 167 | S18: Ok
C19: 2009-09-30 | D19: 168.6 | S19: Ok
C20: 2009-12-31 | D20: 169.5 | S20: Ok
C21: 2010-03-31 | D21: 171 | E21: 95.2 | S21: =IF(COUNTBLANK($D21:$E21),"Check","Ok") -> Ok
C22: 2010-06-30 | D22: 172.1 | E22: 95.8 | S22: Ok
C23: 2010-09-30 | D23: 173.3 | E23: 96.5 | S23: Ok
C24: 2010-12-31 | D24: 174 | E24: 96.9 | S24: Ok
C25: 2011-03-31 | D25: 176.7 | E25: 98.3 | S25: Ok
C26: 2011-06-30 | D26: 178.3 | E26: 99.2 | S26: Ok
C27: 2011-09-30 | D27: 179.4 | E27: 99.8 | S27: Ok
C28: 2011-12-31 | D28: 179.4 | E28: 99.8 | S28: Ok
C29: 2012-03-31 | D29: 179.5 | E29: 99.9 | S29: =IF(COUNTBLANK($E29),"Check","Ok") -> Ok
C30: 2012-06-30 | E30: 100.4 | S30: =IF(COUNTBLANK($E30),"Check","Ok") -> Ok
C31: 2012-09-30 | E31: 101.8 | S31: =IF(COUNTBLANK($E31),"Check","Ok") -> Ok
C32: 2012-12-31 | E32: 102 | S32: =IF(COUNTBLANK($E32),"Check","Ok") -> Ok
C33: 2013-03-31 | E33: 102.4 | S33: =IF(COUNTBLANK($E33),"Check","Ok") -> Ok
C34: 2013-06-30 | E34: 102.8 | S34: Ok
C35: 2013-09-30 | E35: 104 | S35: Ok
C36: 2013-12-31 | E36: 104.8 | S36: Ok
C37: 2014-03-31 | E37: 105.4 | S37: Ok
C38: 2014-06-30 | E38: 105.9 | S38: Ok
C39: 2014-09-30 | E39: 106.4 | S39: Ok
C40: 2014-12-31 | E40: 106.6 | S40: Ok
C41: 2015-03-31 | E41: 106.8 | S41: Ok
C42: 2015-06-30 | E42: 107.5 | S42: Ok
C43: 2015-09-30 | E43: 108 | S43: Ok
C44: 2015-12-31 | E44: 108.4 | S44: Ok
B46: End

Sheet Input|Reported opex
C1: =Index!$B$1 -> AER opex model | J1: Back to Index | L1: Key: | M1: Input | N1: External Link | O1: Internal Link | R1: Worksheet check: | S1: =IF(COUNTA($W$32:$W$255)=COUNTIF($W$32:$W$255,"OK"),"OK","Check") -> OK | U1: Overall Check: | V1: ='Check|List'!$S$1 -> Ok
C2: =Index!$C$9 -> Input | Reported opex
D4: Source | E4: Unit | F4: Basis | J4: ='Input|General'!$G$8 -> 2011 | K4: =IF(OFFSET('Lookup|Tables'!$G$26:$G$43,MATCH('Input|General'!$G$8,'Lookup|Tables'!$G$26:$G$42,0),0,1,1)<='Input|General'!$G$12,OFFSET('Lookup|Tables'!$G$26:$G$43,MATCH('Input|General'!$G$8,'Lookup|Tables'!$G$26:$G$42,0),0,1,1),"") -> 2012 | L4: =IF(OFFSET('Lookup|Tables'!$G$28:$G$43,MATCH('Input|General'!$G$8,'Lookup|Tables'!$G$28:$G$42,0)+1,0,1,1)<='Input|General'!$G$12,OFFSET('Lookup|Tables'!$G$28:$G$43,MATCH('Input|General'!$G$8,'Lookup|Tables'!$G$28:$G$42,0)+1,0,1,1),"") -> 2013 | M4: =IF(OFFSET('Lookup|Tables'!$G$28:$G$43,MATCH('Input|General'!$G$8,'Lookup|Tables'!$G$28:$G$42,0)+2,0,1,1)<='Input|General'!$G$12,OFFSET('Lookup|Tables'!$G$28:$G$43,MATCH('Input|General'!$G$8,'Lookup|Tables'!$G$28:$G$42,0)+2,0,1,1),"") -> 2014 | N4: =IF(OFFSET('Lookup|Tables'!$G$28:$G$43,MATCH('Input|General'!$G$8,'Lookup|Tables'!$G$28:$G$42,0)+3,0,1,1)<='Input|General'!$G$12,OFFSET('Lookup|Tables'!$G$28:$G$43,MATCH('Input|General'!$G$8,'Lookup|Tables'!$G$28:$G$42,0)+3,0,1,1),"") -> 2015 | O4: =IF(OFFSET('Lookup|Tables'!$G$28:$G$43,MATCH('Input|General'!$G$8,'Lookup|Tables'!$G$28:$G$42,0)+4,0,1,1)<='Input|General'!$G$12,OFFSET('Lookup|Tables'!$G$28:$G$43,MATCH('Input|General'!$G$8,'Lookup|Tables'!$G$28:$G$42,0)+4,0,1,1),"") -> 2016 | P4: =IF(OFFSET('Lookup|Tables'!$G$28:$G$43,MATCH('Input|General'!$G$8,'Lookup|Tables'!$G$28:$G$42,0)+5,0,1,1)<='Input|General'!$G$12,OFFSET('Lookup|Tables'!$G$28:$G$43,MATCH('Input|General'!$G$8,'Lookup|Tables'!$G$28:$G$42,0)+5,0,1,1),"") -> 2017 | Q4: =IF(OFFSET('Lookup|Tables'!$G$28:$G$43,MATCH('Input|General'!$G$8,'Lookup|Tables'!$G$28:$G$42,0)+6,0,1,1)<='Input|General'!$G$12,OFFSET('Lookup|Tables'!$G$28:$G$43,MATCH('Input|General'!$G$8,'Lookup|Tables'!$G$28:$G$42,0)+6,0,1,1),"") -> 2018 | R4: =IF(OFFSET('Lookup|Tables'!$G$28:$G$43,MATCH('Input|General'!$G$8,'Lookup|Tables'!$G$28:$G$42,0)+7,0,1,1)<='Input|General'!$G$12,OFFSET('Lookup|Tables'!$G$28:$G$43,MATCH('Input|General'!$G$8,'Lookup|Tables'!$G$28:$G$42,0)+7,0,1,1),"") -> 2019 | S4: =IF(OFFSET('Lookup|Tables'!$G$28:$G$43,MATCH('Input|General'!$G$8,'Lookup|Tables'!$G$28:$G$42,0)+8,0,1,1)<='Input|General'!$G$12,OFFSET('Lookup|Tables'!$G$28:$G$43,MATCH('Input|General'!$G$8,'Lookup|Tables'!$G$28:$G$42,0)+8,0,1,1),"") -> 2020
B8: Input | Opex allowances
C10: Cost category | D10: Source | E10: Unit | F10: Basis | J10: =IF(RIGHT(J$4,2)<=RIGHT('Input|General'!$G$10,2),'Input|Reported opex'!J$4,"") -> 2011 | K10: =IF(RIGHT(K$4,2)<=RIGHT('Input|General'!$G$10,2),'Input|Reported opex'!K$4,"") -> 2012 | L10: =IF(RIGHT(L$4,2)<=RIGHT('Input|General'!$G$10,2),'Input|Reported opex'!L$4,"") -> 2013 | M10: =IF(RIGHT(M$4,2)<=RIGHT('Input|General'!$G$10,2),'Input|Reported opex'!M$4,"") -> 2014 | N10: =IF(RIGHT(N$4,2)<=RIGHT('Input|General'!$G$10,2),'Input|Reported opex'!N$4,"") -> 2015 | O10: =IF(RIGHT(O$4,2)<=RIGHT('Input|General'!$G$10,2),'Input|Reported opex'!O$4,"") ->  | P10: =IF(RIGHT(P$4,2)<=RIGHT('Input|General'!$G$10,2),'Input|Reported opex'!P$4,"") ->  | Q10: =IF(RIGHT(Q$4,2)<=RIGHT('Input|General'!$G$10,2),'Input|Reported opex'!Q$4,"") ->  | R10: =IF(RIGHT(R$4,2)<=RIGHT('Input|General'!$G$10,2),'Input|Reported opex'!R$4,"") ->  | S10: =IF(RIGHT(S$4,2)<=RIGHT('Input|General'!$G$10,2),'Input|Reported opex'!S$4,"") ->  | T10: Notes
C13: Total opex, excluding DRC and DMIA | D13: AER | E13: =$E$24 -> $millions | F13: 2010 | J13: 42.88164125 | K13: 46.54099169 | L13: 48.9179883 | M13: 46.69531669 | N13: 47.40666311 | T13: Tribunal varied PTRM
D14: AER | E14: =$E$24 -> $millions | F14: 2010
D15: AER | E15: $millions | F15: 2010
D16: AER | E16: $millions | F16: 2010
D17: AER | E17: $millions | F17: 2010
D18: AER | E18: $millions | F18: 2010
D19: AER | E19: $millions | F19: 2010
D20: AER | E20: $millions | F20: 2010
D21: AER | E21: $millions | F21: 2010
D22: AER | E22: $millions | F22: 2010
C24: Total opex | D24: Calculated | E24: $millions | F24: 2010 | J24: =SUM(J13:J22) -> 42.88164125 | K24: 46.54099169 | L24: 48.9179883 | M24: 46.69531669 | N24: 47.40666311 | O24: 0 | P24: 0 | Q24: 0 | R24: 0 | S24: 0
B26: Input | Reported opex
J28: Actual | K28: Actual | L28: Actual | M28: Actual | N28: Estimate
C29: Cost category | D29: Source | E29: Unit | F29: Basis | J29: =IF(RIGHT(J4,2)<=RIGHT('Input|General'!$G$10,2),'Input|Reported opex'!J4,"") -> 2011 | K29: =IF(RIGHT(K4,2)<=RIGHT('Input|General'!$G$10,2),'Input|Reported opex'!K4,"") -> 2012 | L29: =IF(RIGHT(L4,2)<=RIGHT('Input|General'!$G$10,2),'Input|Reported opex'!L4,"") -> 2013 | M29: =IF(RIGHT(M4,2)<=RIGHT('Input|General'!$G$10,2),'Input|Reported opex'!M4,"") -> 2014 | N29: =IF(RIGHT(N4,2)<=RIGHT('Input|General'!$G$10,2),'Input|Reported opex'!N4,"") -> 2015 | O29: =IF(RIGHT(O4,2)<=RIGHT('Input|General'!$G$10,2),'Input|Reported opex'!O4,"") ->  | P29: =IF(RIGHT(P4,2)<=RIGHT('Input|General'!$G$10,2),'Input|Reported opex'!P4,"") ->  | Q29: =IF(RIGHT(Q4,2)<=RIGHT('Input|General'!$G$10,2),'Input|Reported opex'!Q4,"") ->  | R29: =IF(RIGHT(R4,2)<=RIGHT('Input|General'!$G$10,2),'Input|Reported opex'!R4,"") ->  | S29: =IF(RIGHT(S4,2)<=RIGHT('Input|General'!$G$10,2),'Input|Reported opex'!S4,"") ->  | T29: Notes
C32: Total opex | D32: RIN | E32: =$E$43 -> $millions | F32: =$F$43 -> nominal | J32: 43.00646362 | K32: 56.4077237 | L32: 54.53759264 | M32: 56.98228974
C33: Remove debt raising costs | D33: RIN | E33: $millions | F33: =$F$43 -> nominal | J33: 0 | K33: 0 | L33: 0 | M33: 0
C34: Remove movement in provisions | D34: RIN | E34: $millions | F34: nominal | J34: 3.055162236 | K34: -1.09323479 | L34: 1.405717831 | M34: -0.5474336852
C35: Remove DMIA expenditure | D35: RIN | E35: $millions | F35: nominal | J35: 0 | K35: -0.04529026 | L35: 0 | M35: -0.4039303106
C36: Remove GSL payments | D36: RIN | E36: =$E$43 -> $millions | F36: nominal | J36: -0.007993215641 | K36: -0.00752 | L36: -0.01389 | M36: -0.07711
C37: Remove scrapping of assets | D37: RIN | E37: $millions | F37: nominal | M37: 0
D38: RIN | E38: $millions | F38: nominal
D39: RIN | E39: $millions | F39: nominal
D40: RIN | E40: $millions | F40: nominal
D41: RIN | E41: $millions | F41: nominal
C43: Total opex | D43: Calculated | E43: $millions | F43: nominal | J43: =SUM(J32:J41) -> 46.05363264 | K43: =SUM(K32:K41) -> 55.26167865 | L43: 55.92942047 | M43: 55.95381575 | N43: 0 | O43: 0 | P43: 0 | Q43: 0 | R43: 0 | S43: 0
B45: Input | Capitalisation policy adjustment
C47: Capitalisation policy adjustment | D47: Source | E47: Unit | F47: Basis | J47: =IF(RIGHT(J4,2)=RIGHT('Input|General'!$G$10,2),'Input|Reported opex'!J4,"") ->  | K47: =IF(RIGHT(K4,2)=RIGHT('Input|General'!$G$10,2),'Input|Reported opex'!K4,"") ->  | L47: =IF(RIGHT(L4,2)=RIGHT('Input|General'!$G$10,2),'Input|Reported opex'!L4,"") ->  | M47: =IF(RIGHT(M4,2)=RIGHT('Input|General'!$G$10,2),'Input|Reported opex'!M4,"") ->  | N47: =IF(RIGHT(N$4,2)=RIGHT('Input|General'!$G$10,2),N$4,"") -> 2015
C48: =C47 -> Capitalisation policy adjustment | D48: External | E48: =$E$43 -> $millions | F48: 2015 | N48: 17.53873049
B50: Input | Service classification adjustment
C52: Service classification adjustment | D52: Source | E52: Unit | F52: Basis | J52: =IF(RIGHT(J9,2)=RIGHT('Input|General'!$G$10,2),'Input|Reported opex'!J9,"") ->  | K52: =IF(RIGHT(K9,2)=RIGHT('Input|General'!$G$10,2),'Input|Reported opex'!K9,"") ->  | L52: =IF(RIGHT(L9,2)=RIGHT('Input|General'!$G$10,2),'Input|Reported opex'!L9,"") ->  | M52: =IF(RIGHT(M9,2)=RIGHT('Input|General'!$G$10,2),'Input|Reported opex'!M9,"") ->  | N52: =IF(RIGHT(N$4,2)=RIGHT('Input|General'!$G$10,2),N$4,"") -> 2015
C53: AMI classification change | D53: External | E53: =E$55 -> $millions | F53: =F$55 -> 2015 | N53: 1.828841248
C54: Other classification changes | D54: External | E54: =E$55 -> $millions | F54: =F$55 -> 2015 | N54: 0.9802833589
C55: Total | D55: Calculated | E55: =$E$43 -> $millions | F55: 2015 | N55: =SUM(N53:N54) -> 2.809124606
B57: Input | Efficiency adjustment
C59: Efficiency adjustment | D59: Source | E59: Unit | J59: =IF(RIGHT(J14,2)=RIGHT('Input|General'!$G$10,2),'Input|Reported opex'!J14,"") ->  | K59: =IF(RIGHT(K14,2)=RIGHT('Input|General'!$G$10,2),'Input|Reported opex'!K14,"") ->  | L59: =IF(RIGHT(L14,2)=RIGHT('Input|General'!$G$10,2),'Input|Reported opex'!L14,"") ->  | M59: =IF(RIGHT(M14,2)=RIGHT('Input|General'!$G$10,2),'Input|Reported opex'!M14,"") ->  | N59: =IF(RIGHT(N$4,2)=RIGHT('Input|General'!$G$10,2),N$4,"") -> 2015
C60: Efficiency adjustment | D60: External | E60: Per cent | N60: 0
B62: End

Sheet Input|Rate of change
B1: =Index!$B$1 -> AER opex model | K1: Back to Index | M1: Key: | N1: Input | O1: External Link | P1: Internal Link | S1: Worksheet check: | T1: =IF(COUNTIF(W5:W96,"Check")=0,"Ok","Check") -> Ok | V1: Overall Check: | W1: ='Check|List'!$S$1 -> Ok
B2: =Index!$C$10 -> Input | Rate of change
D4: Source | E4: Unit | F4: Basis | J4: =IF(OFFSET('Lookup|Tables'!$G$26:$G$43,MATCH('Input|General'!$G$8,'Lookup|Tables'!$G$26:$G$42,0)-2,0,1,1)<='Input|General'!$G$12,OFFSET('Lookup|Tables'!$G$26:$G$43,MATCH('Input|General'!$G$8,'Lookup|Tables'!$G$26:$G$42,0)-2,0,1,1),"") -> 2010 | K4: ='Input|General'!$G$8 -> 2011 | L4: =IF(OFFSET('Lookup|Tables'!$G$26:$G$43,MATCH('Input|General'!$G$8,'Lookup|Tables'!$G$26:$G$42,0),0,1,1)<='Input|General'!$G$12,OFFSET('Lookup|Tables'!$G$26:$G$43,MATCH('Input|General'!$G$8,'Lookup|Tables'!$G$26:$G$42,0),0,1,1),"") -> 2012 | M4: =IF(OFFSET('Lookup|Tables'!$G$26:$G$43,MATCH('Input|General'!$G$8,'Lookup|Tables'!$G$26:$G$42,0)+1,0,1,1)<='Input|General'!$G$12,OFFSET('Lookup|Tables'!$G$26:$G$43,MATCH('Input|General'!$G$8,'Lookup|Tables'!$G$26:$G$42,0)+1,0,1,1),"") -> 2013 | N4: =IF(OFFSET('Lookup|Tables'!$G$26:$G$43,MATCH('Input|General'!$G$8,'Lookup|Tables'!$G$26:$G$42,0)+2,0,1,1)<='Input|General'!$G$12,OFFSET('Lookup|Tables'!$G$26:$G$43,MATCH('Input|General'!$G$8,'Lookup|Tables'!$G$26:$G$42,0)+2,0,1,1),"") -> 2014 | O4: =IF(OFFSET('Lookup|Tables'!$G$26:$G$43,MATCH('Input|General'!$G$8,'Lookup|Tables'!$G$26:$G$42,0)+3,0,1,1)<='Input|General'!$G$12,OFFSET('Lookup|Tables'!$G$26:$G$43,MATCH('Input|General'!$G$8,'Lookup|Tables'!$G$26:$G$42,0)+3,0,1,1),"") -> 2015 | P4: =IF(OFFSET('Lookup|Tables'!$G$26:$G$43,MATCH('Input|General'!$G$8,'Lookup|Tables'!$G$26:$G$42,0)+4,0,1,1)<='Input|General'!$G$12,OFFSET('Lookup|Tables'!$G$26:$G$43,MATCH('Input|General'!$G$8,'Lookup|Tables'!$G$26:$G$42,0)+4,0,1,1),"") -> 2016 | Q4: =IF(OFFSET('Lookup|Tables'!$G$26:$G$43,MATCH('Input|General'!$G$8,'Lookup|Tables'!$G$26:$G$42,0)+5,0,1,1)<='Input|General'!$G$12,OFFSET('Lookup|Tables'!$G$26:$G$43,MATCH('Input|General'!$G$8,'Lookup|Tables'!$G$26:$G$42,0)+5,0,1,1),"") -> 2017 | R4: =IF(OFFSET('Lookup|Tables'!$G$26:$G$43,MATCH('Input|General'!$G$8,'Lookup|Tables'!$G$26:$G$42,0)+6,0,1,1)<='Input|General'!$G$12,OFFSET('Lookup|Tables'!$G$26:$G$43,MATCH('Input|General'!$G$8,'Lookup|Tables'!$G$26:$G$42,0)+6,0,1,1),"") -> 2018 | S4: =IF(OFFSET('Lookup|Tables'!$G$26:$G$43,MATCH('Input|General'!$G$8,'Lookup|Tables'!$G$26:$G$42,0)+7,0,1,1)<='Input|General'!$G$12,OFFSET('Lookup|Tables'!$G$26:$G$43,MATCH('Input|General'!$G$8,'Lookup|Tables'!$G$26:$G$42,0)+7,0,1,1),"") -> 2019 | T4: =IF(OFFSET('Lookup|Tables'!$G$28:$G$43,MATCH('Input|General'!$G$8,'Lookup|Tables'!$G$28:$G$42,0)+8,0,1,1)<='Input|General'!$G$12,OFFSET('Lookup|Tables'!$G$28:$G$43,MATCH('Input|General'!$G$8,'Lookup|Tables'!$G$28:$G$42,0)+8,0,1,1),"") -> 2020
B8: Input | Inflation
C10: Inflation | J10: =J$4 -> 2010 | K10: =K$4 -> 2011 | L10: =L$4 -> 2012 | M10: 2013 | N10: 2014 | O10: 2015 | P10: 2016 | Q10: 2017 | R10: 2018 | S10: 2019 | T10: 2020
C12: Inflation | D12: calculated | E12: =percent -> Per cent | J12: ='Input|Inflation'!D24/'Input|Inflation'!D20-1 -> 0.02654867257 | K12: ='Input|Inflation'!$E28/'Input|Inflation'!$E24-1 -> 0.02992776058 | L12: ='Input|Inflation'!E32/'Input|Inflation'!E28-1 -> 0.02204408818 | M12: ='Input|Inflation'!E36/'Input|Inflation'!E32-1 -> 0.02745098039 | N12: ='Input|Inflation'!E40/'Input|Inflation'!E36-1 -> 0.01717557252 | O12: ='Input|Inflation'!E44/'Input|Inflation'!E40-1 -> 0.01688555347
C14: CPI indexes (real to real) | J14: =J$4 -> 2010 | K14: =K$4 -> 2011 | L14: =L4 -> 2012 | M14: =M4 -> 2013 | N14: =N4 -> 2014 | O14: =O4 -> 2015
C16: ='Lookup|Tables'!C27 -> 2009 | D16: calculated | E16: index | J16: =(1+J$12) -> 1.026548673 | K16: =J16*(1+K$12) -> 1.057270975 | L16: 1.08057755 | M16: 1.110240463 | N16: 1.129309479 | O16: =N16*(1+O$12) -> 1.148378494
C17: ='Lookup|Tables'!C28 -> 2010 | D17: calculated | E17: index | J17: 1 | K17: =J17*(1+K$12) -> 1.029927761 | L17: 1.052631579 | M17: 1.081527348 | N17: 1.100103199 | O17: =N17*(1+O$12) -> 1.118679051
C18: ='Lookup|Tables'!C29 -> 2011 | D18: calculated | E18: index | J18: =K18/(1+K$12) -> 0.9709418838 | K18: 1 | L18: =K18*(1+L$12) -> 1.022044088 | M18: =L18*(1+M$12) -> 1.0501002 | N18: 1.068136273 | O18: 1.086172345
C19: ='Lookup|Tables'!C30 -> 2012 | D19: calculated | E19: index | J19: =K19/(1+K$12) -> 0.95 | K19: =L19/(1+L$12) -> 0.9784313725 | L19: 1 | M19: =L19*(1+M$12) -> 1.02745098 | N19: 1.045098039 | O19: 1.062745098
C20: ='Lookup|Tables'!C31 -> 2013 | D20: calculated | E20: index | J20: =K20/(1+K$12) -> 0.9246183206 | K20: 0.9522900763 | L20: 0.9732824427 | M20: 1 | N20: =M20*(1+N$12) -> 1.017175573 | O20: 1.034351145
C21: ='Lookup|Tables'!C32 -> 2014 | D21: calculated | E21: index | J21: 0.9090056285 | K21: 0.9362101313 | L21: 0.95684803 | M21: 0.9831144465 | N21: 1 | O21: =N21*(1+O$12) -> 1.016885553
C22: ='Lookup|Tables'!C33 -> 2015 | D22: calculated | E22: index | J22: 0.8939114391 | K22: 0.9206642066 | L22: 0.9409594096 | M22: 0.9667896679 | N22: 0.9833948339 | O22: 1
C24: CPI indexes (nominal to real) | J24: =J10 -> 2010 | K24: 2011 | L24: 2012 | M24: 2013 | N24: 2014 | O24: 2015
C26: =C16 -> 2009 | D26: calculated | E26: index | J26: =1/J16*(1+J$12)^0.5 -> 0.9869842608 | K26: 0.9598802858 | L26: 0.9355755741 | M26: 0.9129847095 | N26: 0.8930689448 | O26: 0.8781141751
C27: 2010 | D27: calculated | E27: index | J27: 1.013187383 | K27: 0.9853638332 | L27: 0.9604138637 | M27: 0.9372232416 | N27: 0.9167787398 | O27: 0.9014269408
C28: 2011 | D28: calculated | E28: index | J28: 1.043509812 | K28: 1.014853566 | L28: 0.9891568999 | M28: 0.9652722344 | N28: 0.9442158744 | O28: 0.9284046304
C29: 2012 | D29: calculated | E29: index | J29: 1.066513034 | K29: 1.037225088 | L29: 1.010961962 | M29: 0.9865507806 | N29: 0.9650302524 | O29: 0.948870464
C30: 2013 | D30: calculated | E30: index | J30: 1.095789863 | K30: 1.065697933 | L30: 1.038713859 | M30: 1.013632567 | N30: 0.9915212789 | O30: 0.9749178885
C31: 2014 | D31: calculated | E31: index | J31: 1.114610681 | K31: 1.084001905 | L31: 1.056554364 | M31: 1.031042286 | N31: 1.008551225 | O31: 0.9916626614
C32: 2015 | D32: calculated | E32: index | J32: 1.133431499 | K32: 1.102305877 | L32: 1.074394869 | M32: 1.048452006 | N32: 1.02558117 | O32: 1.008407434
B34: Input | Forecast price change
C36: Forecast price change | D36: Source | E36: Unit | K36: =IF(K$4>='Input|General'!$G$11,IF(K$4<='Input|General'!$G$12,K$4,""),"") ->  | L36: =IF(L$4>='Input|General'!$G$11,IF(L$4<='Input|General'!$G$12,L$4,""),"") ->  | M36: =IF(M$4>='Input|General'!$G$11,IF(M$4<='Input|General'!$G$12,M$4,""),"") ->  | N36: =IF(N$4>='Input|General'!$G$11,IF(N$4<='Input|General'!$G$12,N$4,""),"") ->  | O36: =IF(O$4>='Input|General'!$G$11,IF(O$4<='Input|General'!$G$12,O$4,""),"") ->  | P36: =IF(P$4>='Input|General'!$G$11,IF(P$4<='Input|General'!$G$12,P$4,""),"") -> 2016 | Q36: =IF(Q$4>='Input|General'!$G$11,IF(Q$4<='Input|General'!$G$12,Q$4,""),"") -> 2017 | R36: =IF(R$4>='Input|General'!$G$11,IF(R$4<='Input|General'!$G$12,R$4,""),"") -> 2018 | S36: =IF(S$4>='Input|General'!$G$11,IF(S$4<='Input|General'!$G$12,S$4,""),"") -> 2019 | T36: =IF(T$4>='Input|General'!$G$11,IF(T$4<='Input|General'!$G$12,T$4,""),"") -> 2020
C38: WPI | D38: external | E38: =percent -> Per cent | P38: 0.004014119935 | Q38: 0.003716198869 | R38: 0.007850022856 | S38: 0.009573685443 | T38: 0.01019291291
D39: external | E39: Per cent
D40: external | E40: Per cent
D41: external | E41: Per cent
D42: external | E42: Per cent
D43: external | E43: Per cent
D44: external | E44: Per cent
C45: CPI | D45: external | E45: Per cent | P45: 0 | Q45: 0 | R45: 0 | S45: 0 | T45: 0
C47: Weights | D47: Source | E47: Unit | K47: =IF(K$4>='Input|General'!$G$11,IF(K$4<='Input|General'!$G$12,K$4,""),"") ->  | L47: =IF(L$4>='Input|General'!$G$11,IF(L$4<='Input|General'!$G$12,L$4,""),"") ->  | M47: =IF(M$4>='Input|General'!$G$11,IF(M$4<='Input|General'!$G$12,M$4,""),"") ->  | N47: =IF(N$4>='Input|General'!$G$11,IF(N$4<='Input|General'!$G$12,N$4,""),"") ->  | O47: =IF(O$4>='Input|General'!$G$11,IF(O$4<='Input|General'!$G$12,O$4,""),"") ->  | P47: =IF(P$4>='Input|General'!$G$11,IF(P$4<='Input|General'!$G$12,P$4,""),"") -> 2016 | Q47: =IF(Q$4>='Input|General'!$G$11,IF(Q$4<='Input|General'!$G$12,Q$4,""),"") -> 2017 | R47: =IF(R$4>='Input|General'!$G$11,IF(R$4<='Input|General'!$G$12,R$4,""),"") -> 2018 | S47: =IF(S$4>='Input|General'!$G$11,IF(S$4<='Input|General'!$G$12,S$4,""),"") -> 2019 | T47: =IF(T$4>='Input|General'!$G$11,IF(T$4<='Input|General'!$G$12,T$4,""),"") -> 2020
C49: =C38 -> WPI | D49: external | E49: =percent -> Per cent | P49: 0.62 | Q49: 0.62 | R49: 0.62 | S49: 0.62 | T49: 0.62
C50: =C39 -> 0 | D50: external | E50: Per cent
C51: 0 | D51: external | E51: Per cent
C52: 0 | D52: external | E52: Per cent
C53: 0 | D53: external | E53: Per cent
C54: 0 | D54: external | E54: Per cent
C55: 0 | D55: external | E55: Per cent
C56: CPI | D56: external | E56: Per cent | P56: 0.38 | Q56: 0.38 | R56: 0.38 | S56: 0.38 | T56: 0.38
C58: Check | D58: calculated | E58: Ok/Check | F58: n/a | P58: =IF(SUM(P49:P56)=1,"Ok","Check") -> Ok | Q58: =IF(SUM(Q49:Q56)=1,"Ok","Check") -> Ok | R58: Ok | S58: Ok | T58: Ok | W58: =IF(COUNTIF(K58:T58,"Check")=0,"Ok","Check") -> Ok
B60: Input | Forecast output growth
C62: Output measure | D62: Source | E62: Unit | F62: Basis | K62: =IF(K$4>='Input|General'!$G$10,IF(K$4<='Input|General'!$G$12,K$4,""),"") ->  | L62: =IF(L$4>='Input|General'!$G$10,IF(L$4<='Input|General'!$G$12,L$4,""),"") ->  | M62: =IF(M$4>='Input|General'!$G$10,IF(M$4<='Input|General'!$G$12,M$4,""),"") ->  | N62: =IF(N$4>='Input|General'!$G$10,IF(N$4<='Input|General'!$G$12,N$4,""),"") ->  | O62: =IF(O$4>='Input|General'!$G$10,IF(O$4<='Input|General'!$G$12,O$4,""),"") -> 2015 | P62: =IF(P$4>='Input|General'!$G$10,IF(P$4<='Input|General'!$G$12,P$4,""),"") -> 2016 | Q62: =IF(Q$4>='Input|General'!$G$10,IF(Q$4<='Input|General'!$G$12,Q$4,""),"") -> 2017 | R62: =IF(R$4>='Input|General'!$G$10,IF(R$4<='Input|General'!$G$12,R$4,""),"") -> 2018 | S62: =IF(S$4>='Input|General'!$G$10,IF(S$4<='Input|General'!$G$12,S$4,""),"") -> 2019 | T62: =IF(T$4>='Input|General'!$G$10,IF(T$4<='Input|General'!$G$12,T$4,""),"") -> 2020
C64: Customer numbers | D64: external | E64: number | F64: n/a | O64: 331465.315 | P64: 336164.4574 | Q64: 340906.4519 | R64: 345691.8337 | S64: 350521.1449 | T64: 355394.934
C65: Circuit Length | D65: external | E65: number | F65: n/a | O65: 4638.101918 | P65: 4671.023396 | Q65: 4710.7686 | R65: 4738.241751 | S65: 4766.047129 | T65: 4794.189068
C66: Ratcheted Maximum Demand | D66: external | E66: number | F66: n/a | O66: 1453.5 | P66: 1453.5 | Q66: 1462.709793 | R66: 1534.95315 | S66: 1567.782147 | T66: 1598.929571
D67: external | E67: number | F67: n/a
D68: external | E68: number | F68: n/a
D69: external | E69: number | F69: n/a
C71: Growth rate | D71: Source | E71: Unit | F71: Basis | K71: =IF(K$4>='Input|General'!$G$11,IF(K$4<='Input|General'!$G$12,K$4,""),"") ->  | L71: =IF(L$4>='Input|General'!$G$11,IF(L$4<='Input|General'!$G$12,L$4,""),"") ->  | M71: =IF(M$4>='Input|General'!$G$11,IF(M$4<='Input|General'!$G$12,M$4,""),"") ->  | N71: =IF(N$4>='Input|General'!$G$11,IF(N$4<='Input|General'!$G$12,N$4,""),"") ->  | O71: =IF(O$4>='Input|General'!$G$11,IF(O$4<='Input|General'!$G$12,O$4,""),"") ->  | P71: =IF(P$4>='Input|General'!$G$11,IF(P$4<='Input|General'!$G$12,P$4,""),"") -> 2016 | Q71: =IF(Q$4>='Input|General'!$G$11,IF(Q$4<='Input|General'!$G$12,Q$4,""),"") -> 2017 | R71: =IF(R$4>='Input|General'!$G$11,IF(R$4<='Input|General'!$G$12,R$4,""),"") -> 2018 | S71: =IF(S$4>='Input|General'!$G$11,IF(S$4<='Input|General'!$G$12,S$4,""),"") -> 2019 | T71: =IF(T$4>='Input|General'!$G$11,IF(T$4<='Input|General'!$G$12,T$4,""),"") -> 2020 | U71: =IF(RIGHT(U$4,2)>=RIGHT('Input|General'!$G$11,2),IF(RIGHT(U$4,2)<='Input|General'!$G$12,'Input|Reported opex'!T$4,""),"") -> 
C73: =C64 -> Customer numbers | D73: calculated | E73: number | F73: n/a | K73: =IF(ISBLANK(J64),"",LN(K64)-LN(J64)) ->  | O73: =IF(ISBLANK(N64),"",LN(O64)-LN(N64)) ->  | P73: =IF(ISBLANK(O64),"",LN(P64)-LN(O64)) -> 0.01407732284 | Q73: =IF(ISBLANK(P64),"",LN(Q64)-LN(P64)) -> 0.01400760827 | R73: 0.01393961934 | S73: 0.0138733082 | T73: 0.01380862875
C74: =C65 -> Circuit Length | D74: calculated | E74: number | F74: n/a | K74: =IF(ISBLANK(J65),"",LN(K65)-LN(J65)) ->  | O74: =IF(ISBLANK(N65),"",LN(O65)-LN(N65)) ->  | P74: 0.00707297713 | Q74: =IF(ISBLANK(P65),"",LN(Q65)-LN(P65)) -> 0.00847288914 | R74: 0.005815048992 | S74: 0.005851138846 | T74: 0.005887306547
C75: Ratcheted Maximum Demand | D75: calculated | E75: number | F75: n/a | K75: =IF(ISBLANK(J66),"",LN(K66)-LN(J66)) ->  | P75: 0 | Q75: =IF(ISBLANK(P66),"",LN(Q66)-LN(P66)) -> 0.00631629729 | R75: 0.04820912112 | S75: 0.0211621159 | T75: 0.01967241189
C76: 0 | D76: calculated | E76: number | F76: n/a | P76: =IF(ISBLANK(P67),"",LN(P67)-LN(O67)) -> 
C77: 0 | D77: calculated | E77: number | F77: n/a | P77: =IF(ISBLANK(P68),"",LN(P68)-LN(O68)) -> 
C78: 0 | D78: calculated | E78: number | F78: n/a | P78: =IF(ISBLANK(P69),"",LN(P69)-LN(O69)) -> 
C80: Weights
C82: =C64 -> Customer numbers | D82: external | E82: number | F82: n/a | P82: 0.7388663968
C83: =C65 -> Circuit Length | D83: external | E83: number | F83: n/a | P83: 0.08704453441
C84: Ratcheted Maximum Demand | D84: external | E84: number | F84: n/a | P84: 0.1740890688
C85: 0 | D85: external | E85: number | F85: n/a
C86: 0 | D86: external | E86: number | F86: n/a
C87: 0 | D87: external | E87: number | F87: n/a
C89: Check | D89: calculated | E89: Ok/Check | F89: n/a | P89: =IF(SUM(P82:P87)=1,"Ok","Check") -> Ok | W89: =IF(COUNTIF(K89:T89,"Check")=0,"Ok","Check") -> Ok
B91: Input | Forecast productivity
C93: Partial factor productivity | D93: Source | E93: Unit | F93: Basis | K93: =IF(K$4>='Input|General'!$G$11,IF(K$4<='Input|General'!$G$12,K$4,""),"") ->  | L93: =IF(L$4>='Input|General'!$G$11,IF(L$4<='Input|General'!$G$12,L$4,""),"") ->  | M93: =IF(M$4>='Input|General'!$G$11,IF(M$4<='Input|General'!$G$12,M$4,""),"") ->  | N93: =IF(N$4>='Input|General'!$G$11,IF(N$4<='Input|General'!$G$12,N$4,""),"") ->  | O93: =IF(O$4>='Input|General'!$G$11,IF(O$4<='Input|General'!$G$12,O$4,""),"") ->  | P93: =IF(P$4>='Input|General'!$G$11,IF(P$4<='Input|General'!$G$12,P$4,""),"") -> 2016 | Q93: =IF(Q$4>='Input|General'!$G$11,IF(Q$4<='Input|General'!$G$12,Q$4,""),"") -> 2017 | R93: =IF(R$4>='Input|General'!$G$11,IF(R$4<='Input|General'!$G$12,R$4,""),"") -> 2018 | S93: =IF(S$4>='Input|General'!$G$11,IF(S$4<='Input|General'!$G$12,S$4,""),"") -> 2019 | T93: =IF(T$4>='Input|General'!$G$11,IF(T$4<='Input|General'!$G$12,T$4,""),"") -> 2020
C95: Partial factor productivity | D95: external | E95: =percent -> Per cent | F95: n/a | P95: 0 | Q95: 0 | R95: 0 | S95: 0 | T95: 0
B97: End

Sheet Input|Step changes
B1: =Index!$B$1 -> AER opex model | J1: Back to Index | L1: Key: | M1: Input | N1: External Link | O1: Internal Link | R1: Worksheet check: | S1: =IF(COUNTA($W$8:$W$224)=COUNTIF($W$8:$W$224,"OK"),"OK","Check") -> OK | U1: Overall Check: | V1: ='Check|List'!$S$1 -> Ok
B2: =Index!$C$11 -> Input | Step changes
D4: Source | E4: Unit | F4: Basis | J4: ='Input|General'!$G$8 -> 2011 | K4: =IF(OFFSET('Lookup|Tables'!$G$26:$G$43,MATCH('Input|General'!$G$8,'Lookup|Tables'!$G$26:$G$42,0),0,1,1)<='Input|General'!$G$12,OFFSET('Lookup|Tables'!$G$26:$G$43,MATCH('Input|General'!$G$8,'Lookup|Tables'!$G$26:$G$42,0),0,1,1),"") -> 2012 | L4: =IF(OFFSET('Lookup|Tables'!$G$28:$G$43,MATCH('Input|General'!$G$8,'Lookup|Tables'!$G$28:$G$42,0)+1,0,1,1)<='Input|General'!$G$12,OFFSET('Lookup|Tables'!$G$28:$G$43,MATCH('Input|General'!$G$8,'Lookup|Tables'!$G$28:$G$42,0)+1,0,1,1),"") -> 2013 | M4: =IF(OFFSET('Lookup|Tables'!$G$28:$G$43,MATCH('Input|General'!$G$8,'Lookup|Tables'!$G$28:$G$42,0)+2,0,1,1)<='Input|General'!$G$12,OFFSET('Lookup|Tables'!$G$28:$G$43,MATCH('Input|General'!$G$8,'Lookup|Tables'!$G$28:$G$42,0)+2,0,1,1),"") -> 2014 | N4: =IF(OFFSET('Lookup|Tables'!$G$28:$G$43,MATCH('Input|General'!$G$8,'Lookup|Tables'!$G$28:$G$42,0)+3,0,1,1)<='Input|General'!$G$12,OFFSET('Lookup|Tables'!$G$28:$G$43,MATCH('Input|General'!$G$8,'Lookup|Tables'!$G$28:$G$42,0)+3,0,1,1),"") -> 2015 | O4: =IF(OFFSET('Lookup|Tables'!$G$28:$G$43,MATCH('Input|General'!$G$8,'Lookup|Tables'!$G$28:$G$42,0)+4,0,1,1)<='Input|General'!$G$12,OFFSET('Lookup|Tables'!$G$28:$G$43,MATCH('Input|General'!$G$8,'Lookup|Tables'!$G$28:$G$42,0)+4,0,1,1),"") -> 2016 | P4: =IF(OFFSET('Lookup|Tables'!$G$28:$G$43,MATCH('Input|General'!$G$8,'Lookup|Tables'!$G$28:$G$42,0)+5,0,1,1)<='Input|General'!$G$12,OFFSET('Lookup|Tables'!$G$28:$G$43,MATCH('Input|General'!$G$8,'Lookup|Tables'!$G$28:$G$42,0)+5,0,1,1),"") -> 2017 | Q4: =IF(OFFSET('Lookup|Tables'!$G$28:$G$43,MATCH('Input|General'!$G$8,'Lookup|Tables'!$G$28:$G$42,0)+6,0,1,1)<='Input|General'!$G$12,OFFSET('Lookup|Tables'!$G$28:$G$43,MATCH('Input|General'!$G$8,'Lookup|Tables'!$G$28:$G$42,0)+6,0,1,1),"") -> 2018 | R4: =IF(OFFSET('Lookup|Tables'!$G$28:$G$43,MATCH('Input|General'!$G$8,'Lookup|Tables'!$G$28:$G$42,0)+7,0,1,1)<='Input|General'!$G$12,OFFSET('Lookup|Tables'!$G$28:$G$43,MATCH('Input|General'!$G$8,'Lookup|Tables'!$G$28:$G$42,0)+7,0,1,1),"") -> 2019 | S4: =IF(OFFSET('Lookup|Tables'!$G$28:$G$43,MATCH('Input|General'!$G$8,'Lookup|Tables'!$G$28:$G$42,0)+8,0,1,1)<='Input|General'!$G$12,OFFSET('Lookup|Tables'!$G$28:$G$43,MATCH('Input|General'!$G$8,'Lookup|Tables'!$G$28:$G$42,0)+8,0,1,1),"") -> 2020
B8: Input |Step changes
C10: Step change | D10: Source | E10: Unit | F10: Basis | J10: =IF(J$4>='Input|General'!$G$11,IF(J$4<='Input|General'!$G$12,'Input|Reported opex'!J$4,""),"") ->  | K10: =IF(K$4>='Input|General'!$G$11,IF(K$4<='Input|General'!$G$12,'Input|Reported opex'!K$4,""),"") ->  | L10: =IF(L$4>='Input|General'!$G$11,IF(L$4<='Input|General'!$G$12,'Input|Reported opex'!L$4,""),"") ->  | M10: =IF(M$4>='Input|General'!$G$11,IF(M$4<='Input|General'!$G$12,'Input|Reported opex'!M$4,""),"") ->  | N10: =IF(N$4>='Input|General'!$G$11,IF(N$4<='Input|General'!$G$12,'Input|Reported opex'!N$4,""),"") ->  | O10: =IF(O$4>='Input|General'!$G$11,IF(O$4<='Input|General'!$G$12,'Input|Reported opex'!O$4,""),"") -> 2016 | P10: =IF(P$4>='Input|General'!$G$11,IF(P$4<='Input|General'!$G$12,'Input|Reported opex'!P$4,""),"") -> 2017 | Q10: =IF(Q$4>='Input|General'!$G$11,IF(Q$4<='Input|General'!$G$12,'Input|Reported opex'!Q$4,""),"") -> 2018 | R10: =IF(R$4>='Input|General'!$G$11,IF(R$4<='Input|General'!$G$12,'Input|Reported opex'!R$4,""),"") -> 2019 | S10: =IF(S$4>='Input|General'!$G$11,IF(S$4<='Input|General'!$G$12,'Input|Reported opex'!S$4,""),"") -> 2020
C12: Customer relationship management system | D12: AER | E12: $millions | F12: 2015 | O12: 0 | P12: 0 | Q12: 0.4473265265 | R12: 0.4473265265 | S12: 0.4473265265
C13: GSL payments | D13: AER | E13: $millions | F13: 2015 | O13: 0.06273308779 | P13: 0.06273308779 | Q13: 0.06273308779 | R13: 0.06273308779 | S13: 0.06273308779
C14: Monitoring IT security | D14: AER | E14: $millions | F14: 2015 | O14: 0 | P14: 0 | Q14: 0 | R14: 0 | S14: 0
C15: Mobile devices | D15: AER | E15: $millions | F15: 2015 | O15: 0.3822616071 | P15: 0.1343587372 | Q15: 0.414327739 | R15: 0.1641000888 | S15: 0.4398323267
C16: Lease renewals | D16: AER | E16: $millions | F16: 2015 | O16: 1.395162 | P16: 1.395162 | Q16: 1.395162 | R16: 1.395162 | S16: 1.395162
C17: Decommissioning zone substations | D17: AER | E17: $millions | F17: 2015 | O17: 0 | P17: 0 | Q17: 0 | R17: 0 | S17: 0
C18: Introduction of cost reflective tariffs | D18: AER | E18: $millions | F18: 2015 | O18: 0 | P18: 0 | Q18: 0 | R18: 0 | S18: 0
C19: RIN compliance | D19: AER | E19: $millions | F19: 2015 | O19: 0.02570625 | P19: 0.3111015625 | Q19: 0.7239555906 | R19: 0.7137268055 | S19: 0.7040094596
C20: Introduction of chapter 5A | D20: AER | E20: $millions | F20: 2015 | O20: 0.12925 | P20: 0.07712757656 | Q20: 0.07564582559 | R20: 0.07624366946 | S20: 0.07803489232
D21: AER | E21: $millions | F21: 2015
D22: AER | E22: $millions | F22: 2015
D23: AER | E23: $millions | F23: 2015
B25: Input | Debt raising costs
C27: Debt Raising Costs | D27: Source | E27: Unit | F27: Basis | J27: =IF(J$4>='Input|General'!$G$11,IF(J$4<='Input|General'!$G$12,'Input|Reported opex'!J$4,""),"") ->  | K27: =IF(K$4>='Input|General'!$G$11,IF(K$4<='Input|General'!$G$12,'Input|Reported opex'!K$4,""),"") ->  | L27: =IF(L$4>='Input|General'!$G$11,IF(L$4<='Input|General'!$G$12,'Input|Reported opex'!L$4,""),"") ->  | M27: =IF(M$4>='Input|General'!$G$11,IF(M$4<='Input|General'!$G$12,'Input|Reported opex'!M$4,""),"") ->  | N27: =IF(N$4>='Input|General'!$G$11,IF(N$4<='Input|General'!$G$12,'Input|Reported opex'!N$4,""),"") ->  | O27: =IF(O$4>='Input|General'!$G$11,IF(O$4<='Input|General'!$G$12,'Input|Reported opex'!O$4,""),"") -> 2016 | P27: =IF(P$4>='Input|General'!$G$11,IF(P$4<='Input|General'!$G$12,'Input|Reported opex'!P$4,""),"") -> 2017 | Q27: =IF(Q$4>='Input|General'!$G$11,IF(Q$4<='Input|General'!$G$12,'Input|Reported opex'!Q$4,""),"") -> 2018 | R27: =IF(R$4>='Input|General'!$G$11,IF(R$4<='Input|General'!$G$12,'Input|Reported opex'!R$4,""),"") -> 2019 | S27: =IF(S$4>='Input|General'!$G$11,IF(S$4<='Input|General'!$G$12,'Input|Reported opex'!S$4,""),"") -> 2020
C29: Debt raising costs | D29: PTRM | E29: $millions | F29: 2014-15 | O29: 0.8952704388 | P29: 0.9295226703 | Q29: 0.9770456914 | R29: 1.0109318 | S29: 1.029401706
B31: End

Sheet Calc|Opex forecast
B1: =Index!$B$1 -> AER opex model | J1: Back to Index | L1: Key: | M1: Input | N1: External Link | O1: Internal Link | R1: Worksheet check: | S1: n/a | U1: Overall Check: | V1: ='Check|List'!$S$1 -> Ok
B2: =Index!$C$12 -> Calc | Opex Forecast
D4: Source | E4: Unit | F4: Basis | J4: ='Input|General'!$G$8 -> 2011 | K4: =IF(OFFSET('Lookup|Tables'!$G$26:$G$43,MATCH('Input|General'!$G$8,'Lookup|Tables'!$G$26:$G$42,0),0,1,1)<='Input|General'!$G$12,OFFSET('Lookup|Tables'!$G$26:$G$43,MATCH('Input|General'!$G$8,'Lookup|Tables'!$G$26:$G$42,0),0,1,1),"") -> 2012 | L4: =IF(OFFSET('Lookup|Tables'!$G$28:$G$43,MATCH('Input|General'!$G$8,'Lookup|Tables'!$G$28:$G$42,0)+1,0,1,1)<='Input|General'!$G$12,OFFSET('Lookup|Tables'!$G$28:$G$43,MATCH('Input|General'!$G$8,'Lookup|Tables'!$G$28:$G$42,0)+1,0,1,1),"") -> 2013 | M4: =IF(OFFSET('Lookup|Tables'!$G$28:$G$43,MATCH('Input|General'!$G$8,'Lookup|Tables'!$G$28:$G$42,0)+2,0,1,1)<='Input|General'!$G$12,OFFSET('Lookup|Tables'!$G$28:$G$43,MATCH('Input|General'!$G$8,'Lookup|Tables'!$G$28:$G$42,0)+2,0,1,1),"") -> 2014 | N4: =IF(OFFSET('Lookup|Tables'!$G$28:$G$43,MATCH('Input|General'!$G$8,'Lookup|Tables'!$G$28:$G$42,0)+3,0,1,1)<='Input|General'!$G$12,OFFSET('Lookup|Tables'!$G$28:$G$43,MATCH('Input|General'!$G$8,'Lookup|Tables'!$G$28:$G$42,0)+3,0,1,1),"") -> 2015 | O4: =IF(OFFSET('Lookup|Tables'!$G$28:$G$43,MATCH('Input|General'!$G$8,'Lookup|Tables'!$G$28:$G$42,0)+4,0,1,1)<='Input|General'!$G$12,OFFSET('Lookup|Tables'!$G$28:$G$43,MATCH('Input|General'!$G$8,'Lookup|Tables'!$G$28:$G$42,0)+4,0,1,1),"") -> 2016 | P4: =IF(OFFSET('Lookup|Tables'!$G$28:$G$43,MATCH('Input|General'!$G$8,'Lookup|Tables'!$G$28:$G$42,0)+5,0,1,1)<='Input|General'!$G$12,OFFSET('Lookup|Tables'!$G$28:$G$43,MATCH('Input|General'!$G$8,'Lookup|Tables'!$G$28:$G$42,0)+5,0,1,1),"") -> 2017 | Q4: =IF(OFFSET('Lookup|Tables'!$G$28:$G$43,MATCH('Input|General'!$G$8,'Lookup|Tables'!$G$28:$G$42,0)+6,0,1,1)<='Input|General'!$G$12,OFFSET('Lookup|Tables'!$G$28:$G$43,MATCH('Input|General'!$G$8,'Lookup|Tables'!$G$28:$G$42,0)+6,0,1,1),"") -> 2018 | R4: =IF(OFFSET('Lookup|Tables'!$G$28:$G$43,MATCH('Input|General'!$G$8,'Lookup|Tables'!$G$28:$G$42,0)+7,0,1,1)<='Input|General'!$G$12,OFFSET('Lookup|Tables'!$G$28:$G$43,MATCH('Input|General'!$G$8,'Lookup|Tables'!$G$28:$G$42,0)+7,0,1,1),"") -> 2019 | S4: =IF(OFFSET('Lookup|Tables'!$G$28:$G$43,MATCH('Input|General'!$G$8,'Lookup|Tables'!$G$28:$G$42,0)+8,0,1,1)<='Input|General'!$G$12,OFFSET('Lookup|Tables'!$G$28:$G$43,MATCH('Input|General'!$G$8,'Lookup|Tables'!$G$28:$G$42,0)+8,0,1,1),"") -> 2020
B8: Calc | Estimated final year expenditure | E8: $millions | F8: 2015
D10: Source | E10: Unit | F10: Basis | J10: =IF(RIGHT(J$4,2)>=RIGHT('Input|General'!$G$9,2),IF(RIGHT(J$4,2)<=RIGHT('Input|General'!$G$10,2),J$4,""),"") ->  | K10: =IF(RIGHT(K$4,2)>=RIGHT('Input|General'!$G$9,2),IF(RIGHT(K$4,2)<=RIGHT('Input|General'!$G$10,2),K$4,""),"") ->  | L10: =IF(RIGHT(L$4,2)>=RIGHT('Input|General'!$G$9,2),IF(RIGHT(L$4,2)<=RIGHT('Input|General'!$G$10,2),L$4,""),"") ->  | M10: =IF(RIGHT(M$4,2)>=RIGHT('Input|General'!$G$9,2),IF(RIGHT(M$4,2)<=RIGHT('Input|General'!$G$10,2),M$4,""),"") -> 2014 | N10: =IF(RIGHT(N$4,2)>=RIGHT('Input|General'!$G$9,2),IF(RIGHT(N$4,2)<=RIGHT('Input|General'!$G$10,2),N$4,""),"") -> 2015 | O10: =IF(RIGHT(O$4,2)>=RIGHT('Input|General'!$G$9,2),IF(RIGHT(O$4,2)<=RIGHT('Input|General'!$G$10,2),O$4,""),"") ->  | P10: =IF(RIGHT(P$4,2)>=RIGHT('Input|General'!$G$9,2),IF(RIGHT(P$4,2)<=RIGHT('Input|General'!$G$10,2),P$4,""),"") ->  | Q10: =IF(RIGHT(Q$4,2)>=RIGHT('Input|General'!$G$9,2),IF(RIGHT(Q$4,2)<=RIGHT('Input|General'!$G$10,2),Q$4,""),"") ->  | R10: =IF(RIGHT(R$4,2)>=RIGHT('Input|General'!$G$9,2),IF(RIGHT(R$4,2)<=RIGHT('Input|General'!$G$10,2),R$4,""),"") ->  | S10: =IF(RIGHT(S$4,2)>=RIGHT('Input|General'!$G$9,2),IF(RIGHT(S$4,2)<=RIGHT('Input|General'!$G$10,2),S$4,""),"") -> 
C12: Total reported opex | D12: Inputs|Reported opex | E12: ='Input|Reported opex'!E43 -> $millions | F12: ='Input|Reported opex'!F43 -> nominal | J12: =IF(J$10='Input|General'!$G$9,'Input|Reported opex'!J43,0) -> 0 | K12: =IF(K$10='Input|General'!$G$9,'Input|Reported opex'!K43,0) -> 0 | L12: =IF(L$10='Input|General'!$G$9,'Input|Reported opex'!L43,0) -> 0 | M12: =IF(M$10='Input|General'!$G$9,'Input|Reported opex'!M43,0) -> 55.95381575 | N12: =IF(N$10='Input|General'!$G$9,'Input|Reported opex'!N43,0) -> 0 | O12: =IF(O$10='Input|General'!$G$9,'Input|Reported opex'!O43,0) -> 0 | P12: =IF(P$10='Input|General'!$G$9,'Input|Reported opex'!P43,0) -> 0 | Q12: =IF(Q$10='Input|General'!$G$9,'Input|Reported opex'!Q43,0) -> 0 | R12: =IF(R$10='Input|General'!$G$9,'Input|Reported opex'!R43,0) -> 0 | S12: =IF(S$10='Input|General'!$G$9,'Input|Reported opex'!S43,0) -> 0
C13: Total reported opex | D13: Calculated | E13: =$E$8 -> $millions | F13: =$F$8 -> 2015 | J13: =J12*IF($F12="nominal",LOOKUP($F13,Nominal_to_Real,'Input|Rate of change'!K$26:K$32),INDEX('Input|Rate of change'!$C$14:$O$22,MATCH('Calc|Opex forecast'!$F12,'Input|Rate of change'!$C$14:$C$22,0),MATCH('Calc|Opex forecast'!$F13,'Input|Rate of change'!$C$14:$O$14,0)))*IF($E12="$millions",1000000,IF($E12="$000",1000,1))/IF($E13="$millions",1000000,IF($E13="$000",1000,1)) -> 0 | K13: =K12*IF($F12="nominal",LOOKUP($F13,Nominal_to_Real,'Input|Rate of change'!L$26:L$32),INDEX('Input|Rate of change'!$C$14:$O$22,MATCH('Calc|Opex forecast'!$F12,'Input|Rate of change'!$C$14:$C$22,0),MATCH('Calc|Opex forecast'!$F13,'Input|Rate of change'!$C$14:$O$14,0)))*IF($E12="$millions",1000000,IF($E12="$000",1000,1))/IF($E13="$millions",1000000,IF($E13="$000",1000,1)) -> 0 | L13: =L12*IF($F12="nominal",LOOKUP($F13,Nominal_to_Real,'Input|Rate of change'!M$26:M$32),INDEX('Input|Rate of change'!$C$14:$O$22,MATCH('Calc|Opex forecast'!$F12,'Input|Rate of change'!$C$14:$C$22,0),MATCH('Calc|Opex forecast'!$F13,'Input|Rate of change'!$C$14:$O$14,0)))*IF($E12="$millions",1000000,IF($E12="$000",1000,1))/IF($E13="$millions",1000000,IF($E13="$000",1000,1)) -> 0 | M13: =M12*IF($F12="nominal",LOOKUP($F13,Nominal_to_Real,'Input|Rate of change'!N$26:N$32),INDEX('Input|Rate of change'!$C$14:$O$22,MATCH('Calc|Opex forecast'!$F12,'Input|Rate of change'!$C$14:$C$22,0),MATCH('Calc|Opex forecast'!$F13,'Input|Rate of change'!$C$14:$O$14,0)))*IF($E12="$millions",1000000,IF($E12="$000",1000,1))/IF($E13="$millions",1000000,IF($E13="$000",1000,1)) -> 57.38517983 | N13: =N12*IF($F12="nominal",LOOKUP($F13,Nominal_to_Real,'Input|Rate of change'!O$26:O$32),INDEX('Input|Rate of change'!$C$14:$O$22,MATCH('Calc|Opex forecast'!$F12,'Input|Rate of change'!$C$14:$C$22,0),MATCH('Calc|Opex forecast'!$F13,'Input|Rate of change'!$C$14:$O$14,0)))*IF($E12="$millions",1000000,IF($E12="$000",1000,1))/IF($E13="$millions",1000000,IF($E13="$000",1000,1)) -> 0 | O13: =O12*IF($F12="nominal",LOOKUP($F13,Nominal_to_Real,'Input|Rate of change'!P$26:P$32),INDEX('Input|Rate of change'!$C$14:$O$22,MATCH('Calc|Opex forecast'!$F12,'Input|Rate of change'!$C$14:$C$22,0),MATCH('Calc|Opex forecast'!$F13,'Input|Rate of change'!$C$14:$O$14,0)))*IF($E12="$millions",1000000,IF($E12="$000",1000,1))/IF($E13="$millions",1000000,IF($E13="$000",1000,1)) -> 0 | P13: =P12*IF($F12="nominal",LOOKUP($F13,Nominal_to_Real,'Input|Rate of change'!Q$26:Q$32),INDEX('Input|Rate of change'!$C$14:$O$22,MATCH('Calc|Opex forecast'!$F12,'Input|Rate of change'!$C$14:$C$22,0),MATCH('Calc|Opex forecast'!$F13,'Input|Rate of change'!$C$14:$O$14,0)))*IF($E12="$millions",1000000,IF($E12="$000",1000,1))/IF($E13="$millions",1000000,IF($E13="$000",1000,1)) -> 0 | Q13: =Q12*IF($F12="nominal",LOOKUP($F13,Nominal_to_Real,'Input|Rate of change'!R$26:R$32),INDEX('Input|Rate of change'!$C$14:$O$22,MATCH('Calc|Opex forecast'!$F12,'Input|Rate of change'!$C$14:$C$22,0),MATCH('Calc|Opex forecast'!$F13,'Input|Rate of change'!$C$14:$O$14,0)))*IF($E12="$millions",1000000,IF($E12="$000",1000,1))/IF($E13="$millions",1000000,IF($E13="$000",1000,1)) -> 0 | R13: =R12*IF($F12="nominal",LOOKUP($F13,Nominal_to_Real,'Input|Rate of change'!S$26:S$32),INDEX('Input|Rate of change'!$C$14:$O$22,MATCH('Calc|Opex forecast'!$F12,'Input|Rate of change'!$C$14:$C$22,0),MATCH('Calc|Opex forecast'!$F13,'Input|Rate of change'!$C$14:$O$14,0)))*IF($E12="$millions",1000000,IF($E12="$000",1000,1))/IF($E13="$millions",1000000,IF($E13="$000",1000,1)) -> 0 | S13: =S12*IF($F12="nominal",LOOKUP($F13,Nominal_to_Real,'Input|Rate of change'!T$26:T$32),INDEX('Input|Rate of change'!$C$14:$O$22,MATCH('Calc|Opex forecast'!$F12,'Input|Rate of change'!$C$14:$C$22,0),MATCH('Calc|Opex forecast'!$F13,'Input|Rate of change'!$C$14:$O$14,0)))*IF($E12="$millions",1000000,IF($E12="$000",1000,1))/IF($E13="$millions",1000000,IF($E13="$000",1000,1)) -> 0
C14: Total base year opex allowance | D14: Inputs|Reported opex | E14: ='Input|Reported opex'!E24 -> $millions | F14: ='Input|Reported opex'!F24 -> 2010 | J14: =IF(J$10='Input|General'!$G$9,'Input|Reported opex'!J24,0) -> 0 | K14: =IF(K$10='Input|General'!$G$9,'Input|Reported opex'!K24,0) -> 0 | L14: =IF(L$10='Input|General'!$G$9,'Input|Reported opex'!L24,0) -> 0 | M14: =IF(M$10='Input|General'!$G$9,'Input|Reported opex'!M24,0) -> 46.69531669 | N14: =IF(N$10='Input|General'!$G$9,'Input|Reported opex'!N24,0) -> 0 | O14: =IF(O$10='Input|General'!$G$9,'Input|Reported opex'!O24,0) -> 0 | P14: =IF(P$10='Input|General'!$G$9,'Input|Reported opex'!P24,0) -> 0 | Q14: =IF(Q$10='Input|General'!$G$9,'Input|Reported opex'!Q24,0) -> 0 | R14: =IF(R$10='Input|General'!$G$9,'Input|Reported opex'!R24,0) -> 0 | S14: =IF(S$10='Input|General'!$G$9,'Input|Reported opex'!S24,0) -> 0
C15: Total base year opex allowance | D15: Calculated | E15: =$E$8 -> $millions | F15: =$F$8 -> 2015 | J15: =J14*IF($F14="nominal",LOOKUP($F15,Nominal_to_Real,'Input|Rate of change'!K$26:K$32),INDEX('Input|Rate of change'!$C$14:$O$22,MATCH('Calc|Opex forecast'!$F14,'Input|Rate of change'!$C$14:$C$22,0),MATCH('Calc|Opex forecast'!$F15,'Input|Rate of change'!$C$14:$O$14,0)))*IF($E14="$millions",1000000,IF($E14="$000",1000,1))/IF($E15="$millions",1000000,IF($E15="$000",1000,1)) -> 0 | K15: =K14*IF($F14="nominal",LOOKUP($F15,Nominal_to_Real,'Input|Rate of change'!L$26:L$32),INDEX('Input|Rate of change'!$C$14:$O$22,MATCH('Calc|Opex forecast'!$F14,'Input|Rate of change'!$C$14:$C$22,0),MATCH('Calc|Opex forecast'!$F15,'Input|Rate of change'!$C$14:$O$14,0)))*IF($E14="$millions",1000000,IF($E14="$000",1000,1))/IF($E15="$millions",1000000,IF($E15="$000",1000,1)) -> 0 | L15: =L14*IF($F14="nominal",LOOKUP($F15,Nominal_to_Real,'Input|Rate of change'!M$26:M$32),INDEX('Input|Rate of change'!$C$14:$O$22,MATCH('Calc|Opex forecast'!$F14,'Input|Rate of change'!$C$14:$C$22,0),MATCH('Calc|Opex forecast'!$F15,'Input|Rate of change'!$C$14:$O$14,0)))*IF($E14="$millions",1000000,IF($E14="$000",1000,1))/IF($E15="$millions",1000000,IF($E15="$000",1000,1)) -> 0 | M15: =M14*IF($F14="nominal",LOOKUP($F15,Nominal_to_Real,'Input|Rate of change'!N$26:N$32),INDEX('Input|Rate of change'!$C$14:$O$22,MATCH('Calc|Opex forecast'!$F14,'Input|Rate of change'!$C$14:$C$22,0),MATCH('Calc|Opex forecast'!$F15,'Input|Rate of change'!$C$14:$O$14,0)))*IF($E14="$millions",1000000,IF($E14="$000",1000,1))/IF($E15="$millions",1000000,IF($E15="$000",1000,1)) -> 52.23707254 | N15: =N14*IF($F14="nominal",LOOKUP($F15,Nominal_to_Real,'Input|Rate of change'!O$26:O$32),INDEX('Input|Rate of change'!$C$14:$O$22,MATCH('Calc|Opex forecast'!$F14,'Input|Rate of change'!$C$14:$C$22,0),MATCH('Calc|Opex forecast'!$F15,'Input|Rate of change'!$C$14:$O$14,0)))*IF($E14="$millions",1000000,IF($E14="$000",1000,1))/IF($E15="$millions",1000000,IF($E15="$000",1000,1)) -> 0 | O15: =O14*IF($F14="nominal",LOOKUP($F15,Nominal_to_Real,'Input|Rate of change'!P$26:P$32),INDEX('Input|Rate of change'!$C$14:$O$22,MATCH('Calc|Opex forecast'!$F14,'Input|Rate of change'!$C$14:$C$22,0),MATCH('Calc|Opex forecast'!$F15,'Input|Rate of change'!$C$14:$O$14,0)))*IF($E14="$millions",1000000,IF($E14="$000",1000,1))/IF($E15="$millions",1000000,IF($E15="$000",1000,1)) -> 0 | P15: =P14*IF($F14="nominal",LOOKUP($F15,Nominal_to_Real,'Input|Rate of change'!Q$26:Q$32),INDEX('Input|Rate of change'!$C$14:$O$22,MATCH('Calc|Opex forecast'!$F14,'Input|Rate of change'!$C$14:$C$22,0),MATCH('Calc|Opex forecast'!$F15,'Input|Rate of change'!$C$14:$O$14,0)))*IF($E14="$millions",1000000,IF($E14="$000",1000,1))/IF($E15="$millions",1000000,IF($E15="$000",1000,1)) -> 0 | Q15: =Q14*IF($F14="nominal",LOOKUP($F15,Nominal_to_Real,'Input|Rate of change'!R$26:R$32),INDEX('Input|Rate of change'!$C$14:$O$22,MATCH('Calc|Opex forecast'!$F14,'Input|Rate of change'!$C$14:$C$22,0),MATCH('Calc|Opex forecast'!$F15,'Input|Rate of change'!$C$14:$O$14,0)))*IF($E14="$millions",1000000,IF($E14="$000",1000,1))/IF($E15="$millions",1000000,IF($E15="$000",1000,1)) -> 0 | R15: =R14*IF($F14="nominal",LOOKUP($F15,Nominal_to_Real,'Input|Rate of change'!S$26:S$32),INDEX('Input|Rate of change'!$C$14:$O$22,MATCH('Calc|Opex forecast'!$F14,'Input|Rate of change'!$C$14:$C$22,0),MATCH('Calc|Opex forecast'!$F15,'Input|Rate of change'!$C$14:$O$14,0)))*IF($E14="$millions",1000000,IF($E14="$000",1000,1))/IF($E15="$millions",1000000,IF($E15="$000",1000,1)) -> 0 | S15: =S14*IF($F14="nominal",LOOKUP($F15,Nominal_to_Real,'Input|Rate of change'!T$26:T$32),INDEX('Input|Rate of change'!$C$14:$O$22,MATCH('Calc|Opex forecast'!$F14,'Input|Rate of change'!$C$14:$C$22,0),MATCH('Calc|Opex forecast'!$F15,'Input|Rate of change'!$C$14:$O$14,0)))*IF($E14="$millions",1000000,IF($E14="$000",1000,1))/IF($E15="$millions",1000000,IF($E15="$000",1000,1)) -> 0
C16: Total final year opex allowance | D16: Inputs|Reported opex | E16: ='Input|Reported opex'!E24 -> $millions | F16: ='Input|Reported opex'!F24 -> 2010 | J16: =IF(J$10='Input|General'!$G$10,'Input|Reported opex'!J24,0) -> 0 | K16: =IF(K$10='Input|General'!$G$10,'Input|Reported opex'!K24,0) -> 0 | L16: =IF(L$10='Input|General'!$G$10,'Input|Reported opex'!L24,0) -> 0 | M16: =IF(M$10='Input|General'!$G$10,'Input|Reported opex'!M24,0) -> 0 | N16: =IF(N$10='Input|General'!$G$10,'Input|Reported opex'!N24,0) -> 47.40666311 | O16: =IF(O$10='Input|General'!$G$10,'Input|Reported opex'!O24,0) -> 0 | P16: =IF(P$10='Input|General'!$G$10,'Input|Reported opex'!P24,0) -> 0 | Q16: =IF(Q$10='Input|General'!$G$10,'Input|Reported opex'!Q24,0) -> 0 | R16: =IF(R$10='Input|General'!$G$10,'Input|Reported opex'!R24,0) -> 0 | S16: =IF(S$10='Input|General'!$G$10,'Input|Reported opex'!S24,0) -> 0
C17: Total final year opex allowance | D17: Calculated | E17: =$E$8 -> $millions | F17: =$F$8 -> 2015 | J17: =J16*IF($F16="nominal",LOOKUP($F17,Nominal_to_Real,'Input|Rate of change'!K$27:K$32),INDEX('Input|Rate of change'!$C$14:$O$22,MATCH('Calc|Opex forecast'!$F16,'Input|Rate of change'!$C$14:$C$22,0),MATCH('Calc|Opex forecast'!$F17,'Input|Rate of change'!$C$14:$O$14,0)))*IF($E16="$millions",1000000,IF($E16="$000",1000,1))/IF($E17="$millions",1000000,IF($E17="$000",1000,1)) -> 0 | K17: =K16*IF($F16="nominal",LOOKUP($F17,Nominal_to_Real,'Input|Rate of change'!L$27:L$32),INDEX('Input|Rate of change'!$C$14:$O$22,MATCH('Calc|Opex forecast'!$F16,'Input|Rate of change'!$C$14:$C$22,0),MATCH('Calc|Opex forecast'!$F17,'Input|Rate of change'!$C$14:$O$14,0)))*IF($E16="$millions",1000000,IF($E16="$000",1000,1))/IF($E17="$millions",1000000,IF($E17="$000",1000,1)) -> 0 | L17: =L16*IF($F16="nominal",LOOKUP($F17,Nominal_to_Real,'Input|Rate of change'!M$27:M$32),INDEX('Input|Rate of change'!$C$14:$O$22,MATCH('Calc|Opex forecast'!$F16,'Input|Rate of change'!$C$14:$C$22,0),MATCH('Calc|Opex forecast'!$F17,'Input|Rate of change'!$C$14:$O$14,0)))*IF($E16="$millions",1000000,IF($E16="$000",1000,1))/IF($E17="$millions",1000000,IF($E17="$000",1000,1)) -> 0 | M17: =M16*IF($F16="nominal",LOOKUP($F17,Nominal_to_Real,'Input|Rate of change'!N$27:N$32),INDEX('Input|Rate of change'!$C$14:$O$22,MATCH('Calc|Opex forecast'!$F16,'Input|Rate of change'!$C$14:$C$22,0),MATCH('Calc|Opex forecast'!$F17,'Input|Rate of change'!$C$14:$O$14,0)))*IF($E16="$millions",1000000,IF($E16="$000",1000,1))/IF($E17="$millions",1000000,IF($E17="$000",1000,1)) -> 0 | N17: =N16*IF($F16="nominal",LOOKUP($F17,Nominal_to_Real,'Input|Rate of change'!O$27:O$32),INDEX('Input|Rate of change'!$C$14:$O$22,MATCH('Calc|Opex forecast'!$F16,'Input|Rate of change'!$C$14:$C$22,0),MATCH('Calc|Opex forecast'!$F17,'Input|Rate of change'!$C$14:$O$14,0)))*IF($E16="$millions",1000000,IF($E16="$000",1000,1))/IF($E17="$millions",1000000,IF($E17="$000",1000,1)) -> 53.03284088 | O17: =O16*IF($F16="nominal",LOOKUP($F17,Nominal_to_Real,'Input|Rate of change'!P$27:P$32),INDEX('Input|Rate of change'!$C$14:$O$22,MATCH('Calc|Opex forecast'!$F16,'Input|Rate of change'!$C$14:$C$22,0),MATCH('Calc|Opex forecast'!$F17,'Input|Rate of change'!$C$14:$O$14,0)))*IF($E16="$millions",1000000,IF($E16="$000",1000,1))/IF($E17="$millions",1000000,IF($E17="$000",1000,1)) -> 0 | P17: =P16*IF($F16="nominal",LOOKUP($F17,Nominal_to_Real,'Input|Rate of change'!Q$27:Q$32),INDEX('Input|Rate of change'!$C$14:$O$22,MATCH('Calc|Opex forecast'!$F16,'Input|Rate of change'!$C$14:$C$22,0),MATCH('Calc|Opex forecast'!$F17,'Input|Rate of change'!$C$14:$O$14,0)))*IF($E16="$millions",1000000,IF($E16="$000",1000,1))/IF($E17="$millions",1000000,IF($E17="$000",1000,1)) -> 0 | Q17: =Q16*IF($F16="nominal",LOOKUP($F17,Nominal_to_Real,'Input|Rate of change'!R$27:R$32),INDEX('Input|Rate of change'!$C$14:$O$22,MATCH('Calc|Opex forecast'!$F16,'Input|Rate of change'!$C$14:$C$22,0),MATCH('Calc|Opex forecast'!$F17,'Input|Rate of change'!$C$14:$O$14,0)))*IF($E16="$millions",1000000,IF($E16="$000",1000,1))/IF($E17="$millions",1000000,IF($E17="$000",1000,1)) -> 0 | R17: =R16*IF($F16="nominal",LOOKUP($F17,Nominal_to_Real,'Input|Rate of change'!S$27:S$32),INDEX('Input|Rate of change'!$C$14:$O$22,MATCH('Calc|Opex forecast'!$F16,'Input|Rate of change'!$C$14:$C$22,0),MATCH('Calc|Opex forecast'!$F17,'Input|Rate of change'!$C$14:$O$14,0)))*IF($E16="$millions",1000000,IF($E16="$000",1000,1))/IF($E17="$millions",1000000,IF($E17="$000",1000,1)) -> 0 | S17: =S16*IF($F16="nominal",LOOKUP($F17,Nominal_to_Real,'Input|Rate of change'!T$27:T$32),INDEX('Input|Rate of change'!$C$14:$O$22,MATCH('Calc|Opex forecast'!$F16,'Input|Rate of change'!$C$14:$C$22,0),MATCH('Calc|Opex forecast'!$F17,'Input|Rate of change'!$C$14:$O$14,0)))*IF($E16="$millions",1000000,IF($E16="$000",1000,1))/IF($E17="$millions",1000000,IF($E17="$000",1000,1)) -> 0
C19: Estimated final year opex | D19: Calculated | E19: =$E$8 -> $millions | F19: =$F$8 -> 2015 | J19: =IF(J$10='Input|General'!$G$10,SUM($J13:$S13)-SUM($J15:$S15)+SUM($J17:$S17),0) -> 0 | K19: =IF(K$10='Input|General'!$G$10,SUM($J13:$S13)-SUM($J15:$S15)+SUM($J17:$S17),0) -> 0 | L19: =IF(L$10='Input|General'!$G$10,SUM($J13:$S13)-SUM($J15:$S15)+SUM($J17:$S17),0) -> 0 | M19: =IF(M$10='Input|General'!$G$10,SUM($J13:$S13)-SUM($J15:$S15)+SUM($J17:$S17),0) -> 0 | N19: =IF(N$10='Input|General'!$G$10,SUM($J13:$S13)-SUM($J15:$S15)+SUM($J17:$S17),0) -> 58.18094817 | O19: =IF(O$10='Input|General'!$G$10,SUM($J13:$S13)-SUM($J15:$S15)+SUM($J17:$S17),0) -> 0 | P19: =IF(P$10='Input|General'!$G$10,SUM($J13:$S13)-SUM($J15:$S15)+SUM($J17:$S17),0) -> 0 | Q19: =IF(Q$10='Input|General'!$G$10,SUM($J13:$S13)-SUM($J15:$S15)+SUM($J17:$S17),0) -> 0 | R19: =IF(R$10='Input|General'!$G$10,SUM($J13:$S13)-SUM($J15:$S15)+SUM($J17:$S17),0) -> 0 | S19: =IF(S$10='Input|General'!$G$10,SUM($J13:$S13)-SUM($J15:$S15)+SUM($J17:$S17),0) -> 0
C21: Capitalisation policy adjustment | D21: Inputs|Reported opex | E21: ='Input|Reported opex'!E48 -> $millions | F21: ='Input|Reported opex'!F48 -> 2015 | I21: =IF(I$10='Input|General'!$G$10,'Input|Reported opex'!I48,0) -> 0 | J21: =IF(J$10='Input|General'!$G$10,'Input|Reported opex'!J48,0) -> 0 | K21: =IF(K$10='Input|General'!$G$10,'Input|Reported opex'!K48,0) -> 0 | L21: =IF(L$10='Input|General'!$G$10,'Input|Reported opex'!L48,0) -> 0 | M21: =IF(M$10='Input|General'!$G$10,'Input|Reported opex'!M48,0) -> 0 | N21: =IF(N$10='Input|General'!$G$10,'Input|Reported opex'!N48,0) -> 17.53873049 | O21: =IF(O$10='Input|General'!$G$10,'Input|Reported opex'!O48,0) -> 0 | P21: =IF(P$10='Input|General'!$G$10,'Input|Reported opex'!P48,0) -> 0 | Q21: =IF(Q$10='Input|General'!$G$10,'Input|Reported opex'!Q48,0) -> 0 | R21: =IF(R$10='Input|General'!$G$10,'Input|Reported opex'!R48,0) -> 0 | S21: =IF(S$10='Input|General'!$G$10,'Input|Reported opex'!S48,0) -> 0
C22: =C21 -> Capitalisation policy adjustment | D22: Calculated | E22: =$E$8 -> $millions | F22: =$F$8 -> 2015 | J22: =J21*IF($F21="nominal",LOOKUP($F22,Nominal_to_Real,'Input|Rate of change'!K$26:K$32),INDEX('Input|Rate of change'!$C$14:$O$22,MATCH('Calc|Opex forecast'!$F21,'Input|Rate of change'!$C$14:$C$22,0),MATCH('Calc|Opex forecast'!$F22,'Input|Rate of change'!$C$14:$O$14,0)))*IF($E21="$millions",1000000,IF($E21="$000",1000,1))/IF($E22="$millions",1000000,IF($E22="$000",1000,1)) -> 0 | K22: =K21*IF($F21="nominal",LOOKUP($F22,Nominal_to_Real,'Input|Rate of change'!L$26:L$32),INDEX('Input|Rate of change'!$C$14:$O$22,MATCH('Calc|Opex forecast'!$F21,'Input|Rate of change'!$C$14:$C$22,0),MATCH('Calc|Opex forecast'!$F22,'Input|Rate of change'!$C$14:$O$14,0)))*IF($E21="$millions",1000000,IF($E21="$000",1000,1))/IF($E22="$millions",1000000,IF($E22="$000",1000,1)) -> 0 | L22: =L21*IF($F21="nominal",LOOKUP($F22,Nominal_to_Real,'Input|Rate of change'!M$26:M$32),INDEX('Input|Rate of change'!$C$14:$O$22,MATCH('Calc|Opex forecast'!$F21,'Input|Rate of change'!$C$14:$C$22,0),MATCH('Calc|Opex forecast'!$F22,'Input|Rate of change'!$C$14:$O$14,0)))*IF($E21="$millions",1000000,IF($E21="$000",1000,1))/IF($E22="$millions",1000000,IF($E22="$000",1000,1)) -> 0 | M22: =M21*IF($F21="nominal",LOOKUP($F22,Nominal_to_Real,'Input|Rate of change'!N$26:N$32),INDEX('Input|Rate of change'!$C$14:$O$22,MATCH('Calc|Opex forecast'!$F21,'Input|Rate of change'!$C$14:$C$22,0),MATCH('Calc|Opex forecast'!$F22,'Input|Rate of change'!$C$14:$O$14,0)))*IF($E21="$millions",1000000,IF($E21="$000",1000,1))/IF($E22="$millions",1000000,IF($E22="$000",1000,1)) -> 0 | N22: =N21*IF($F21="nominal",LOOKUP($F22,Nominal_to_Real,'Input|Rate of change'!O$26:O$32),INDEX('Input|Rate of change'!$C$14:$O$22,MATCH('Calc|Opex forecast'!$F21,'Input|Rate of change'!$C$14:$C$22,0),MATCH('Calc|Opex forecast'!$F22,'Input|Rate of change'!$C$14:$O$14,0)))*IF($E21="$millions",1000000,IF($E21="$000",1000,1))/IF($E22="$millions",1000000,IF($E22="$000",1000,1)) -> 17.53873049 | O22: =O21*IF($F21="nominal",LOOKUP($F22,Nominal_to_Real,'Input|Rate of change'!P$26:P$32),INDEX('Input|Rate of change'!$C$14:$O$22,MATCH('Calc|Opex forecast'!$F21,'Input|Rate of change'!$C$14:$C$22,0),MATCH('Calc|Opex forecast'!$F22,'Input|Rate of change'!$C$14:$O$14,0)))*IF($E21="$millions",1000000,IF($E21="$000",1000,1))/IF($E22="$millions",1000000,IF($E22="$000",1000,1)) -> 0 | P22: =P21*IF($F21="nominal",LOOKUP($F22,Nominal_to_Real,'Input|Rate of change'!Q$26:Q$32),INDEX('Input|Rate of change'!$C$14:$O$22,MATCH('Calc|Opex forecast'!$F21,'Input|Rate of change'!$C$14:$C$22,0),MATCH('Calc|Opex forecast'!$F22,'Input|Rate of change'!$C$14:$O$14,0)))*IF($E21="$millions",1000000,IF($E21="$000",1000,1))/IF($E22="$millions",1000000,IF($E22="$000",1000,1)) -> 0 | Q22: =Q21*IF($F21="nominal",LOOKUP($F22,Nominal_to_Real,'Input|Rate of change'!R$26:R$32),INDEX('Input|Rate of change'!$C$14:$O$22,MATCH('Calc|Opex forecast'!$F21,'Input|Rate of change'!$C$14:$C$22,0),MATCH('Calc|Opex forecast'!$F22,'Input|Rate of change'!$C$14:$O$14,0)))*IF($E21="$millions",1000000,IF($E21="$000",1000,1))/IF($E22="$millions",1000000,IF($E22="$000",1000,1)) -> 0 | R22: =R21*IF($F21="nominal",LOOKUP($F22,Nominal_to_Real,'Input|Rate of change'!S$26:S$32),INDEX('Input|Rate of change'!$C$14:$O$22,MATCH('Calc|Opex forecast'!$F21,'Input|Rate of change'!$C$14:$C$22,0),MATCH('Calc|Opex forecast'!$F22,'Input|Rate of change'!$C$14:$O$14,0)))*IF($E21="$millions",1000000,IF($E21="$000",1000,1))/IF($E22="$millions",1000000,IF($E22="$000",1000,1)) -> 0 | S22: =S21*IF($F21="nominal",LOOKUP($F22,Nominal_to_Real,'Input|Rate of change'!T$26:T$32),INDEX('Input|Rate of change'!$C$14:$O$22,MATCH('Calc|Opex forecast'!$F21,'Input|Rate of change'!$C$14:$C$22,0),MATCH('Calc|Opex forecast'!$F22,'Input|Rate of change'!$C$14:$O$14,0)))*IF($E21="$millions",1000000,IF($E21="$000",1000,1))/IF($E22="$millions",1000000,IF($E22="$000",1000,1)) -> 0
C24: Service classification adjustment | D24: Inputs|Reported opex | E24: ='Input|Reported opex'!E55 -> $millions | F24: ='Input|Reported opex'!F55 -> 2015 | N24: ='Input|Reported opex'!N55 -> 2.809124606
C25: =C24 -> Service classification adjustment | D25: Calculated | E25: =$E$8 -> $millions | F25: =$F$8 -> 2015 | J25: =J24*IF($F24="nominal",LOOKUP($F25,Nominal_to_Real,'Input|Rate of change'!K$26:K$32),INDEX('Input|Rate of change'!$C$14:$O$22,MATCH('Calc|Opex forecast'!$F24,'Input|Rate of change'!$C$14:$C$22,0),MATCH('Calc|Opex forecast'!$F25,'Input|Rate of change'!$C$14:$O$14,0)))*IF($E24="$millions",1000000,IF($E24="$000",1000,1))/IF($E25="$millions",1000000,IF($E25="$000",1000,1)) -> 0 | K25: =K24*IF($F24="nominal",LOOKUP($F25,Nominal_to_Real,'Input|Rate of change'!L$26:L$32),INDEX('Input|Rate of change'!$C$14:$O$22,MATCH('Calc|Opex forecast'!$F24,'Input|Rate of change'!$C$14:$C$22,0),MATCH('Calc|Opex forecast'!$F25,'Input|Rate of change'!$C$14:$O$14,0)))*IF($E24="$millions",1000000,IF($E24="$000",1000,1))/IF($E25="$millions",1000000,IF($E25="$000",1000,1)) -> 0 | L25: =L24*IF($F24="nominal",LOOKUP($F25,Nominal_to_Real,'Input|Rate of change'!M$26:M$32),INDEX('Input|Rate of change'!$C$14:$O$22,MATCH('Calc|Opex forecast'!$F24,'Input|Rate of change'!$C$14:$C$22,0),MATCH('Calc|Opex forecast'!$F25,'Input|Rate of change'!$C$14:$O$14,0)))*IF($E24="$millions",1000000,IF($E24="$000",1000,1))/IF($E25="$millions",1000000,IF($E25="$000",1000,1)) -> 0 | M25: =M24*IF($F24="nominal",LOOKUP($F25,Nominal_to_Real,'Input|Rate of change'!N$26:N$32),INDEX('Input|Rate of change'!$C$14:$O$22,MATCH('Calc|Opex forecast'!$F24,'Input|Rate of change'!$C$14:$C$22,0),MATCH('Calc|Opex forecast'!$F25,'Input|Rate of change'!$C$14:$O$14,0)))*IF($E24="$millions",1000000,IF($E24="$000",1000,1))/IF($E25="$millions",1000000,IF($E25="$000",1000,1)) -> 0 | N25: =N24*IF($F24="nominal",LOOKUP($F25,Nominal_to_Real,'Input|Rate of change'!O$26:O$32),INDEX('Input|Rate of change'!$C$14:$O$22,MATCH('Calc|Opex forecast'!$F24,'Input|Rate of change'!$C$14:$C$22,0),MATCH('Calc|Opex forecast'!$F25,'Input|Rate of change'!$C$14:$O$14,0)))*IF($E24="$millions",1000000,IF($E24="$000",1000,1))/IF($E25="$millions",1000000,IF($E25="$000",1000,1)) -> 2.809124606 | O25: =O24*IF($F24="nominal",LOOKUP($F25,Nominal_to_Real,'Input|Rate of change'!P$26:P$32),INDEX('Input|Rate of change'!$C$14:$O$22,MATCH('Calc|Opex forecast'!$F24,'Input|Rate of change'!$C$14:$C$22,0),MATCH('Calc|Opex forecast'!$F25,'Input|Rate of change'!$C$14:$O$14,0)))*IF($E24="$millions",1000000,IF($E24="$000",1000,1))/IF($E25="$millions",1000000,IF($E25="$000",1000,1)) -> 0 | P25: =P24*IF($F24="nominal",LOOKUP($F25,Nominal_to_Real,'Input|Rate of change'!Q$26:Q$32),INDEX('Input|Rate of change'!$C$14:$O$22,MATCH('Calc|Opex forecast'!$F24,'Input|Rate of change'!$C$14:$C$22,0),MATCH('Calc|Opex forecast'!$F25,'Input|Rate of change'!$C$14:$O$14,0)))*IF($E24="$millions",1000000,IF($E24="$000",1000,1))/IF($E25="$millions",1000000,IF($E25="$000",1000,1)) -> 0 | Q25: =Q24*IF($F24="nominal",LOOKUP($F25,Nominal_to_Real,'Input|Rate of change'!R$26:R$32),INDEX('Input|Rate of change'!$C$14:$O$22,MATCH('Calc|Opex forecast'!$F24,'Input|Rate of change'!$C$14:$C$22,0),MATCH('Calc|Opex forecast'!$F25,'Input|Rate of change'!$C$14:$O$14,0)))*IF($E24="$millions",1000000,IF($E24="$000",1000,1))/IF($E25="$millions",1000000,IF($E25="$000",1000,1)) -> 0 | R25: =R24*IF($F24="nominal",LOOKUP($F25,Nominal_to_Real,'Input|Rate of change'!S$26:S$32),INDEX('Input|Rate of change'!$C$14:$O$22,MATCH('Calc|Opex forecast'!$F24,'Input|Rate of change'!$C$14:$C$22,0),MATCH('Calc|Opex forecast'!$F25,'Input|Rate of change'!$C$14:$O$14,0)))*IF($E24="$millions",1000000,IF($E24="$000",1000,1))/IF($E25="$millions",1000000,IF($E25="$000",1000,1)) -> 0 | S25: =S24*IF($F24="nominal",LOOKUP($F25,Nominal_to_Real,'Input|Rate of change'!T$26:T$32),INDEX('Input|Rate of change'!$C$14:$O$22,MATCH('Calc|Opex forecast'!$F24,'Input|Rate of change'!$C$14:$C$22,0),MATCH('Calc|Opex forecast'!$F25,'Input|Rate of change'!$C$14:$O$14,0)))*IF($E24="$millions",1000000,IF($E24="$000",1000,1))/IF($E25="$millions",1000000,IF($E25="$000",1000,1)) -> 0
C27: Efficiency adjustment | D27: calculated | E27: =$E$8 -> $millions | F27: =$F$8 -> 2015 | J27: =SUM(J19,J22,J25)*'Input|Reported opex'!$N$60 -> 0 | K27: =SUM(K19,K22,K25)*'Input|Reported opex'!$N$60 -> 0 | L27: =SUM(L19,L22,L25)*'Input|Reported opex'!$N$60 -> 0 | M27: =SUM(M19,M22,M25)*'Input|Reported opex'!$N$60 -> 0 | N27: =SUM(N19,N22,N25)*'Input|Reported opex'!$N$60 -> 0 | O27: =SUM(O19,O22,O25)*'Input|Reported opex'!$N$60 -> 0 | P27: =SUM(P19,P22,P25)*'Input|Reported opex'!$N$60 -> 0 | Q27: =SUM(Q19,Q22,Q25)*'Input|Reported opex'!$N$60 -> 0 | R27: =SUM(R19,R22,R25)*'Input|Reported opex'!$N$60 -> 0 | S27: =SUM(S19,S22,S25)*'Input|Reported opex'!$N$60 -> 0
C29: Efficiency adjustment final year opex | D29: calculated | E29: =$E$8 -> $millions | F29: =$F$8 -> 2015 | J29: =SUM(J19,J22,J25,J27) -> 0 | K29: 0 | L29: 0 | M29: 0 | N29: =SUM(N19,N22,N25,N27) -> 78.52880327 | O29: 0 | P29: 0 | Q29: 0 | R29: 0 | S29: =SUM(S19,S22,S25,S27) -> 0
B31: Calc | Rate of change
C33: Rate of change | D33: Source | E33: Unit | F33: Basis | J33: =IF(J$4>='Input|General'!$G$11,IF(J$4<='Input|General'!$G$12,'Input|Reported opex'!J$4,""),"") ->  | K33: =IF(K$4>='Input|General'!$G$11,IF(K$4<='Input|General'!$G$12,'Input|Reported opex'!K$4,""),"") ->  | L33: =IF(L$4>='Input|General'!$G$11,IF(L$4<='Input|General'!$G$12,'Input|Reported opex'!L$4,""),"") ->  | M33: =IF(M$4>='Input|General'!$G$11,IF(M$4<='Input|General'!$G$12,'Input|Reported opex'!M$4,""),"") ->  | N33: =IF(N$4>='Input|General'!$G$11,IF(N$4<='Input|General'!$G$12,'Input|Reported opex'!N$4,""),"") ->  | O33: =IF(O$4>='Input|General'!$G$11,IF(O$4<='Input|General'!$G$12,'Input|Reported opex'!O$4,""),"") -> 2016 | P33: =IF(P$4>='Input|General'!$G$11,IF(P$4<='Input|General'!$G$12,'Input|Reported opex'!P$4,""),"") -> 2017 | Q33: =IF(Q$4>='Input|General'!$G$11,IF(Q$4<='Input|General'!$G$12,'Input|Reported opex'!Q$4,""),"") -> 2018 | R33: =IF(R$4>='Input|General'!$G$11,IF(R$4<='Input|General'!$G$12,'Input|Reported opex'!R$4,""),"") -> 2019 | S33: =IF(S$4>='Input|General'!$G$11,IF(S$4<='Input|General'!$G$12,'Input|Reported opex'!S$4,""),"") -> 2020
C36: Forecast output change | D36: Calculated | E36: Per cent | F36: n/a | J36: =SUMPRODUCT('Input|Rate of change'!K73:K78,'Input|Rate of change'!$P$82:$P$87) -> 0 | K36: =SUMPRODUCT('Input|Rate of change'!L73:L78,'Input|Rate of change'!$P$82:$P$87) -> 0 | L36: =SUMPRODUCT('Input|Rate of change'!M73:M78,'Input|Rate of change'!$P$82:$P$87) -> 0 | M36: =SUMPRODUCT('Input|Rate of change'!N73:N78,'Input|Rate of change'!$P$82:$P$87) -> 0 | N36: =SUMPRODUCT('Input|Rate of change'!O73:O78,'Input|Rate of change'!$P$82:$P$87) -> 0 | O36: =SUMPRODUCT('Input|Rate of change'!P73:P78,'Input|Rate of change'!$P$82:$P$87) -> 0.0110169248 | P36: =SUMPRODUCT('Input|Rate of change'!Q73:Q78,'Input|Rate of change'!$P$82:$P$87) -> 0.01218686805 | Q36: =SUMPRODUCT('Input|Rate of change'!R73:R78,'Input|Rate of change'!$P$82:$P$87) -> 0.01919836555 | R36: =SUMPRODUCT('Input|Rate of change'!S73:S78,'Input|Rate of change'!$P$82:$P$87) -> 0.01444392395 | S36: =SUMPRODUCT('Input|Rate of change'!T73:T78,'Input|Rate of change'!$P$82:$P$87) -> 0.01413994149
C38: Forecast price change | D38: Calculated | E38: Per cent | F38: n/a | J38: =SUMPRODUCT('Input|Rate of change'!K38:K45,'Input|Rate of change'!K49:K56) -> 0 | K38: =SUMPRODUCT('Input|Rate of change'!L38:L45,'Input|Rate of change'!L49:L56) -> 0 | L38: =SUMPRODUCT('Input|Rate of change'!M38:M45,'Input|Rate of change'!M49:M56) -> 0 | M38: =SUMPRODUCT('Input|Rate of change'!N38:N45,'Input|Rate of change'!N49:N56) -> 0 | N38: =SUMPRODUCT('Input|Rate of change'!O38:O45,'Input|Rate of change'!O49:O56) -> 0 | O38: =SUMPRODUCT('Input|Rate of change'!P38:P45,'Input|Rate of change'!P49:P56) -> 0.00248875436 | P38: =SUMPRODUCT('Input|Rate of change'!Q38:Q45,'Input|Rate of change'!Q49:Q56) -> 0.002304043299 | Q38: =SUMPRODUCT('Input|Rate of change'!R38:R45,'Input|Rate of change'!R49:R56) -> 0.004867014171 | R38: =SUMPRODUCT('Input|Rate of change'!S38:S45,'Input|Rate of change'!S49:S56) -> 0.005935684975 | S38: =SUMPRODUCT('Input|Rate of change'!T38:T45,'Input|Rate of change'!T49:T56) -> 0.006319606002
C40: Forecast productivity change | D40: Calculated | E40: Per cent | F40: n/a | J40: ='Input|Rate of change'!K95 -> 0 | K40: ='Input|Rate of change'!L95 -> 0 | L40: ='Input|Rate of change'!M95 -> 0 | M40: ='Input|Rate of change'!N95 -> 0 | N40: ='Input|Rate of change'!O95 -> 0 | O40: ='Input|Rate of change'!P95 -> 0 | P40: ='Input|Rate of change'!Q95 -> 0 | Q40: ='Input|Rate of change'!R95 -> 0 | R40: ='Input|Rate of change'!S95 -> 0 | S40: ='Input|Rate of change'!T95 -> 0
C42: Forecast rate of change | D42: Calculated | E42: Per cent | F42: n/a | J42: =(1+J36)*(1+J38)*(1-J40)-1 -> 0 | K42: =(1+K36)*(1+K38)*(1-K40)-1 -> 0 | L42: 0 | M42: 0 | N42: 0 | O42: 0.01353309758 | P42: 0.01451899042 | Q42: 0.02415881844 | R42: 0.0204653435 | S42: 0.02054890635
B44: Calc | Step changes
C46: Step changes | D46: Source | E46: Unit | F46: Basis | J46: =IF(J$4>='Input|General'!$G$11,IF(J$4<='Input|General'!$G$12,'Input|Reported opex'!J$4,""),"") ->  | K46: =IF(K$4>='Input|General'!$G$11,IF(K$4<='Input|General'!$G$12,'Input|Reported opex'!K$4,""),"") ->  | L46: =IF(L$4>='Input|General'!$G$11,IF(L$4<='Input|General'!$G$12,'Input|Reported opex'!L$4,""),"") ->  | M46: =IF(M$4>='Input|General'!$G$11,IF(M$4<='Input|General'!$G$12,'Input|Reported opex'!M$4,""),"") ->  | N46: =IF(N$4>='Input|General'!$G$11,IF(N$4<='Input|General'!$G$12,'Input|Reported opex'!N$4,""),"") ->  | O46: =IF(O$4>='Input|General'!$G$11,IF(O$4<='Input|General'!$G$12,'Input|Reported opex'!O$4,""),"") -> 2016 | P46: =IF(P$4>='Input|General'!$G$11,IF(P$4<='Input|General'!$G$12,'Input|Reported opex'!P$4,""),"") -> 2017 | Q46: =IF(Q$4>='Input|General'!$G$11,IF(Q$4<='Input|General'!$G$12,'Input|Reported opex'!Q$4,""),"") -> 2018 | R46: =IF(R$4>='Input|General'!$G$11,IF(R$4<='Input|General'!$G$12,'Input|Reported opex'!R$4,""),"") -> 2019 | S46: =IF(S$4>='Input|General'!$G$11,IF(S$4<='Input|General'!$G$12,'Input|Reported opex'!S$4,""),"") -> 2020
C48: ='Input|Step changes'!C12 -> Customer relationship management system | D48: Calculated | E48: =$E$8 -> $millions | F48: =$F$8 -> 2015 | J48: ='Input|Step changes'!J12*IF('Input|Step changes'!$F12="nominal",LOOKUP($F48,Nominal_to_Real,'Input|Rate of change'!N$27:N$32),INDEX('Input|Rate of change'!$C$14:$O$22,MATCH('Input|Step changes'!$F12,'Input|Rate of change'!$C$14:$C$22,0),MATCH('Calc|Opex forecast'!$F48,'Input|Rate of change'!$C$14:$O$14,0)))*IF('Input|Step changes'!$E12="$millions",1000000,IF('Input|Step changes'!$E12="$000",1000,1))/IF($E48="$millions",1000000,IF($E48="$000",1000,1)) -> 0 | K48: ='Input|Step changes'!K12*IF('Input|Step changes'!$F12="nominal",LOOKUP($F48,Nominal_to_Real,'Input|Rate of change'!O$27:O$32),INDEX('Input|Rate of change'!$C$14:$O$22,MATCH('Input|Step changes'!$F12,'Input|Rate of change'!$C$14:$C$22,0),MATCH('Calc|Opex forecast'!$F48,'Input|Rate of change'!$C$14:$O$14,0)))*IF('Input|Step changes'!$E12="$millions",1000000,IF('Input|Step changes'!$E12="$000",1000,1))/IF($E48="$millions",1000000,IF($E48="$000",1000,1)) -> 0 | L48: ='Input|Step changes'!L12*IF('Input|Step changes'!$F12="nominal",LOOKUP($F48,Nominal_to_Real,'Input|Rate of change'!P$27:P$32),INDEX('Input|Rate of change'!$C$14:$O$22,MATCH('Input|Step changes'!$F12,'Input|Rate of change'!$C$14:$C$22,0),MATCH('Calc|Opex forecast'!$F48,'Input|Rate of change'!$C$14:$O$14,0)))*IF('Input|Step changes'!$E12="$millions",1000000,IF('Input|Step changes'!$E12="$000",1000,1))/IF($E48="$millions",1000000,IF($E48="$000",1000,1)) -> 0 | M48: ='Input|Step changes'!M12*IF('Input|Step changes'!$F12="nominal",LOOKUP($F48,Nominal_to_Real,'Input|Rate of change'!Q$27:Q$32),INDEX('Input|Rate of change'!$C$14:$O$22,MATCH('Input|Step changes'!$F12,'Input|Rate of change'!$C$14:$C$22,0),MATCH('Calc|Opex forecast'!$F48,'Input|Rate of change'!$C$14:$O$14,0)))*IF('Input|Step changes'!$E12="$millions",1000000,IF('Input|Step changes'!$E12="$000",1000,1))/IF($E48="$millions",1000000,IF($E48="$000",1000,1)) -> 0 | N48: ='Input|Step changes'!N12*IF('Input|Step changes'!$F12="nominal",LOOKUP($F48,Nominal_to_Real,'Input|Rate of change'!R$27:R$32),INDEX('Input|Rate of change'!$C$14:$O$22,MATCH('Input|Step changes'!$F12,'Input|Rate of change'!$C$14:$C$22,0),MATCH('Calc|Opex forecast'!$F48,'Input|Rate of change'!$C$14:$O$14,0)))*IF('Input|Step changes'!$E12="$millions",1000000,IF('Input|Step changes'!$E12="$000",1000,1))/IF($E48="$millions",1000000,IF($E48="$000",1000,1)) -> 0 | O48: ='Input|Step changes'!O12*IF('Input|Step changes'!$F12="nominal",LOOKUP($F48,Nominal_to_Real,'Input|Rate of change'!S$27:S$32),INDEX('Input|Rate of change'!$C$14:$O$22,MATCH('Input|Step changes'!$F12,'Input|Rate of change'!$C$14:$C$22,0),MATCH('Calc|Opex forecast'!$F48,'Input|Rate of change'!$C$14:$O$14,0)))*IF('Input|Step changes'!$E12="$millions",1000000,IF('Input|Step changes'!$E12="$000",1000,1))/IF($E48="$millions",1000000,IF($E48="$000",1000,1)) -> 0 | P48: ='Input|Step changes'!P12*IF('Input|Step changes'!$F12="nominal",LOOKUP($F48,Nominal_to_Real,'Input|Rate of change'!T$27:T$32),INDEX('Input|Rate of change'!$C$14:$O$22,MATCH('Input|Step changes'!$F12,'Input|Rate of change'!$C$14:$C$22,0),MATCH('Calc|Opex forecast'!$F48,'Input|Rate of change'!$C$14:$O$14,0)))*IF('Input|Step changes'!$E12="$millions",1000000,IF('Input|Step changes'!$E12="$000",1000,1))/IF($E48="$millions",1000000,IF($E48="$000",1000,1)) -> 0 | Q48: ='Input|Step changes'!Q12*IF('Input|Step changes'!$F12="nominal",LOOKUP($F48,Nominal_to_Real,'Input|Rate of change'!U$27:U$32),INDEX('Input|Rate of change'!$C$14:$O$22,MATCH('Input|Step changes'!$F12,'Input|Rate of change'!$C$14:$C$22,0),MATCH('Calc|Opex forecast'!$F48,'Input|Rate of change'!$C$14:$O$14,0)))*IF('Input|Step changes'!$E12="$millions",1000000,IF('Input|Step changes'!$E12="$000",1000,1))/IF($E48="$millions",1000000,IF($E48="$000",1000,1)) -> 0.4473265265 | R48: ='Input|Step changes'!R12*IF('Input|Step changes'!$F12="nominal",LOOKUP($F48,Nominal_to_Real,'Input|Rate of change'!V$27:V$32),INDEX('Input|Rate of change'!$C$14:$O$22,MATCH('Input|Step changes'!$F12,'Input|Rate of change'!$C$14:$C$22,0),MATCH('Calc|Opex forecast'!$F48,'Input|Rate of change'!$C$14:$O$14,0)))*IF('Input|Step changes'!$E12="$millions",1000000,IF('Input|Step changes'!$E12="$000",1000,1))/IF($E48="$millions",1000000,IF($E48="$000",1000,1)) -> 0.4473265265 | S48: ='Input|Step changes'!S12*IF('Input|Step changes'!$F12="nominal",LOOKUP($F48,Nominal_to_Real,'Input|Rate of change'!W$27:W$32),INDEX('Input|Rate of change'!$C$14:$O$22,MATCH('Input|Step changes'!$F12,'Input|Rate of change'!$C$14:$C$22,0),MATCH('Calc|Opex forecast'!$F48,'Input|Rate of change'!$C$14:$O$14,0)))*IF('Input|Step changes'!$E12="$millions",1000000,IF('Input|Step changes'!$E12="$000",1000,1))/IF($E48="$millions",1000000,IF($E48="$000",1000,1)) -> 0.4473265265
C49: ='Input|Step changes'!C13 -> GSL payments | D49: Calculated | E49: $millions | F49: =$F$8 -> 2015 | J49: ='Input|Step changes'!J13*IF('Input|Step changes'!$F13="nominal",LOOKUP($F49,Nominal_to_Real,'Input|Rate of change'!N$27:N$32),INDEX('Input|Rate of change'!$C$14:$O$22,MATCH('Input|Step changes'!$F13,'Input|Rate of change'!$C$14:$C$22,0),MATCH('Calc|Opex forecast'!$F49,'Input|Rate of change'!$C$14:$O$14,0)))*IF('Input|Step changes'!$E13="$millions",1000000,IF('Input|Step changes'!$E13="$000",1000,1))/IF($E49="$millions",1000000,IF($E49="$000",1000,1)) -> 0 | K49: ='Input|Step changes'!K13*IF('Input|Step changes'!$F13="nominal",LOOKUP($F49,Nominal_to_Real,'Input|Rate of change'!O$27:O$32),INDEX('Input|Rate of change'!$C$14:$O$22,MATCH('Input|Step changes'!$F13,'Input|Rate of change'!$C$14:$C$22,0),MATCH('Calc|Opex forecast'!$F49,'Input|Rate of change'!$C$14:$O$14,0)))*IF('Input|Step changes'!$E13="$millions",1000000,IF('Input|Step changes'!$E13="$000",1000,1))/IF($E49="$millions",1000000,IF($E49="$000",1000,1)) -> 0 | L49: ='Input|Step changes'!L13*IF('Input|Step changes'!$F13="nominal",LOOKUP($F49,Nominal_to_Real,'Input|Rate of change'!P$27:P$32),INDEX('Input|Rate of change'!$C$14:$O$22,MATCH('Input|Step changes'!$F13,'Input|Rate of change'!$C$14:$C$22,0),MATCH('Calc|Opex forecast'!$F49,'Input|Rate of change'!$C$14:$O$14,0)))*IF('Input|Step changes'!$E13="$millions",1000000,IF('Input|Step changes'!$E13="$000",1000,1))/IF($E49="$millions",1000000,IF($E49="$000",1000,1)) -> 0 | M49: ='Input|Step changes'!M13*IF('Input|Step changes'!$F13="nominal",LOOKUP($F49,Nominal_to_Real,'Input|Rate of change'!Q$27:Q$32),INDEX('Input|Rate of change'!$C$14:$O$22,MATCH('Input|Step changes'!$F13,'Input|Rate of change'!$C$14:$C$22,0),MATCH('Calc|Opex forecast'!$F49,'Input|Rate of change'!$C$14:$O$14,0)))*IF('Input|Step changes'!$E13="$millions",1000000,IF('Input|Step changes'!$E13="$000",1000,1))/IF($E49="$millions",1000000,IF($E49="$000",1000,1)) -> 0 | N49: ='Input|Step changes'!N13*IF('Input|Step changes'!$F13="nominal",LOOKUP($F49,Nominal_to_Real,'Input|Rate of change'!R$27:R$32),INDEX('Input|Rate of change'!$C$14:$O$22,MATCH('Input|Step changes'!$F13,'Input|Rate of change'!$C$14:$C$22,0),MATCH('Calc|Opex forecast'!$F49,'Input|Rate of change'!$C$14:$O$14,0)))*IF('Input|Step changes'!$E13="$millions",1000000,IF('Input|Step changes'!$E13="$000",1000,1))/IF($E49="$millions",1000000,IF($E49="$000",1000,1)) -> 0 | O49: ='Input|Step changes'!O13*IF('Input|Step changes'!$F13="nominal",LOOKUP($F49,Nominal_to_Real,'Input|Rate of change'!S$27:S$32),INDEX('Input|Rate of change'!$C$14:$O$22,MATCH('Input|Step changes'!$F13,'Input|Rate of change'!$C$14:$C$22,0),MATCH('Calc|Opex forecast'!$F49,'Input|Rate of change'!$C$14:$O$14,0)))*IF('Input|Step changes'!$E13="$millions",1000000,IF('Input|Step changes'!$E13="$000",1000,1))/IF($E49="$millions",1000000,IF($E49="$000",1000,1)) -> 0.06273308779 | P49: ='Input|Step changes'!P13*IF('Input|Step changes'!$F13="nominal",LOOKUP($F49,Nominal_to_Real,'Input|Rate of change'!T$27:T$32),INDEX('Input|Rate of change'!$C$14:$O$22,MATCH('Input|Step changes'!$F13,'Input|Rate of change'!$C$14:$C$22,0),MATCH('Calc|Opex forecast'!$F49,'Input|Rate of change'!$C$14:$O$14,0)))*IF('Input|Step changes'!$E13="$millions",1000000,IF('Input|Step changes'!$E13="$000",1000,1))/IF($E49="$millions",1000000,IF($E49="$000",1000,1)) -> 0.06273308779 | Q49: ='Input|Step changes'!Q13*IF('Input|Step changes'!$F13="nominal",LOOKUP($F49,Nominal_to_Real,'Input|Rate of change'!U$27:U$32),INDEX('Input|Rate of change'!$C$14:$O$22,MATCH('Input|Step changes'!$F13,'Input|Rate of change'!$C$14:$C$22,0),MATCH('Calc|Opex forecast'!$F49,'Input|Rate of change'!$C$14:$O$14,0)))*IF('Input|Step changes'!$E13="$millions",1000000,IF('Input|Step changes'!$E13="$000",1000,1))/IF($E49="$millions",1000000,IF($E49="$000",1000,1)) -> 0.06273308779 | R49: ='Input|Step changes'!R13*IF('Input|Step changes'!$F13="nominal",LOOKUP($F49,Nominal_to_Real,'Input|Rate of change'!V$27:V$32),INDEX('Input|Rate of change'!$C$14:$O$22,MATCH('Input|Step changes'!$F13,'Input|Rate of change'!$C$14:$C$22,0),MATCH('Calc|Opex forecast'!$F49,'Input|Rate of change'!$C$14:$O$14,0)))*IF('Input|Step changes'!$E13="$millions",1000000,IF('Input|Step changes'!$E13="$000",1000,1))/IF($E49="$millions",1000000,IF($E49="$000",1000,1)) -> 0.06273308779 | S49: ='Input|Step changes'!S13*IF('Input|Step changes'!$F13="nominal",LOOKUP($F49,Nominal_to_Real,'Input|Rate of change'!W$27:W$32),INDEX('Input|Rate of change'!$C$14:$O$22,MATCH('Input|Step changes'!$F13,'Input|Rate of change'!$C$14:$C$22,0),MATCH('Calc|Opex forecast'!$F49,'Input|Rate of change'!$C$14:$O$14,0)))*IF('Input|Step changes'!$E13="$millions",1000000,IF('Input|Step changes'!$E13="$000",1000,1))/IF($E49="$millions",1000000,IF($E49="$000",1000,1)) -> 0.06273308779
C50: ='Input|Step changes'!C14 -> Monitoring IT security | D50: Calculated | E50: $millions | F50: 2015 | J50: ='Input|Step changes'!J14*IF('Input|Step changes'!$F14="nominal",LOOKUP($F50,Nominal_to_Real,'Input|Rate of change'!N$27:N$32),INDEX('Input|Rate of change'!$C$14:$O$22,MATCH('Input|Step changes'!$F14,'Input|Rate of change'!$C$14:$C$22,0),MATCH('Calc|Opex forecast'!$F50,'Input|Rate of change'!$C$14:$O$14,0)))*IF('Input|Step changes'!$E14="$millions",1000000,IF('Input|Step changes'!$E14="$000",1000,1))/IF($E50="$millions",1000000,IF($E50="$000",1000,1)) -> 0 | K50: ='Input|Step changes'!K14*IF('Input|Step changes'!$F14="nominal",LOOKUP($F50,Nominal_to_Real,'Input|Rate of change'!O$27:O$32),INDEX('Input|Rate of change'!$C$14:$O$22,MATCH('Input|Step changes'!$F14,'Input|Rate of change'!$C$14:$C$22,0),MATCH('Calc|Opex forecast'!$F50,'Input|Rate of change'!$C$14:$O$14,0)))*IF('Input|Step changes'!$E14="$millions",1000000,IF('Input|Step changes'!$E14="$000",1000,1))/IF($E50="$millions",1000000,IF($E50="$000",1000,1)) -> 0 | L50: ='Input|Step changes'!L14*IF('Input|Step changes'!$F14="nominal",LOOKUP($F50,Nominal_to_Real,'Input|Rate of change'!P$27:P$32),INDEX('Input|Rate of change'!$C$14:$O$22,MATCH('Input|Step changes'!$F14,'Input|Rate of change'!$C$14:$C$22,0),MATCH('Calc|Opex forecast'!$F50,'Input|Rate of change'!$C$14:$O$14,0)))*IF('Input|Step changes'!$E14="$millions",1000000,IF('Input|Step changes'!$E14="$000",1000,1))/IF($E50="$millions",1000000,IF($E50="$000",1000,1)) -> 0 | M50: ='Input|Step changes'!M14*IF('Input|Step changes'!$F14="nominal",LOOKUP($F50,Nominal_to_Real,'Input|Rate of change'!Q$27:Q$32),INDEX('Input|Rate of change'!$C$14:$O$22,MATCH('Input|Step changes'!$F14,'Input|Rate of change'!$C$14:$C$22,0),MATCH('Calc|Opex forecast'!$F50,'Input|Rate of change'!$C$14:$O$14,0)))*IF('Input|Step changes'!$E14="$millions",1000000,IF('Input|Step changes'!$E14="$000",1000,1))/IF($E50="$millions",1000000,IF($E50="$000",1000,1)) -> 0 | N50: ='Input|Step changes'!N14*IF('Input|Step changes'!$F14="nominal",LOOKUP($F50,Nominal_to_Real,'Input|Rate of change'!R$27:R$32),INDEX('Input|Rate of change'!$C$14:$O$22,MATCH('Input|Step changes'!$F14,'Input|Rate of change'!$C$14:$C$22,0),MATCH('Calc|Opex forecast'!$F50,'Input|Rate of change'!$C$14:$O$14,0)))*IF('Input|Step changes'!$E14="$millions",1000000,IF('Input|Step changes'!$E14="$000",1000,1))/IF($E50="$millions",1000000,IF($E50="$000",1000,1)) -> 0 | O50: ='Input|Step changes'!O14*IF('Input|Step changes'!$F14="nominal",LOOKUP($F50,Nominal_to_Real,'Input|Rate of change'!S$27:S$32),INDEX('Input|Rate of change'!$C$14:$O$22,MATCH('Input|Step changes'!$F14,'Input|Rate of change'!$C$14:$C$22,0),MATCH('Calc|Opex forecast'!$F50,'Input|Rate of change'!$C$14:$O$14,0)))*IF('Input|Step changes'!$E14="$millions",1000000,IF('Input|Step changes'!$E14="$000",1000,1))/IF($E50="$millions",1000000,IF($E50="$000",1000,1)) -> 0 | P50: ='Input|Step changes'!P14*IF('Input|Step changes'!$F14="nominal",LOOKUP($F50,Nominal_to_Real,'Input|Rate of change'!T$27:T$32),INDEX('Input|Rate of change'!$C$14:$O$22,MATCH('Input|Step changes'!$F14,'Input|Rate of change'!$C$14:$C$22,0),MATCH('Calc|Opex forecast'!$F50,'Input|Rate of change'!$C$14:$O$14,0)))*IF('Input|Step changes'!$E14="$millions",1000000,IF('Input|Step changes'!$E14="$000",1000,1))/IF($E50="$millions",1000000,IF($E50="$000",1000,1)) -> 0 | Q50: ='Input|Step changes'!Q14*IF('Input|Step changes'!$F14="nominal",LOOKUP($F50,Nominal_to_Real,'Input|Rate of change'!U$27:U$32),INDEX('Input|Rate of change'!$C$14:$O$22,MATCH('Input|Step changes'!$F14,'Input|Rate of change'!$C$14:$C$22,0),MATCH('Calc|Opex forecast'!$F50,'Input|Rate of change'!$C$14:$O$14,0)))*IF('Input|Step changes'!$E14="$millions",1000000,IF('Input|Step changes'!$E14="$000",1000,1))/IF($E50="$millions",1000000,IF($E50="$000",1000,1)) -> 0 | R50: ='Input|Step changes'!R14*IF('Input|Step changes'!$F14="nominal",LOOKUP($F50,Nominal_to_Real,'Input|Rate of change'!V$27:V$32),INDEX('Input|Rate of change'!$C$14:$O$22,MATCH('Input|Step changes'!$F14,'Input|Rate of change'!$C$14:$C$22,0),MATCH('Calc|Opex forecast'!$F50,'Input|Rate of change'!$C$14:$O$14,0)))*IF('Input|Step changes'!$E14="$millions",1000000,IF('Input|Step changes'!$E14="$000",1000,1))/IF($E50="$millions",1000000,IF($E50="$000",1000,1)) -> 0 | S50: ='Input|Step changes'!S14*IF('Input|Step changes'!$F14="nominal",LOOKUP($F50,Nominal_to_Real,'Input|Rate of change'!W$27:W$32),INDEX('Input|Rate of change'!$C$14:$O$22,MATCH('Input|Step changes'!$F14,'Input|Rate of change'!$C$14:$C$22,0),MATCH('Calc|Opex forecast'!$F50,'Input|Rate of change'!$C$14:$O$14,0)))*IF('Input|Step changes'!$E14="$millions",1000000,IF('Input|Step changes'!$E14="$000",1000,1))/IF($E50="$millions",1000000,IF($E50="$000",1000,1)) -> 0
C51: ='Input|Step changes'!C15 -> Mobile devices | D51: Calculated | E51: $millions | F51: 2015 | J51: ='Input|Step changes'!J15*IF('Input|Step changes'!$F15="nominal",LOOKUP($F51,Nominal_to_Real,'Input|Rate of change'!N$27:N$32),INDEX('Input|Rate of change'!$C$14:$O$22,MATCH('Input|Step changes'!$F15,'Input|Rate of change'!$C$14:$C$22,0),MATCH('Calc|Opex forecast'!$F51,'Input|Rate of change'!$C$14:$O$14,0)))*IF('Input|Step changes'!$E15="$millions",1000000,IF('Input|Step changes'!$E15="$000",1000,1))/IF($E51="$millions",1000000,IF($E51="$000",1000,1)) -> 0 | K51: ='Input|Step changes'!K15*IF('Input|Step changes'!$F15="nominal",LOOKUP($F51,Nominal_to_Real,'Input|Rate of change'!O$27:O$32),INDEX('Input|Rate of change'!$C$14:$O$22,MATCH('Input|Step changes'!$F15,'Input|Rate of change'!$C$14:$C$22,0),MATCH('Calc|Opex forecast'!$F51,'Input|Rate of change'!$C$14:$O$14,0)))*IF('Input|Step changes'!$E15="$millions",1000000,IF('Input|Step changes'!$E15="$000",1000,1))/IF($E51="$millions",1000000,IF($E51="$000",1000,1)) -> 0 | L51: ='Input|Step changes'!L15*IF('Input|Step changes'!$F15="nominal",LOOKUP($F51,Nominal_to_Real,'Input|Rate of change'!P$27:P$32),INDEX('Input|Rate of change'!$C$14:$O$22,MATCH('Input|Step changes'!$F15,'Input|Rate of change'!$C$14:$C$22,0),MATCH('Calc|Opex forecast'!$F51,'Input|Rate of change'!$C$14:$O$14,0)))*IF('Input|Step changes'!$E15="$millions",1000000,IF('Input|Step changes'!$E15="$000",1000,1))/IF($E51="$millions",1000000,IF($E51="$000",1000,1)) -> 0 | M51: ='Input|Step changes'!M15*IF('Input|Step changes'!$F15="nominal",LOOKUP($F51,Nominal_to_Real,'Input|Rate of change'!Q$27:Q$32),INDEX('Input|Rate of change'!$C$14:$O$22,MATCH('Input|Step changes'!$F15,'Input|Rate of change'!$C$14:$C$22,0),MATCH('Calc|Opex forecast'!$F51,'Input|Rate of change'!$C$14:$O$14,0)))*IF('Input|Step changes'!$E15="$millions",1000000,IF('Input|Step changes'!$E15="$000",1000,1))/IF($E51="$millions",1000000,IF($E51="$000",1000,1)) -> 0 | N51: ='Input|Step changes'!N15*IF('Input|Step changes'!$F15="nominal",LOOKUP($F51,Nominal_to_Real,'Input|Rate of change'!R$27:R$32),INDEX('Input|Rate of change'!$C$14:$O$22,MATCH('Input|Step changes'!$F15,'Input|Rate of change'!$C$14:$C$22,0),MATCH('Calc|Opex forecast'!$F51,'Input|Rate of change'!$C$14:$O$14,0)))*IF('Input|Step changes'!$E15="$millions",1000000,IF('Input|Step changes'!$E15="$000",1000,1))/IF($E51="$millions",1000000,IF($E51="$000",1000,1)) -> 0 | O51: ='Input|Step changes'!O15*IF('Input|Step changes'!$F15="nominal",LOOKUP($F51,Nominal_to_Real,'Input|Rate of change'!S$27:S$32),INDEX('Input|Rate of change'!$C$14:$O$22,MATCH('Input|Step changes'!$F15,'Input|Rate of change'!$C$14:$C$22,0),MATCH('Calc|Opex forecast'!$F51,'Input|Rate of change'!$C$14:$O$14,0)))*IF('Input|Step changes'!$E15="$millions",1000000,IF('Input|Step changes'!$E15="$000",1000,1))/IF($E51="$millions",1000000,IF($E51="$000",1000,1)) -> 0.3822616071 | P51: ='Input|Step changes'!P15*IF('Input|Step changes'!$F15="nominal",LOOKUP($F51,Nominal_to_Real,'Input|Rate of change'!T$27:T$32),INDEX('Input|Rate of change'!$C$14:$O$22,MATCH('Input|Step changes'!$F15,'Input|Rate of change'!$C$14:$C$22,0),MATCH('Calc|Opex forecast'!$F51,'Input|Rate of change'!$C$14:$O$14,0)))*IF('Input|Step changes'!$E15="$millions",1000000,IF('Input|Step changes'!$E15="$000",1000,1))/IF($E51="$millions",1000000,IF($E51="$000",1000,1)) -> 0.1343587372 | Q51: ='Input|Step changes'!Q15*IF('Input|Step changes'!$F15="nominal",LOOKUP($F51,Nominal_to_Real,'Input|Rate of change'!U$27:U$32),INDEX('Input|Rate of change'!$C$14:$O$22,MATCH('Input|Step changes'!$F15,'Input|Rate of change'!$C$14:$C$22,0),MATCH('Calc|Opex forecast'!$F51,'Input|Rate of change'!$C$14:$O$14,0)))*IF('Input|Step changes'!$E15="$millions",1000000,IF('Input|Step changes'!$E15="$000",1000,1))/IF($E51="$millions",1000000,IF($E51="$000",1000,1)) -> 0.414327739 | R51: ='Input|Step changes'!R15*IF('Input|Step changes'!$F15="nominal",LOOKUP($F51,Nominal_to_Real,'Input|Rate of change'!V$27:V$32),INDEX('Input|Rate of change'!$C$14:$O$22,MATCH('Input|Step changes'!$F15,'Input|Rate of change'!$C$14:$C$22,0),MATCH('Calc|Opex forecast'!$F51,'Input|Rate of change'!$C$14:$O$14,0)))*IF('Input|Step changes'!$E15="$millions",1000000,IF('Input|Step changes'!$E15="$000",1000,1))/IF($E51="$millions",1000000,IF($E51="$000",1000,1)) -> 0.1641000888 | S51: ='Input|Step changes'!S15*IF('Input|Step changes'!$F15="nominal",LOOKUP($F51,Nominal_to_Real,'Input|Rate of change'!W$27:W$32),INDEX('Input|Rate of change'!$C$14:$O$22,MATCH('Input|Step changes'!$F15,'Input|Rate of change'!$C$14:$C$22,0),MATCH('Calc|Opex forecast'!$F51,'Input|Rate of change'!$C$14:$O$14,0)))*IF('Input|Step changes'!$E15="$millions",1000000,IF('Input|Step changes'!$E15="$000",1000,1))/IF($E51="$millions",1000000,IF($E51="$000",1000,1)) -> 0.4398323267
C52: ='Input|Step changes'!C16 -> Lease renewals | D52: Calculated | E52: $millions | F52: 2015 | J52: ='Input|Step changes'!J16*IF('Input|Step changes'!$F16="nominal",LOOKUP($F52,Nominal_to_Real,'Input|Rate of change'!N$27:N$32),INDEX('Input|Rate of change'!$C$14:$O$22,MATCH('Input|Step changes'!$F16,'Input|Rate of change'!$C$14:$C$22,0),MATCH('Calc|Opex forecast'!$F52,'Input|Rate of change'!$C$14:$O$14,0)))*IF('Input|Step changes'!$E16="$millions",1000000,IF('Input|Step changes'!$E16="$000",1000,1))/IF($E52="$millions",1000000,IF($E52="$000",1000,1)) -> 0 | K52: ='Input|Step changes'!K16*IF('Input|Step changes'!$F16="nominal",LOOKUP($F52,Nominal_to_Real,'Input|Rate of change'!O$27:O$32),INDEX('Input|Rate of change'!$C$14:$O$22,MATCH('Input|Step changes'!$F16,'Input|Rate of change'!$C$14:$C$22,0),MATCH('Calc|Opex forecast'!$F52,'Input|Rate of change'!$C$14:$O$14,0)))*IF('Input|Step changes'!$E16="$millions",1000000,IF('Input|Step changes'!$E16="$000",1000,1))/IF($E52="$millions",1000000,IF($E52="$000",1000,1)) -> 0 | L52: ='Input|Step changes'!L16*IF('Input|Step changes'!$F16="nominal",LOOKUP($F52,Nominal_to_Real,'Input|Rate of change'!P$27:P$32),INDEX('Input|Rate of change'!$C$14:$O$22,MATCH('Input|Step changes'!$F16,'Input|Rate of change'!$C$14:$C$22,0),MATCH('Calc|Opex forecast'!$F52,'Input|Rate of change'!$C$14:$O$14,0)))*IF('Input|Step changes'!$E16="$millions",1000000,IF('Input|Step changes'!$E16="$000",1000,1))/IF($E52="$millions",1000000,IF($E52="$000",1000,1)) -> 0 | M52: ='Input|Step changes'!M16*IF('Input|Step changes'!$F16="nominal",LOOKUP($F52,Nominal_to_Real,'Input|Rate of change'!Q$27:Q$32),INDEX('Input|Rate of change'!$C$14:$O$22,MATCH('Input|Step changes'!$F16,'Input|Rate of change'!$C$14:$C$22,0),MATCH('Calc|Opex forecast'!$F52,'Input|Rate of change'!$C$14:$O$14,0)))*IF('Input|Step changes'!$E16="$millions",1000000,IF('Input|Step changes'!$E16="$000",1000,1))/IF($E52="$millions",1000000,IF($E52="$000",1000,1)) -> 0 | N52: ='Input|Step changes'!N16*IF('Input|Step changes'!$F16="nominal",LOOKUP($F52,Nominal_to_Real,'Input|Rate of change'!R$27:R$32),INDEX('Input|Rate of change'!$C$14:$O$22,MATCH('Input|Step changes'!$F16,'Input|Rate of change'!$C$14:$C$22,0),MATCH('Calc|Opex forecast'!$F52,'Input|Rate of change'!$C$14:$O$14,0)))*IF('Input|Step changes'!$E16="$millions",1000000,IF('Input|Step changes'!$E16="$000",1000,1))/IF($E52="$millions",1000000,IF($E52="$000",1000,1)) -> 0 | O52: ='Input|Step changes'!O16*IF('Input|Step changes'!$F16="nominal",LOOKUP($F52,Nominal_to_Real,'Input|Rate of change'!S$27:S$32),INDEX('Input|Rate of change'!$C$14:$O$22,MATCH('Input|Step changes'!$F16,'Input|Rate of change'!$C$14:$C$22,0),MATCH('Calc|Opex forecast'!$F52,'Input|Rate of change'!$C$14:$O$14,0)))*IF('Input|Step changes'!$E16="$millions",1000000,IF('Input|Step changes'!$E16="$000",1000,1))/IF($E52="$millions",1000000,IF($E52="$000",1000,1)) -> 1.395162 | P52: ='Input|Step changes'!P16*IF('Input|Step changes'!$F16="nominal",LOOKUP($F52,Nominal_to_Real,'Input|Rate of change'!T$27:T$32),INDEX('Input|Rate of change'!$C$14:$O$22,MATCH('Input|Step changes'!$F16,'Input|Rate of change'!$C$14:$C$22,0),MATCH('Calc|Opex forecast'!$F52,'Input|Rate of change'!$C$14:$O$14,0)))*IF('Input|Step changes'!$E16="$millions",1000000,IF('Input|Step changes'!$E16="$000",1000,1))/IF($E52="$millions",1000000,IF($E52="$000",1000,1)) -> 1.395162 | Q52: ='Input|Step changes'!Q16*IF('Input|Step changes'!$F16="nominal",LOOKUP($F52,Nominal_to_Real,'Input|Rate of change'!U$27:U$32),INDEX('Input|Rate of change'!$C$14:$O$22,MATCH('Input|Step changes'!$F16,'Input|Rate of change'!$C$14:$C$22,0),MATCH('Calc|Opex forecast'!$F52,'Input|Rate of change'!$C$14:$O$14,0)))*IF('Input|Step changes'!$E16="$millions",1000000,IF('Input|Step changes'!$E16="$000",1000,1))/IF($E52="$millions",1000000,IF($E52="$000",1000,1)) -> 1.395162 | R52: ='Input|Step changes'!R16*IF('Input|Step changes'!$F16="nominal",LOOKUP($F52,Nominal_to_Real,'Input|Rate of change'!V$27:V$32),INDEX('Input|Rate of change'!$C$14:$O$22,MATCH('Input|Step changes'!$F16,'Input|Rate of change'!$C$14:$C$22,0),MATCH('Calc|Opex forecast'!$F52,'Input|Rate of change'!$C$14:$O$14,0)))*IF('Input|Step changes'!$E16="$millions",1000000,IF('Input|Step changes'!$E16="$000",1000,1))/IF($E52="$millions",1000000,IF($E52="$000",1000,1)) -> 1.395162 | S52: ='Input|Step changes'!S16*IF('Input|Step changes'!$F16="nominal",LOOKUP($F52,Nominal_to_Real,'Input|Rate of change'!W$27:W$32),INDEX('Input|Rate of change'!$C$14:$O$22,MATCH('Input|Step changes'!$F16,'Input|Rate of change'!$C$14:$C$22,0),MATCH('Calc|Opex forecast'!$F52,'Input|Rate of change'!$C$14:$O$14,0)))*IF('Input|Step changes'!$E16="$millions",1000000,IF('Input|Step changes'!$E16="$000",1000,1))/IF($E52="$millions",1000000,IF($E52="$000",1000,1)) -> 1.395162
C53: ='Input|Step changes'!C17 -> Decommissioning zone substations | D53: Calculated | E53: $millions | F53: 2015 | J53: ='Input|Step changes'!J17*IF('Input|Step changes'!$F17="nominal",LOOKUP($F53,Nominal_to_Real,'Input|Rate of change'!N$27:N$32),INDEX('Input|Rate of change'!$C$14:$O$22,MATCH('Input|Step changes'!$F17,'Input|Rate of change'!$C$14:$C$22,0),MATCH('Calc|Opex forecast'!$F53,'Input|Rate of change'!$C$14:$O$14,0)))*IF('Input|Step changes'!$E17="$millions",1000000,IF('Input|Step changes'!$E17="$000",1000,1))/IF($E53="$millions",1000000,IF($E53="$000",1000,1)) -> 0 | K53: ='Input|Step changes'!K17*IF('Input|Step changes'!$F17="nominal",LOOKUP($F53,Nominal_to_Real,'Input|Rate of change'!O$27:O$32),INDEX('Input|Rate of change'!$C$14:$O$22,MATCH('Input|Step changes'!$F17,'Input|Rate of change'!$C$14:$C$22,0),MATCH('Calc|Opex forecast'!$F53,'Input|Rate of change'!$C$14:$O$14,0)))*IF('Input|Step changes'!$E17="$millions",1000000,IF('Input|Step changes'!$E17="$000",1000,1))/IF($E53="$millions",1000000,IF($E53="$000",1000,1)) -> 0 | L53: ='Input|Step changes'!L17*IF('Input|Step changes'!$F17="nominal",LOOKUP($F53,Nominal_to_Real,'Input|Rate of change'!P$27:P$32),INDEX('Input|Rate of change'!$C$14:$O$22,MATCH('Input|Step changes'!$F17,'Input|Rate of change'!$C$14:$C$22,0),MATCH('Calc|Opex forecast'!$F53,'Input|Rate of change'!$C$14:$O$14,0)))*IF('Input|Step changes'!$E17="$millions",1000000,IF('Input|Step changes'!$E17="$000",1000,1))/IF($E53="$millions",1000000,IF($E53="$000",1000,1)) -> 0 | M53: ='Input|Step changes'!M17*IF('Input|Step changes'!$F17="nominal",LOOKUP($F53,Nominal_to_Real,'Input|Rate of change'!Q$27:Q$32),INDEX('Input|Rate of change'!$C$14:$O$22,MATCH('Input|Step changes'!$F17,'Input|Rate of change'!$C$14:$C$22,0),MATCH('Calc|Opex forecast'!$F53,'Input|Rate of change'!$C$14:$O$14,0)))*IF('Input|Step changes'!$E17="$millions",1000000,IF('Input|Step changes'!$E17="$000",1000,1))/IF($E53="$millions",1000000,IF($E53="$000",1000,1)) -> 0 | N53: ='Input|Step changes'!N17*IF('Input|Step changes'!$F17="nominal",LOOKUP($F53,Nominal_to_Real,'Input|Rate of change'!R$27:R$32),INDEX('Input|Rate of change'!$C$14:$O$22,MATCH('Input|Step changes'!$F17,'Input|Rate of change'!$C$14:$C$22,0),MATCH('Calc|Opex forecast'!$F53,'Input|Rate of change'!$C$14:$O$14,0)))*IF('Input|Step changes'!$E17="$millions",1000000,IF('Input|Step changes'!$E17="$000",1000,1))/IF($E53="$millions",1000000,IF($E53="$000",1000,1)) -> 0 | O53: ='Input|Step changes'!O17*IF('Input|Step changes'!$F17="nominal",LOOKUP($F53,Nominal_to_Real,'Input|Rate of change'!S$27:S$32),INDEX('Input|Rate of change'!$C$14:$O$22,MATCH('Input|Step changes'!$F17,'Input|Rate of change'!$C$14:$C$22,0),MATCH('Calc|Opex forecast'!$F53,'Input|Rate of change'!$C$14:$O$14,0)))*IF('Input|Step changes'!$E17="$millions",1000000,IF('Input|Step changes'!$E17="$000",1000,1))/IF($E53="$millions",1000000,IF($E53="$000",1000,1)) -> 0 | P53: ='Input|Step changes'!P17*IF('Input|Step changes'!$F17="nominal",LOOKUP($F53,Nominal_to_Real,'Input|Rate of change'!T$27:T$32),INDEX('Input|Rate of change'!$C$14:$O$22,MATCH('Input|Step changes'!$F17,'Input|Rate of change'!$C$14:$C$22,0),MATCH('Calc|Opex forecast'!$F53,'Input|Rate of change'!$C$14:$O$14,0)))*IF('Input|Step changes'!$E17="$millions",1000000,IF('Input|Step changes'!$E17="$000",1000,1))/IF($E53="$millions",1000000,IF($E53="$000",1000,1)) -> 0 | Q53: ='Input|Step changes'!Q17*IF('Input|Step changes'!$F17="nominal",LOOKUP($F53,Nominal_to_Real,'Input|Rate of change'!U$27:U$32),INDEX('Input|Rate of change'!$C$14:$O$22,MATCH('Input|Step changes'!$F17,'Input|Rate of change'!$C$14:$C$22,0),MATCH('Calc|Opex forecast'!$F53,'Input|Rate of change'!$C$14:$O$14,0)))*IF('Input|Step changes'!$E17="$millions",1000000,IF('Input|Step changes'!$E17="$000",1000,1))/IF($E53="$millions",1000000,IF($E53="$000",1000,1)) -> 0 | R53: ='Input|Step changes'!R17*IF('Input|Step changes'!$F17="nominal",LOOKUP($F53,Nominal_to_Real,'Input|Rate of change'!V$27:V$32),INDEX('Input|Rate of change'!$C$14:$O$22,MATCH('Input|Step changes'!$F17,'Input|Rate of change'!$C$14:$C$22,0),MATCH('Calc|Opex forecast'!$F53,'Input|Rate of change'!$C$14:$O$14,0)))*IF('Input|Step changes'!$E17="$millions",1000000,IF('Input|Step changes'!$E17="$000",1000,1))/IF($E53="$millions",1000000,IF($E53="$000",1000,1)) -> 0 | S53: ='Input|Step changes'!S17*IF('Input|Step changes'!$F17="nominal",LOOKUP($F53,Nominal_to_Real,'Input|Rate of change'!W$27:W$32),INDEX('Input|Rate of change'!$C$14:$O$22,MATCH('Input|Step changes'!$F17,'Input|Rate of change'!$C$14:$C$22,0),MATCH('Calc|Opex forecast'!$F53,'Input|Rate of change'!$C$14:$O$14,0)))*IF('Input|Step changes'!$E17="$millions",1000000,IF('Input|Step changes'!$E17="$000",1000,1))/IF($E53="$millions",1000000,IF($E53="$000",1000,1)) -> 0
C54: ='Input|Step changes'!C18 -> Introduction of cost reflective tariffs | D54: Calculated | E54: $millions | F54: 2015 | J54: ='Input|Step changes'!J18*IF('Input|Step changes'!$F18="nominal",LOOKUP($F54,Nominal_to_Real,'Input|Rate of change'!N$27:N$32),INDEX('Input|Rate of change'!$C$14:$O$22,MATCH('Input|Step changes'!$F18,'Input|Rate of change'!$C$14:$C$22,0),MATCH('Calc|Opex forecast'!$F54,'Input|Rate of change'!$C$14:$O$14,0)))*IF('Input|Step changes'!$E18="$millions",1000000,IF('Input|Step changes'!$E18="$000",1000,1))/IF($E54="$millions",1000000,IF($E54="$000",1000,1)) -> 0 | K54: ='Input|Step changes'!K18*IF('Input|Step changes'!$F18="nominal",LOOKUP($F54,Nominal_to_Real,'Input|Rate of change'!O$27:O$32),INDEX('Input|Rate of change'!$C$14:$O$22,MATCH('Input|Step changes'!$F18,'Input|Rate of change'!$C$14:$C$22,0),MATCH('Calc|Opex forecast'!$F54,'Input|Rate of change'!$C$14:$O$14,0)))*IF('Input|Step changes'!$E18="$millions",1000000,IF('Input|Step changes'!$E18="$000",1000,1))/IF($E54="$millions",1000000,IF($E54="$000",1000,1)) -> 0 | L54: ='Input|Step changes'!L18*IF('Input|Step changes'!$F18="nominal",LOOKUP($F54,Nominal_to_Real,'Input|Rate of change'!P$27:P$32),INDEX('Input|Rate of change'!$C$14:$O$22,MATCH('Input|Step changes'!$F18,'Input|Rate of change'!$C$14:$C$22,0),MATCH('Calc|Opex forecast'!$F54,'Input|Rate of change'!$C$14:$O$14,0)))*IF('Input|Step changes'!$E18="$millions",1000000,IF('Input|Step changes'!$E18="$000",1000,1))/IF($E54="$millions",1000000,IF($E54="$000",1000,1)) -> 0 | M54: ='Input|Step changes'!M18*IF('Input|Step changes'!$F18="nominal",LOOKUP($F54,Nominal_to_Real,'Input|Rate of change'!Q$27:Q$32),INDEX('Input|Rate of change'!$C$14:$O$22,MATCH('Input|Step changes'!$F18,'Input|Rate of change'!$C$14:$C$22,0),MATCH('Calc|Opex forecast'!$F54,'Input|Rate of change'!$C$14:$O$14,0)))*IF('Input|Step changes'!$E18="$millions",1000000,IF('Input|Step changes'!$E18="$000",1000,1))/IF($E54="$millions",1000000,IF($E54="$000",1000,1)) -> 0 | N54: ='Input|Step changes'!N18*IF('Input|Step changes'!$F18="nominal",LOOKUP($F54,Nominal_to_Real,'Input|Rate of change'!R$27:R$32),INDEX('Input|Rate of change'!$C$14:$O$22,MATCH('Input|Step changes'!$F18,'Input|Rate of change'!$C$14:$C$22,0),MATCH('Calc|Opex forecast'!$F54,'Input|Rate of change'!$C$14:$O$14,0)))*IF('Input|Step changes'!$E18="$millions",1000000,IF('Input|Step changes'!$E18="$000",1000,1))/IF($E54="$millions",1000000,IF($E54="$000",1000,1)) -> 0 | O54: ='Input|Step changes'!O18*IF('Input|Step changes'!$F18="nominal",LOOKUP($F54,Nominal_to_Real,'Input|Rate of change'!S$27:S$32),INDEX('Input|Rate of change'!$C$14:$O$22,MATCH('Input|Step changes'!$F18,'Input|Rate of change'!$C$14:$C$22,0),MATCH('Calc|Opex forecast'!$F54,'Input|Rate of change'!$C$14:$O$14,0)))*IF('Input|Step changes'!$E18="$millions",1000000,IF('Input|Step changes'!$E18="$000",1000,1))/IF($E54="$millions",1000000,IF($E54="$000",1000,1)) -> 0 | P54: ='Input|Step changes'!P18*IF('Input|Step changes'!$F18="nominal",LOOKUP($F54,Nominal_to_Real,'Input|Rate of change'!T$27:T$32),INDEX('Input|Rate of change'!$C$14:$O$22,MATCH('Input|Step changes'!$F18,'Input|Rate of change'!$C$14:$C$22,0),MATCH('Calc|Opex forecast'!$F54,'Input|Rate of change'!$C$14:$O$14,0)))*IF('Input|Step changes'!$E18="$millions",1000000,IF('Input|Step changes'!$E18="$000",1000,1))/IF($E54="$millions",1000000,IF($E54="$000",1000,1)) -> 0 | Q54: ='Input|Step changes'!Q18*IF('Input|Step changes'!$F18="nominal",LOOKUP($F54,Nominal_to_Real,'Input|Rate of change'!U$27:U$32),INDEX('Input|Rate of change'!$C$14:$O$22,MATCH('Input|Step changes'!$F18,'Input|Rate of change'!$C$14:$C$22,0),MATCH('Calc|Opex forecast'!$F54,'Input|Rate of change'!$C$14:$O$14,0)))*IF('Input|Step changes'!$E18="$millions",1000000,IF('Input|Step changes'!$E18="$000",1000,1))/IF($E54="$millions",1000000,IF($E54="$000",1000,1)) -> 0 | R54: ='Input|Step changes'!R18*IF('Input|Step changes'!$F18="nominal",LOOKUP($F54,Nominal_to_Real,'Input|Rate of change'!V$27:V$32),INDEX('Input|Rate of change'!$C$14:$O$22,MATCH('Input|Step changes'!$F18,'Input|Rate of change'!$C$14:$C$22,0),MATCH('Calc|Opex forecast'!$F54,'Input|Rate of change'!$C$14:$O$14,0)))*IF('Input|Step changes'!$E18="$millions",1000000,IF('Input|Step changes'!$E18="$000",1000,1))/IF($E54="$millions",1000000,IF($E54="$000",1000,1)) -> 0 | S54: ='Input|Step changes'!S18*IF('Input|Step changes'!$F18="nominal",LOOKUP($F54,Nominal_to_Real,'Input|Rate of change'!W$27:W$32),INDEX('Input|Rate of change'!$C$14:$O$22,MATCH('Input|Step changes'!$F18,'Input|Rate of change'!$C$14:$C$22,0),MATCH('Calc|Opex forecast'!$F54,'Input|Rate of change'!$C$14:$O$14,0)))*IF('Input|Step changes'!$E18="$millions",1000000,IF('Input|Step changes'!$E18="$000",1000,1))/IF($E54="$millions",1000000,IF($E54="$000",1000,1)) -> 0
C55: ='Input|Step changes'!C19 -> RIN compliance | D55: Calculated | E55: $millions | F55: 2015 | J55: ='Input|Step changes'!J19*IF('Input|Step changes'!$F19="nominal",LOOKUP($F55,Nominal_to_Real,'Input|Rate of change'!N$27:N$32),INDEX('Input|Rate of change'!$C$14:$O$22,MATCH('Input|Step changes'!$F19,'Input|Rate of change'!$C$14:$C$22,0),MATCH('Calc|Opex forecast'!$F55,'Input|Rate of change'!$C$14:$O$14,0)))*IF('Input|Step changes'!$E19="$millions",1000000,IF('Input|Step changes'!$E19="$000",1000,1))/IF($E55="$millions",1000000,IF($E55="$000",1000,1)) -> 0 | K55: ='Input|Step changes'!K19*IF('Input|Step changes'!$F19="nominal",LOOKUP($F55,Nominal_to_Real,'Input|Rate of change'!O$27:O$32),INDEX('Input|Rate of change'!$C$14:$O$22,MATCH('Input|Step changes'!$F19,'Input|Rate of change'!$C$14:$C$22,0),MATCH('Calc|Opex forecast'!$F55,'Input|Rate of change'!$C$14:$O$14,0)))*IF('Input|Step changes'!$E19="$millions",1000000,IF('Input|Step changes'!$E19="$000",1000,1))/IF($E55="$millions",1000000,IF($E55="$000",1000,1)) -> 0 | L55: ='Input|Step changes'!L19*IF('Input|Step changes'!$F19="nominal",LOOKUP($F55,Nominal_to_Real,'Input|Rate of change'!P$27:P$32),INDEX('Input|Rate of change'!$C$14:$O$22,MATCH('Input|Step changes'!$F19,'Input|Rate of change'!$C$14:$C$22,0),MATCH('Calc|Opex forecast'!$F55,'Input|Rate of change'!$C$14:$O$14,0)))*IF('Input|Step changes'!$E19="$millions",1000000,IF('Input|Step changes'!$E19="$000",1000,1))/IF($E55="$millions",1000000,IF($E55="$000",1000,1)) -> 0 | M55: ='Input|Step changes'!M19*IF('Input|Step changes'!$F19="nominal",LOOKUP($F55,Nominal_to_Real,'Input|Rate of change'!Q$27:Q$32),INDEX('Input|Rate of change'!$C$14:$O$22,MATCH('Input|Step changes'!$F19,'Input|Rate of change'!$C$14:$C$22,0),MATCH('Calc|Opex forecast'!$F55,'Input|Rate of change'!$C$14:$O$14,0)))*IF('Input|Step changes'!$E19="$millions",1000000,IF('Input|Step changes'!$E19="$000",1000,1))/IF($E55="$millions",1000000,IF($E55="$000",1000,1)) -> 0 | N55: ='Input|Step changes'!N19*IF('Input|Step changes'!$F19="nominal",LOOKUP($F55,Nominal_to_Real,'Input|Rate of change'!R$27:R$32),INDEX('Input|Rate of change'!$C$14:$O$22,MATCH('Input|Step changes'!$F19,'Input|Rate of change'!$C$14:$C$22,0),MATCH('Calc|Opex forecast'!$F55,'Input|Rate of change'!$C$14:$O$14,0)))*IF('Input|Step changes'!$E19="$millions",1000000,IF('Input|Step changes'!$E19="$000",1000,1))/IF($E55="$millions",1000000,IF($E55="$000",1000,1)) -> 0 | O55: ='Input|Step changes'!O19*IF('Input|Step changes'!$F19="nominal",LOOKUP($F55,Nominal_to_Real,'Input|Rate of change'!S$27:S$32),INDEX('Input|Rate of change'!$C$14:$O$22,MATCH('Input|Step changes'!$F19,'Input|Rate of change'!$C$14:$C$22,0),MATCH('Calc|Opex forecast'!$F55,'Input|Rate of change'!$C$14:$O$14,0)))*IF('Input|Step changes'!$E19="$millions",1000000,IF('Input|Step changes'!$E19="$000",1000,1))/IF($E55="$millions",1000000,IF($E55="$000",1000,1)) -> 0.02570625 | P55: ='Input|Step changes'!P19*IF('Input|Step changes'!$F19="nominal",LOOKUP($F55,Nominal_to_Real,'Input|Rate of change'!T$27:T$32),INDEX('Input|Rate of change'!$C$14:$O$22,MATCH('Input|Step changes'!$F19,'Input|Rate of change'!$C$14:$C$22,0),MATCH('Calc|Opex forecast'!$F55,'Input|Rate of change'!$C$14:$O$14,0)))*IF('Input|Step changes'!$E19="$millions",1000000,IF('Input|Step changes'!$E19="$000",1000,1))/IF($E55="$millions",1000000,IF($E55="$000",1000,1)) -> 0.3111015625 | Q55: ='Input|Step changes'!Q19*IF('Input|Step changes'!$F19="nominal",LOOKUP($F55,Nominal_to_Real,'Input|Rate of change'!U$27:U$32),INDEX('Input|Rate of change'!$C$14:$O$22,MATCH('Input|Step changes'!$F19,'Input|Rate of change'!$C$14:$C$22,0),MATCH('Calc|Opex forecast'!$F55,'Input|Rate of change'!$C$14:$O$14,0)))*IF('Input|Step changes'!$E19="$millions",1000000,IF('Input|Step changes'!$E19="$000",1000,1))/IF($E55="$millions",1000000,IF($E55="$000",1000,1)) -> 0.7239555906 | R55: ='Input|Step changes'!R19*IF('Input|Step changes'!$F19="nominal",LOOKUP($F55,Nominal_to_Real,'Input|Rate of change'!V$27:V$32),INDEX('Input|Rate of change'!$C$14:$O$22,MATCH('Input|Step changes'!$F19,'Input|Rate of change'!$C$14:$C$22,0),MATCH('Calc|Opex forecast'!$F55,'Input|Rate of change'!$C$14:$O$14,0)))*IF('Input|Step changes'!$E19="$millions",1000000,IF('Input|Step changes'!$E19="$000",1000,1))/IF($E55="$millions",1000000,IF($E55="$000",1000,1)) -> 0.7137268055 | S55: ='Input|Step changes'!S19*IF('Input|Step changes'!$F19="nominal",LOOKUP($F55,Nominal_to_Real,'Input|Rate of change'!W$27:W$32),INDEX('Input|Rate of change'!$C$14:$O$22,MATCH('Input|Step changes'!$F19,'Input|Rate of change'!$C$14:$C$22,0),MATCH('Calc|Opex forecast'!$F55,'Input|Rate of change'!$C$14:$O$14,0)))*IF('Input|Step changes'!$E19="$millions",1000000,IF('Input|Step changes'!$E19="$000",1000,1))/IF($E55="$millions",1000000,IF($E55="$000",1000,1)) -> 0.7040094596
C56: ='Input|Step changes'!C20 -> Introduction of chapter 5A | D56: Calculated | E56: $millions | F56: 2015 | J56: ='Input|Step changes'!J20*IF('Input|Step changes'!$F20="nominal",LOOKUP($F56,Nominal_to_Real,'Input|Rate of change'!N$27:N$32),INDEX('Input|Rate of change'!$C$14:$O$22,MATCH('Input|Step changes'!$F20,'Input|Rate of change'!$C$14:$C$22,0),MATCH('Calc|Opex forecast'!$F56,'Input|Rate of change'!$C$14:$O$14,0)))*IF('Input|Step changes'!$E20="$millions",1000000,IF('Input|Step changes'!$E20="$000",1000,1))/IF($E56="$millions",1000000,IF($E56="$000",1000,1)) -> 0 | K56: ='Input|Step changes'!K20*IF('Input|Step changes'!$F20="nominal",LOOKUP($F56,Nominal_to_Real,'Input|Rate of change'!O$27:O$32),INDEX('Input|Rate of change'!$C$14:$O$22,MATCH('Input|Step changes'!$F20,'Input|Rate of change'!$C$14:$C$22,0),MATCH('Calc|Opex forecast'!$F56,'Input|Rate of change'!$C$14:$O$14,0)))*IF('Input|Step changes'!$E20="$millions",1000000,IF('Input|Step changes'!$E20="$000",1000,1))/IF($E56="$millions",1000000,IF($E56="$000",1000,1)) -> 0 | L56: ='Input|Step changes'!L20*IF('Input|Step changes'!$F20="nominal",LOOKUP($F56,Nominal_to_Real,'Input|Rate of change'!P$27:P$32),INDEX('Input|Rate of change'!$C$14:$O$22,MATCH('Input|Step changes'!$F20,'Input|Rate of change'!$C$14:$C$22,0),MATCH('Calc|Opex forecast'!$F56,'Input|Rate of change'!$C$14:$O$14,0)))*IF('Input|Step changes'!$E20="$millions",1000000,IF('Input|Step changes'!$E20="$000",1000,1))/IF($E56="$millions",1000000,IF($E56="$000",1000,1)) -> 0 | M56: ='Input|Step changes'!M20*IF('Input|Step changes'!$F20="nominal",LOOKUP($F56,Nominal_to_Real,'Input|Rate of change'!Q$27:Q$32),INDEX('Input|Rate of change'!$C$14:$O$22,MATCH('Input|Step changes'!$F20,'Input|Rate of change'!$C$14:$C$22,0),MATCH('Calc|Opex forecast'!$F56,'Input|Rate of change'!$C$14:$O$14,0)))*IF('Input|Step changes'!$E20="$millions",1000000,IF('Input|Step changes'!$E20="$000",1000,1))/IF($E56="$millions",1000000,IF($E56="$000",1000,1)) -> 0 | N56: ='Input|Step changes'!N20*IF('Input|Step changes'!$F20="nominal",LOOKUP($F56,Nominal_to_Real,'Input|Rate of change'!R$27:R$32),INDEX('Input|Rate of change'!$C$14:$O$22,MATCH('Input|Step changes'!$F20,'Input|Rate of change'!$C$14:$C$22,0),MATCH('Calc|Opex forecast'!$F56,'Input|Rate of change'!$C$14:$O$14,0)))*IF('Input|Step changes'!$E20="$millions",1000000,IF('Input|Step changes'!$E20="$000",1000,1))/IF($E56="$millions",1000000,IF($E56="$000",1000,1)) -> 0 | O56: ='Input|Step changes'!O20*IF('Input|Step changes'!$F20="nominal",LOOKUP($F56,Nominal_to_Real,'Input|Rate of change'!S$27:S$32),INDEX('Input|Rate of change'!$C$14:$O$22,MATCH('Input|Step changes'!$F20,'Input|Rate of change'!$C$14:$C$22,0),MATCH('Calc|Opex forecast'!$F56,'Input|Rate of change'!$C$14:$O$14,0)))*IF('Input|Step changes'!$E20="$millions",1000000,IF('Input|Step changes'!$E20="$000",1000,1))/IF($E56="$millions",1000000,IF($E56="$000",1000,1)) -> 0.12925 | P56: ='Input|Step changes'!P20*IF('Input|Step changes'!$F20="nominal",LOOKUP($F56,Nominal_to_Real,'Input|Rate of change'!T$27:T$32),INDEX('Input|Rate of change'!$C$14:$O$22,MATCH('Input|Step changes'!$F20,'Input|Rate of change'!$C$14:$C$22,0),MATCH('Calc|Opex forecast'!$F56,'Input|Rate of change'!$C$14:$O$14,0)))*IF('Input|Step changes'!$E20="$millions",1000000,IF('Input|Step changes'!$E20="$000",1000,1))/IF($E56="$millions",1000000,IF($E56="$000",1000,1)) -> 0.07712757656 | Q56: ='Input|Step changes'!Q20*IF('Input|Step changes'!$F20="nominal",LOOKUP($F56,Nominal_to_Real,'Input|Rate of change'!U$27:U$32),INDEX('Input|Rate of change'!$C$14:$O$22,MATCH('Input|Step changes'!$F20,'Input|Rate of change'!$C$14:$C$22,0),MATCH('Calc|Opex forecast'!$F56,'Input|Rate of change'!$C$14:$O$14,0)))*IF('Input|Step changes'!$E20="$millions",1000000,IF('Input|Step changes'!$E20="$000",1000,1))/IF($E56="$millions",1000000,IF($E56="$000",1000,1)) -> 0.07564582559 | R56: ='Input|Step changes'!R20*IF('Input|Step changes'!$F20="nominal",LOOKUP($F56,Nominal_to_Real,'Input|Rate of change'!V$27:V$32),INDEX('Input|Rate of change'!$C$14:$O$22,MATCH('Input|Step changes'!$F20,'Input|Rate of change'!$C$14:$C$22,0),MATCH('Calc|Opex forecast'!$F56,'Input|Rate of change'!$C$14:$O$14,0)))*IF('Input|Step changes'!$E20="$millions",1000000,IF('Input|Step changes'!$E20="$000",1000,1))/IF($E56="$millions",1000000,IF($E56="$000",1000,1)) -> 0.07624366946 | S56: ='Input|Step changes'!S20*IF('Input|Step changes'!$F20="nominal",LOOKUP($F56,Nominal_to_Real,'Input|Rate of change'!W$27:W$32),INDEX('Input|Rate of change'!$C$14:$O$22,MATCH('Input|Step changes'!$F20,'Input|Rate of change'!$C$14:$C$22,0),MATCH('Calc|Opex forecast'!$F56,'Input|Rate of change'!$C$14:$O$14,0)))*IF('Input|Step changes'!$E20="$millions",1000000,IF('Input|Step changes'!$E20="$000",1000,1))/IF($E56="$millions",1000000,IF($E56="$000",1000,1)) -> 0.07803489232
C57: ='Input|Step changes'!C21 -> 0 | D57: Calculated | E57: $millions | F57: 2015 | J57: ='Input|Step changes'!J21*IF('Input|Step changes'!$F21="nominal",LOOKUP($F57,Nominal_to_Real,'Input|Rate of change'!N$27:N$32),INDEX('Input|Rate of change'!$C$14:$O$22,MATCH('Input|Step changes'!$F21,'Input|Rate of change'!$C$14:$C$22,0),MATCH('Calc|Opex forecast'!$F57,'Input|Rate of change'!$C$14:$O$14,0)))*IF('Input|Step changes'!$E21="$millions",1000000,IF('Input|Step changes'!$E21="$000",1000,1))/IF($E57="$millions",1000000,IF($E57="$000",1000,1)) -> 0 | K57: ='Input|Step changes'!K21*IF('Input|Step changes'!$F21="nominal",LOOKUP($F57,Nominal_to_Real,'Input|Rate of change'!O$27:O$32),INDEX('Input|Rate of change'!$C$14:$O$22,MATCH('Input|Step changes'!$F21,'Input|Rate of change'!$C$14:$C$22,0),MATCH('Calc|Opex forecast'!$F57,'Input|Rate of change'!$C$14:$O$14,0)))*IF('Input|Step changes'!$E21="$millions",1000000,IF('Input|Step changes'!$E21="$000",1000,1))/IF($E57="$millions",1000000,IF($E57="$000",1000,1)) -> 0 | L57: ='Input|Step changes'!L21*IF('Input|Step changes'!$F21="nominal",LOOKUP($F57,Nominal_to_Real,'Input|Rate of change'!P$27:P$32),INDEX('Input|Rate of change'!$C$14:$O$22,MATCH('Input|Step changes'!$F21,'Input|Rate of change'!$C$14:$C$22,0),MATCH('Calc|Opex forecast'!$F57,'Input|Rate of change'!$C$14:$O$14,0)))*IF('Input|Step changes'!$E21="$millions",1000000,IF('Input|Step changes'!$E21="$000",1000,1))/IF($E57="$millions",1000000,IF($E57="$000",1000,1)) -> 0 | M57: ='Input|Step changes'!M21*IF('Input|Step changes'!$F21="nominal",LOOKUP($F57,Nominal_to_Real,'Input|Rate of change'!Q$27:Q$32),INDEX('Input|Rate of change'!$C$14:$O$22,MATCH('Input|Step changes'!$F21,'Input|Rate of change'!$C$14:$C$22,0),MATCH('Calc|Opex forecast'!$F57,'Input|Rate of change'!$C$14:$O$14,0)))*IF('Input|Step changes'!$E21="$millions",1000000,IF('Input|Step changes'!$E21="$000",1000,1))/IF($E57="$millions",1000000,IF($E57="$000",1000,1)) -> 0 | N57: ='Input|Step changes'!N21*IF('Input|Step changes'!$F21="nominal",LOOKUP($F57,Nominal_to_Real,'Input|Rate of change'!R$27:R$32),INDEX('Input|Rate of change'!$C$14:$O$22,MATCH('Input|Step changes'!$F21,'Input|Rate of change'!$C$14:$C$22,0),MATCH('Calc|Opex forecast'!$F57,'Input|Rate of change'!$C$14:$O$14,0)))*IF('Input|Step changes'!$E21="$millions",1000000,IF('Input|Step changes'!$E21="$000",1000,1))/IF($E57="$millions",1000000,IF($E57="$000",1000,1)) -> 0 | O57: ='Input|Step changes'!O21*IF('Input|Step changes'!$F21="nominal",LOOKUP($F57,Nominal_to_Real,'Input|Rate of change'!S$27:S$32),INDEX('Input|Rate of change'!$C$14:$O$22,MATCH('Input|Step changes'!$F21,'Input|Rate of change'!$C$14:$C$22,0),MATCH('Calc|Opex forecast'!$F57,'Input|Rate of change'!$C$14:$O$14,0)))*IF('Input|Step changes'!$E21="$millions",1000000,IF('Input|Step changes'!$E21="$000",1000,1))/IF($E57="$millions",1000000,IF($E57="$000",1000,1)) -> 0 | P57: ='Input|Step changes'!P21*IF('Input|Step changes'!$F21="nominal",LOOKUP($F57,Nominal_to_Real,'Input|Rate of change'!T$27:T$32),INDEX('Input|Rate of change'!$C$14:$O$22,MATCH('Input|Step changes'!$F21,'Input|Rate of change'!$C$14:$C$22,0),MATCH('Calc|Opex forecast'!$F57,'Input|Rate of change'!$C$14:$O$14,0)))*IF('Input|Step changes'!$E21="$millions",1000000,IF('Input|Step changes'!$E21="$000",1000,1))/IF($E57="$millions",1000000,IF($E57="$000",1000,1)) -> 0 | Q57: ='Input|Step changes'!Q21*IF('Input|Step changes'!$F21="nominal",LOOKUP($F57,Nominal_to_Real,'Input|Rate of change'!U$27:U$32),INDEX('Input|Rate of change'!$C$14:$O$22,MATCH('Input|Step changes'!$F21,'Input|Rate of change'!$C$14:$C$22,0),MATCH('Calc|Opex forecast'!$F57,'Input|Rate of change'!$C$14:$O$14,0)))*IF('Input|Step changes'!$E21="$millions",1000000,IF('Input|Step changes'!$E21="$000",1000,1))/IF($E57="$millions",1000000,IF($E57="$000",1000,1)) -> 0 | R57: ='Input|Step changes'!R21*IF('Input|Step changes'!$F21="nominal",LOOKUP($F57,Nominal_to_Real,'Input|Rate of change'!V$27:V$32),INDEX('Input|Rate of change'!$C$14:$O$22,MATCH('Input|Step changes'!$F21,'Input|Rate of change'!$C$14:$C$22,0),MATCH('Calc|Opex forecast'!$F57,'Input|Rate of change'!$C$14:$O$14,0)))*IF('Input|Step changes'!$E21="$millions",1000000,IF('Input|Step changes'!$E21="$000",1000,1))/IF($E57="$millions",1000000,IF($E57="$000",1000,1)) -> 0 | S57: ='Input|Step changes'!S21*IF('Input|Step changes'!$F21="nominal",LOOKUP($F57,Nominal_to_Real,'Input|Rate of change'!W$27:W$32),INDEX('Input|Rate of change'!$C$14:$O$22,MATCH('Input|Step changes'!$F21,'Input|Rate of change'!$C$14:$C$22,0),MATCH('Calc|Opex forecast'!$F57,'Input|Rate of change'!$C$14:$O$14,0)))*IF('Input|Step changes'!$E21="$millions",1000000,IF('Input|Step changes'!$E21="$000",1000,1))/IF($E57="$millions",1000000,IF($E57="$000",1000,1)) -> 0
C58: ='Input|Step changes'!C22 -> 0 | D58: Calculated | E58: $millions | F58: 2015 | J58: ='Input|Step changes'!J22*IF('Input|Step changes'!$F22="nominal",LOOKUP($F58,Nominal_to_Real,'Input|Rate of change'!N$27:N$32),INDEX('Input|Rate of change'!$C$14:$O$22,MATCH('Input|Step changes'!$F22,'Input|Rate of change'!$C$14:$C$22,0),MATCH('Calc|Opex forecast'!$F58,'Input|Rate of change'!$C$14:$O$14,0)))*IF('Input|Step changes'!$E22="$millions",1000000,IF('Input|Step changes'!$E22="$000",1000,1))/IF($E58="$millions",1000000,IF($E58="$000",1000,1)) -> 0 | K58: ='Input|Step changes'!K22*IF('Input|Step changes'!$F22="nominal",LOOKUP($F58,Nominal_to_Real,'Input|Rate of change'!O$27:O$32),INDEX('Input|Rate of change'!$C$14:$O$22,MATCH('Input|Step changes'!$F22,'Input|Rate of change'!$C$14:$C$22,0),MATCH('Calc|Opex forecast'!$F58,'Input|Rate of change'!$C$14:$O$14,0)))*IF('Input|Step changes'!$E22="$millions",1000000,IF('Input|Step changes'!$E22="$000",1000,1))/IF($E58="$millions",1000000,IF($E58="$000",1000,1)) -> 0 | L58: ='Input|Step changes'!L22*IF('Input|Step changes'!$F22="nominal",LOOKUP($F58,Nominal_to_Real,'Input|Rate of change'!P$27:P$32),INDEX('Input|Rate of change'!$C$14:$O$22,MATCH('Input|Step changes'!$F22,'Input|Rate of change'!$C$14:$C$22,0),MATCH('Calc|Opex forecast'!$F58,'Input|Rate of change'!$C$14:$O$14,0)))*IF('Input|Step changes'!$E22="$millions",1000000,IF('Input|Step changes'!$E22="$000",1000,1))/IF($E58="$millions",1000000,IF($E58="$000",1000,1)) -> 0 | M58: ='Input|Step changes'!M22*IF('Input|Step changes'!$F22="nominal",LOOKUP($F58,Nominal_to_Real,'Input|Rate of change'!Q$27:Q$32),INDEX('Input|Rate of change'!$C$14:$O$22,MATCH('Input|Step changes'!$F22,'Input|Rate of change'!$C$14:$C$22,0),MATCH('Calc|Opex forecast'!$F58,'Input|Rate of change'!$C$14:$O$14,0)))*IF('Input|Step changes'!$E22="$millions",1000000,IF('Input|Step changes'!$E22="$000",1000,1))/IF($E58="$millions",1000000,IF($E58="$000",1000,1)) -> 0 | N58: ='Input|Step changes'!N22*IF('Input|Step changes'!$F22="nominal",LOOKUP($F58,Nominal_to_Real,'Input|Rate of change'!R$27:R$32),INDEX('Input|Rate of change'!$C$14:$O$22,MATCH('Input|Step changes'!$F22,'Input|Rate of change'!$C$14:$C$22,0),MATCH('Calc|Opex forecast'!$F58,'Input|Rate of change'!$C$14:$O$14,0)))*IF('Input|Step changes'!$E22="$millions",1000000,IF('Input|Step changes'!$E22="$000",1000,1))/IF($E58="$millions",1000000,IF($E58="$000",1000,1)) -> 0 | O58: ='Input|Step changes'!O22*IF('Input|Step changes'!$F22="nominal",LOOKUP($F58,Nominal_to_Real,'Input|Rate of change'!S$27:S$32),INDEX('Input|Rate of change'!$C$14:$O$22,MATCH('Input|Step changes'!$F22,'Input|Rate of change'!$C$14:$C$22,0),MATCH('Calc|Opex forecast'!$F58,'Input|Rate of change'!$C$14:$O$14,0)))*IF('Input|Step changes'!$E22="$millions",1000000,IF('Input|Step changes'!$E22="$000",1000,1))/IF($E58="$millions",1000000,IF($E58="$000",1000,1)) -> 0 | P58: ='Input|Step changes'!P22*IF('Input|Step changes'!$F22="nominal",LOOKUP($F58,Nominal_to_Real,'Input|Rate of change'!T$27:T$32),INDEX('Input|Rate of change'!$C$14:$O$22,MATCH('Input|Step changes'!$F22,'Input|Rate of change'!$C$14:$C$22,0),MATCH('Calc|Opex forecast'!$F58,'Input|Rate of change'!$C$14:$O$14,0)))*IF('Input|Step changes'!$E22="$millions",1000000,IF('Input|Step changes'!$E22="$000",1000,1))/IF($E58="$millions",1000000,IF($E58="$000",1000,1)) -> 0 | Q58: ='Input|Step changes'!Q22*IF('Input|Step changes'!$F22="nominal",LOOKUP($F58,Nominal_to_Real,'Input|Rate of change'!U$27:U$32),INDEX('Input|Rate of change'!$C$14:$O$22,MATCH('Input|Step changes'!$F22,'Input|Rate of change'!$C$14:$C$22,0),MATCH('Calc|Opex forecast'!$F58,'Input|Rate of change'!$C$14:$O$14,0)))*IF('Input|Step changes'!$E22="$millions",1000000,IF('Input|Step changes'!$E22="$000",1000,1))/IF($E58="$millions",1000000,IF($E58="$000",1000,1)) -> 0 | R58: ='Input|Step changes'!R22*IF('Input|Step changes'!$F22="nominal",LOOKUP($F58,Nominal_to_Real,'Input|Rate of change'!V$27:V$32),INDEX('Input|Rate of change'!$C$14:$O$22,MATCH('Input|Step changes'!$F22,'Input|Rate of change'!$C$14:$C$22,0),MATCH('Calc|Opex forecast'!$F58,'Input|Rate of change'!$C$14:$O$14,0)))*IF('Input|Step changes'!$E22="$millions",1000000,IF('Input|Step changes'!$E22="$000",1000,1))/IF($E58="$millions",1000000,IF($E58="$000",1000,1)) -> 0 | S58: ='Input|Step changes'!S22*IF('Input|Step changes'!$F22="nominal",LOOKUP($F58,Nominal_to_Real,'Input|Rate of change'!W$27:W$32),INDEX('Input|Rate of change'!$C$14:$O$22,MATCH('Input|Step changes'!$F22,'Input|Rate of change'!$C$14:$C$22,0),MATCH('Calc|Opex forecast'!$F58,'Input|Rate of change'!$C$14:$O$14,0)))*IF('Input|Step changes'!$E22="$millions",1000000,IF('Input|Step changes'!$E22="$000",1000,1))/IF($E58="$millions",1000000,IF($E58="$000",1000,1)) -> 0
C59: ='Input|Step changes'!C23 -> 0 | D59: Calculated | E59: $millions | F59: 2015 | J59: ='Input|Step changes'!J23*IF('Input|Step changes'!$F23="nominal",LOOKUP($F59,Nominal_to_Real,'Input|Rate of change'!N$27:N$32),INDEX('Input|Rate of change'!$C$14:$O$22,MATCH('Input|Step changes'!$F23,'Input|Rate of change'!$C$14:$C$22,0),MATCH('Calc|Opex forecast'!$F59,'Input|Rate of change'!$C$14:$O$14,0)))*IF('Input|Step changes'!$E23="$millions",1000000,IF('Input|Step changes'!$E23="$000",1000,1))/IF($E59="$millions",1000000,IF($E59="$000",1000,1)) -> 0 | K59: ='Input|Step changes'!K23*IF('Input|Step changes'!$F23="nominal",LOOKUP($F59,Nominal_to_Real,'Input|Rate of change'!O$27:O$32),INDEX('Input|Rate of change'!$C$14:$O$22,MATCH('Input|Step changes'!$F23,'Input|Rate of change'!$C$14:$C$22,0),MATCH('Calc|Opex forecast'!$F59,'Input|Rate of change'!$C$14:$O$14,0)))*IF('Input|Step changes'!$E23="$millions",1000000,IF('Input|Step changes'!$E23="$000",1000,1))/IF($E59="$millions",1000000,IF($E59="$000",1000,1)) -> 0 | L59: ='Input|Step changes'!L23*IF('Input|Step changes'!$F23="nominal",LOOKUP($F59,Nominal_to_Real,'Input|Rate of change'!P$27:P$32),INDEX('Input|Rate of change'!$C$14:$O$22,MATCH('Input|Step changes'!$F23,'Input|Rate of change'!$C$14:$C$22,0),MATCH('Calc|Opex forecast'!$F59,'Input|Rate of change'!$C$14:$O$14,0)))*IF('Input|Step changes'!$E23="$millions",1000000,IF('Input|Step changes'!$E23="$000",1000,1))/IF($E59="$millions",1000000,IF($E59="$000",1000,1)) -> 0 | M59: ='Input|Step changes'!M23*IF('Input|Step changes'!$F23="nominal",LOOKUP($F59,Nominal_to_Real,'Input|Rate of change'!Q$27:Q$32),INDEX('Input|Rate of change'!$C$14:$O$22,MATCH('Input|Step changes'!$F23,'Input|Rate of change'!$C$14:$C$22,0),MATCH('Calc|Opex forecast'!$F59,'Input|Rate of change'!$C$14:$O$14,0)))*IF('Input|Step changes'!$E23="$millions",1000000,IF('Input|Step changes'!$E23="$000",1000,1))/IF($E59="$millions",1000000,IF($E59="$000",1000,1)) -> 0 | N59: ='Input|Step changes'!N23*IF('Input|Step changes'!$F23="nominal",LOOKUP($F59,Nominal_to_Real,'Input|Rate of change'!R$27:R$32),INDEX('Input|Rate of change'!$C$14:$O$22,MATCH('Input|Step changes'!$F23,'Input|Rate of change'!$C$14:$C$22,0),MATCH('Calc|Opex forecast'!$F59,'Input|Rate of change'!$C$14:$O$14,0)))*IF('Input|Step changes'!$E23="$millions",1000000,IF('Input|Step changes'!$E23="$000",1000,1))/IF($E59="$millions",1000000,IF($E59="$000",1000,1)) -> 0 | O59: ='Input|Step changes'!O23*IF('Input|Step changes'!$F23="nominal",LOOKUP($F59,Nominal_to_Real,'Input|Rate of change'!S$27:S$32),INDEX('Input|Rate of change'!$C$14:$O$22,MATCH('Input|Step changes'!$F23,'Input|Rate of change'!$C$14:$C$22,0),MATCH('Calc|Opex forecast'!$F59,'Input|Rate of change'!$C$14:$O$14,0)))*IF('Input|Step changes'!$E23="$millions",1000000,IF('Input|Step changes'!$E23="$000",1000,1))/IF($E59="$millions",1000000,IF($E59="$000",1000,1)) -> 0 | P59: ='Input|Step changes'!P23*IF('Input|Step changes'!$F23="nominal",LOOKUP($F59,Nominal_to_Real,'Input|Rate of change'!T$27:T$32),INDEX('Input|Rate of change'!$C$14:$O$22,MATCH('Input|Step changes'!$F23,'Input|Rate of change'!$C$14:$C$22,0),MATCH('Calc|Opex forecast'!$F59,'Input|Rate of change'!$C$14:$O$14,0)))*IF('Input|Step changes'!$E23="$millions",1000000,IF('Input|Step changes'!$E23="$000",1000,1))/IF($E59="$millions",1000000,IF($E59="$000",1000,1)) -> 0 | Q59: ='Input|Step changes'!Q23*IF('Input|Step changes'!$F23="nominal",LOOKUP($F59,Nominal_to_Real,'Input|Rate of change'!U$27:U$32),INDEX('Input|Rate of change'!$C$14:$O$22,MATCH('Input|Step changes'!$F23,'Input|Rate of change'!$C$14:$C$22,0),MATCH('Calc|Opex forecast'!$F59,'Input|Rate of change'!$C$14:$O$14,0)))*IF('Input|Step changes'!$E23="$millions",1000000,IF('Input|Step changes'!$E23="$000",1000,1))/IF($E59="$millions",1000000,IF($E59="$000",1000,1)) -> 0 | R59: ='Input|Step changes'!R23*IF('Input|Step changes'!$F23="nominal",LOOKUP($F59,Nominal_to_Real,'Input|Rate of change'!V$27:V$32),INDEX('Input|Rate of change'!$C$14:$O$22,MATCH('Input|Step changes'!$F23,'Input|Rate of change'!$C$14:$C$22,0),MATCH('Calc|Opex forecast'!$F59,'Input|Rate of change'!$C$14:$O$14,0)))*IF('Input|Step changes'!$E23="$millions",1000000,IF('Input|Step changes'!$E23="$000",1000,1))/IF($E59="$millions",1000000,IF($E59="$000",1000,1)) -> 0 | S59: ='Input|Step changes'!S23*IF('Input|Step changes'!$F23="nominal",LOOKUP($F59,Nominal_to_Real,'Input|Rate of change'!W$27:W$32),INDEX('Input|Rate of change'!$C$14:$O$22,MATCH('Input|Step changes'!$F23,'Input|Rate of change'!$C$14:$C$22,0),MATCH('Calc|Opex forecast'!$F59,'Input|Rate of change'!$C$14:$O$14,0)))*IF('Input|Step changes'!$E23="$millions",1000000,IF('Input|Step changes'!$E23="$000",1000,1))/IF($E59="$millions",1000000,IF($E59="$000",1000,1)) -> 0
C61: Total step changes | D61: Calculated | E61: =$E$8 -> $millions | F61: =$F$8 -> 2015 | J61: =SUM(J48:J60) -> 0 | K61: =SUM(K48:K60) -> 0 | L61: 0 | M61: 0 | N61: 0 | O61: =SUM(O48:O60) -> 1.995112945 | P61: 1.980482964 | Q61: 3.119150769 | R61: 2.859292178 | S61: 3.127098293
B63: Calc | Total forecast operating expenditure
J65: =IF(RIGHT(J$4,2)>=RIGHT('Input|General'!$G$9,2),IF(RIGHT(J$4,2)<=RIGHT('Input|General'!$G$12,2),J$4,""),"") ->  | K65: =IF(RIGHT(K$4,2)>=RIGHT('Input|General'!$G$9,2),IF(RIGHT(K$4,2)<=RIGHT('Input|General'!$G$12,2),K$4,""),"") ->  | L65: =IF(RIGHT(L$4,2)>=RIGHT('Input|General'!$G$9,2),IF(RIGHT(L$4,2)<=RIGHT('Input|General'!$G$12,2),L$4,""),"") ->  | M65: =IF(RIGHT(M$4,2)>=RIGHT('Input|General'!$G$9,2),IF(RIGHT(M$4,2)<=RIGHT('Input|General'!$G$12,2),M$4,""),"") -> 2014 | N65: =IF(RIGHT(N$4,2)>=RIGHT('Input|General'!$G$9,2),IF(RIGHT(N$4,2)<=RIGHT('Input|General'!$G$12,2),N$4,""),"") -> 2015 | O65: =IF(RIGHT(O$4,2)>=RIGHT('Input|General'!$G$9,2),IF(RIGHT(O$4,2)<=RIGHT('Input|General'!$G$12,2),O$4,""),"") -> 2016 | P65: =IF(RIGHT(P$4,2)>=RIGHT('Input|General'!$G$9,2),IF(RIGHT(P$4,2)<=RIGHT('Input|General'!$G$12,2),P$4,""),"") -> 2017 | Q65: =IF(RIGHT(Q$4,2)>=RIGHT('Input|General'!$G$9,2),IF(RIGHT(Q$4,2)<=RIGHT('Input|General'!$G$12,2),Q$4,""),"") -> 2018 | R65: =IF(RIGHT(R$4,2)>=RIGHT('Input|General'!$G$9,2),IF(RIGHT(R$4,2)<=RIGHT('Input|General'!$G$12,2),R$4,""),"") -> 2019 | S65: =IF(RIGHT(S$4,2)>=RIGHT('Input|General'!$G$9,2),IF(RIGHT(S$4,2)<=RIGHT('Input|General'!$G$12,2),S$4,""),"") -> 2020
C67: Total forecast opex, excluding debt raising costs | D67: Calculated | E67: =$E$8 -> $millions | F67: =$F$8 -> 2015 | J67: =J13 -> 0 | K67: 0 | L67: 0 | M67: =M13 -> 57.38517983 | N67: =N19 -> 58.18094817 | O67: =IF(O$4>='Input|General'!$G$11,IF(O$4<='Input|General'!$G$12,IF(ISBLANK(O65),"",PRODUCT(1+$J42:O42)*SUM($J29:$S29)+O61),""),"") -> 81.58665417 | P67: =IF(P$4>='Input|General'!$G$11,IF(P$4<='Input|General'!$G$12,IF(ISBLANK(P65),"",PRODUCT(1+$J42:P42)*SUM($J29:$S29)+P61),""),"") -> 82.72761301 | Q67: =IF(Q$4>='Input|General'!$G$11,IF(Q$4<='Input|General'!$G$12,IF(ISBLANK(Q65),"",PRODUCT(1+$J42:Q42)*SUM($J29:$S29)+Q61),""),"") -> 85.81703607 | R67: =IF(R$4>='Input|General'!$G$11,IF(R$4<='Input|General'!$G$12,IF(ISBLANK(R65),"",PRODUCT(1+$J42:R42)*SUM($J29:$S29)+R61),""),"") -> 87.24961811 | S67: =IF(S$4>='Input|General'!$G$11,IF(S$4<='Input|General'!$G$12,IF(ISBLANK(S65),"",PRODUCT(1+$J42:S42)*SUM($J29:$S29)+S61),""),"") -> 89.25155313
C68: Total forecast opex, including debt raising costs | D68: Calculated | E68: =$E$8 -> $millions | F68: =$F$8 -> 2015 | O68: =O67+'Input|Step changes'!O29 -> 82.48192461 | P68: =P67+'Input|Step changes'!P29 -> 83.65713568 | Q68: =Q67+'Input|Step changes'!Q29 -> 86.79408176 | R68: =R67+'Input|Step changes'!R29 -> 88.26054991 | S68: =S67+'Input|Step changes'!S29 -> 90.28095484
B70: End

Sheet Output|Models
B1: =Index!$B$1 -> AER opex model | J1: Back to Index | L1: Key: | M1: Input | N1: External Link | O1: Internal Link | R1: Worksheet check: | S1: =IF(COUNTA($W$14:$W$471)=COUNTIF($W$14:$W$471,"OK"),"OK","Check") -> OK | U1: Overall Check: | V1: ='Check|List'!$S$1 -> Ok
B2: =Index!$C$13 -> Output | Models
D4: Source | E4: Unit | F4: Basis | J4: ='Input|General'!$G$8 -> 2011 | K4: =IF(OFFSET('Lookup|Tables'!$G$28:$G$43,MATCH('Input|General'!$G$8,'Lookup|Tables'!$G$28:$G$42,0)+1,0,1,1)<='Input|General'!$G$12,OFFSET('Lookup|Tables'!$G$28:$G$43,MATCH('Input|General'!$G$8,'Lookup|Tables'!$G$28:$G$42,0),0,1,1),"") -> 2012 | L4: =IF(OFFSET('Lookup|Tables'!$G$28:$G$43,MATCH('Input|General'!$G$8,'Lookup|Tables'!$G$28:$G$42,0)+1,0,1,1)<='Input|General'!$G$12,OFFSET('Lookup|Tables'!$G$28:$G$43,MATCH('Input|General'!$G$8,'Lookup|Tables'!$G$28:$G$42,0)+1,0,1,1),"") -> 2013 | M4: =IF(OFFSET('Lookup|Tables'!$G$28:$G$43,MATCH('Input|General'!$G$8,'Lookup|Tables'!$G$28:$G$42,0)+2,0,1,1)<='Input|General'!$G$12,OFFSET('Lookup|Tables'!$G$28:$G$43,MATCH('Input|General'!$G$8,'Lookup|Tables'!$G$28:$G$42,0)+2,0,1,1),"") -> 2014 | N4: =IF(OFFSET('Lookup|Tables'!$G$28:$G$43,MATCH('Input|General'!$G$8,'Lookup|Tables'!$G$28:$G$42,0)+3,0,1,1)<='Input|General'!$G$12,OFFSET('Lookup|Tables'!$G$28:$G$43,MATCH('Input|General'!$G$8,'Lookup|Tables'!$G$28:$G$42,0)+3,0,1,1),"") -> 2015 | O4: =IF(OFFSET('Lookup|Tables'!$G$28:$G$43,MATCH('Input|General'!$G$8,'Lookup|Tables'!$G$28:$G$42,0)+4,0,1,1)<='Input|General'!$G$12,OFFSET('Lookup|Tables'!$G$28:$G$43,MATCH('Input|General'!$G$8,'Lookup|Tables'!$G$28:$G$42,0)+4,0,1,1),"") -> 2016 | P4: =IF(OFFSET('Lookup|Tables'!$G$28:$G$43,MATCH('Input|General'!$G$8,'Lookup|Tables'!$G$28:$G$42,0)+5,0,1,1)<='Input|General'!$G$12,OFFSET('Lookup|Tables'!$G$28:$G$43,MATCH('Input|General'!$G$8,'Lookup|Tables'!$G$28:$G$42,0)+5,0,1,1),"") -> 2017 | Q4: =IF(OFFSET('Lookup|Tables'!$G$28:$G$43,MATCH('Input|General'!$G$8,'Lookup|Tables'!$G$28:$G$42,0)+6,0,1,1)<='Input|General'!$G$12,OFFSET('Lookup|Tables'!$G$28:$G$43,MATCH('Input|General'!$G$8,'Lookup|Tables'!$G$28:$G$42,0)+6,0,1,1),"") -> 2018 | R4: =IF(OFFSET('Lookup|Tables'!$G$28:$G$43,MATCH('Input|General'!$G$8,'Lookup|Tables'!$G$28:$G$42,0)+7,0,1,1)<='Input|General'!$G$12,OFFSET('Lookup|Tables'!$G$28:$G$43,MATCH('Input|General'!$G$8,'Lookup|Tables'!$G$28:$G$42,0)+7,0,1,1),"") -> 2019 | S4: =IF(OFFSET('Lookup|Tables'!$G$28:$G$43,MATCH('Input|General'!$G$8,'Lookup|Tables'!$G$28:$G$42,0)+8,0,1,1)<='Input|General'!$G$12,OFFSET('Lookup|Tables'!$G$28:$G$43,MATCH('Input|General'!$G$8,'Lookup|Tables'!$G$28:$G$42,0)+8,0,1,1),"") -> 2020
B8: Inputs for Post Tax Revenue Model | E8: $millions | F8: 2015 | J8: Note. The dollar base should be consistent with the post tax revenue model
C11: Operating expenditure | D11: Source | E11: Unit | F11: Basis | J11: =IF(RIGHT(J$4,2)>=RIGHT('Input|General'!$G$11,2),IF(RIGHT(J$4,2)<=RIGHT('Input|General'!$G$12,2),J$4,""),"") ->  | K11: =IF(RIGHT(K$4,2)>=RIGHT('Input|General'!$G$11,2),IF(RIGHT(K$4,2)<=RIGHT('Input|General'!$G$12,2),K$4,""),"") ->  | L11: =IF(RIGHT(L$4,2)>=RIGHT('Input|General'!$G$11,2),IF(RIGHT(L$4,2)<=RIGHT('Input|General'!$G$12,2),L$4,""),"") ->  | M11: =IF(RIGHT(M$4,2)>=RIGHT('Input|General'!$G$11,2),IF(RIGHT(M$4,2)<=RIGHT('Input|General'!$G$12,2),M$4,""),"") ->  | N11: =IF(RIGHT(N$4,2)>=RIGHT('Input|General'!$G$11,2),IF(RIGHT(N$4,2)<=RIGHT('Input|General'!$G$12,2),N$4,""),"") ->  | O11: =IF(RIGHT(O$4,2)>=RIGHT('Input|General'!$G$11,2),IF(RIGHT(O$4,2)<=RIGHT('Input|General'!$G$12,2),O$4,""),"") -> 2016 | P11: =IF(RIGHT(P$4,2)>=RIGHT('Input|General'!$G$11,2),IF(RIGHT(P$4,2)<=RIGHT('Input|General'!$G$12,2),P$4,""),"") -> 2017 | Q11: =IF(RIGHT(Q$4,2)>=RIGHT('Input|General'!$G$11,2),IF(RIGHT(Q$4,2)<=RIGHT('Input|General'!$G$12,2),Q$4,""),"") -> 2018 | R11: =IF(RIGHT(R$4,2)>=RIGHT('Input|General'!$G$11,2),IF(RIGHT(R$4,2)<=RIGHT('Input|General'!$G$12,2),R$4,""),"") -> 2019 | S11: =IF(RIGHT(S$4,2)>=RIGHT('Input|General'!$G$11,2),IF(RIGHT(S$4,2)<=RIGHT('Input|General'!$G$12,2),S$4,""),"") -> 2020 | U11: Notes
C12: Forecast operating expenditure (excl. DRC) | D12: Calc | Opex forecast | E12: =$E$8 -> $millions | F12: =$F$8 -> 2015 | J12: =IF(J11="",0,'Calc|Opex forecast'!J67*IF('Calc|Opex forecast'!$F$67="nominal",LOOKUP($F12,Nominal_to_Real,'Input|Rate of change'!P$27:P$32),INDEX('Input|Rate of change'!$C$14:$O$22,MATCH('Calc|Opex forecast'!$F$67,'Input|Rate of change'!$C$14:$C$22,0),MATCH('Output|Models'!$F12,'Input|Rate of change'!$C$14:$O$14,0)))*IF('Calc|Opex forecast'!$E$67="$millions",1000000,IF('Output|Models'!B47="$000",1000,1))/IF($E12="$millions",1000000,IF($E12="$000",1000,1))) -> 0 | K12: =IF(K11="",0,'Calc|Opex forecast'!K67*IF('Calc|Opex forecast'!$F$67="nominal",LOOKUP($F12,Nominal_to_Real,'Input|Rate of change'!Q$27:Q$32),INDEX('Input|Rate of change'!$C$14:$O$22,MATCH('Calc|Opex forecast'!$F$67,'Input|Rate of change'!$C$14:$C$22,0),MATCH('Output|Models'!$F12,'Input|Rate of change'!$C$14:$O$14,0)))*IF('Calc|Opex forecast'!$E$67="$millions",1000000,IF('Output|Models'!C47="$000",1000,1))/IF($E12="$millions",1000000,IF($E12="$000",1000,1))) -> 0 | L12: =IF(L11="",0,'Calc|Opex forecast'!L67*IF('Calc|Opex forecast'!$F$67="nominal",LOOKUP($F12,Nominal_to_Real,'Input|Rate of change'!R$27:R$32),INDEX('Input|Rate of change'!$C$14:$O$22,MATCH('Calc|Opex forecast'!$F$67,'Input|Rate of change'!$C$14:$C$22,0),MATCH('Output|Models'!$F12,'Input|Rate of change'!$C$14:$O$14,0)))*IF('Calc|Opex forecast'!$E$67="$millions",1000000,IF('Output|Models'!D47="$000",1000,1))/IF($E12="$millions",1000000,IF($E12="$000",1000,1))) -> 0 | M12: =IF(M11="",0,'Calc|Opex forecast'!M67*IF('Calc|Opex forecast'!$F$67="nominal",LOOKUP($F12,Nominal_to_Real,'Input|Rate of change'!S$27:S$32),INDEX('Input|Rate of change'!$C$14:$O$22,MATCH('Calc|Opex forecast'!$F$67,'Input|Rate of change'!$C$14:$C$22,0),MATCH('Output|Models'!$F12,'Input|Rate of change'!$C$14:$O$14,0)))*IF('Calc|Opex forecast'!$E$67="$millions",1000000,IF('Output|Models'!E47="$000",1000,1))/IF($E12="$millions",1000000,IF($E12="$000",1000,1))) -> 0 | N12: =IF(N11="",0,'Calc|Opex forecast'!N67*IF('Calc|Opex forecast'!$F$67="nominal",LOOKUP($F12,Nominal_to_Real,'Input|Rate of change'!T$27:T$32),INDEX('Input|Rate of change'!$C$14:$O$22,MATCH('Calc|Opex forecast'!$F$67,'Input|Rate of change'!$C$14:$C$22,0),MATCH('Output|Models'!$F12,'Input|Rate of change'!$C$14:$O$14,0)))*IF('Calc|Opex forecast'!$E$67="$millions",1000000,IF('Output|Models'!F47="$000",1000,1))/IF($E12="$millions",1000000,IF($E12="$000",1000,1))) -> 0 | O12: =IF(O11="",0,'Calc|Opex forecast'!O67*IF('Calc|Opex forecast'!$F$67="nominal",LOOKUP($F12,Nominal_to_Real,'Input|Rate of change'!U$27:U$32),INDEX('Input|Rate of change'!$C$14:$O$22,MATCH('Calc|Opex forecast'!$F$67,'Input|Rate of change'!$C$14:$C$22,0),MATCH('Output|Models'!$F12,'Input|Rate of change'!$C$14:$O$14,0)))*IF('Calc|Opex forecast'!$E$67="$millions",1000000,IF('Output|Models'!G47="$000",1000,1))/IF($E12="$millions",1000000,IF($E12="$000",1000,1))) -> 81.58665417 | P12: =IF(P11="",0,'Calc|Opex forecast'!P67*IF('Calc|Opex forecast'!$F$67="nominal",LOOKUP($F12,Nominal_to_Real,'Input|Rate of change'!V$27:V$32),INDEX('Input|Rate of change'!$C$14:$O$22,MATCH('Calc|Opex forecast'!$F$67,'Input|Rate of change'!$C$14:$C$22,0),MATCH('Output|Models'!$F12,'Input|Rate of change'!$C$14:$O$14,0)))*IF('Calc|Opex forecast'!$E$67="$millions",1000000,IF('Output|Models'!H47="$000",1000,1))/IF($E12="$millions",1000000,IF($E12="$000",1000,1))) -> 82.72761301 | Q12: =IF(Q11="",0,'Calc|Opex forecast'!Q67*IF('Calc|Opex forecast'!$F$67="nominal",LOOKUP($F12,Nominal_to_Real,'Input|Rate of change'!W$27:W$32),INDEX('Input|Rate of change'!$C$14:$O$22,MATCH('Calc|Opex forecast'!$F$67,'Input|Rate of change'!$C$14:$C$22,0),MATCH('Output|Models'!$F12,'Input|Rate of change'!$C$14:$O$14,0)))*IF('Calc|Opex forecast'!$E$67="$millions",1000000,IF('Output|Models'!I47="$000",1000,1))/IF($E12="$millions",1000000,IF($E12="$000",1000,1))) -> 85.81703607 | R12: =IF(R11="",0,'Calc|Opex forecast'!R67*IF('Calc|Opex forecast'!$F$67="nominal",LOOKUP($F12,Nominal_to_Real,'Input|Rate of change'!X$27:X$32),INDEX('Input|Rate of change'!$C$14:$O$22,MATCH('Calc|Opex forecast'!$F$67,'Input|Rate of change'!$C$14:$C$22,0),MATCH('Output|Models'!$F12,'Input|Rate of change'!$C$14:$O$14,0)))*IF('Calc|Opex forecast'!$E$67="$millions",1000000,IF('Output|Models'!J47="$000",1000,1))/IF($E12="$millions",1000000,IF($E12="$000",1000,1))) -> 87.24961811 | S12: =IF(S11="",0,'Calc|Opex forecast'!S67*IF('Calc|Opex forecast'!$F$67="nominal",LOOKUP($F12,Nominal_to_Real,'Input|Rate of change'!Y$27:Y$32),INDEX('Input|Rate of change'!$C$14:$O$22,MATCH('Calc|Opex forecast'!$F$67,'Input|Rate of change'!$C$14:$C$22,0),MATCH('Output|Models'!$F12,'Input|Rate of change'!$C$14:$O$14,0)))*IF('Calc|Opex forecast'!$E$67="$millions",1000000,IF('Output|Models'!K47="$000",1000,1))/IF($E12="$millions",1000000,IF($E12="$000",1000,1))) -> 89.25155313
S13: =SUM(O12:S12) -> 426.6324745
B15: End

Sheet Lookup|Tables
B1: =Index!$B$1 -> AER opex model | J1: Back to Index | L1: Key: | M1: Input | N1: External Link | O1: Internal Link | U1: Overall Check: | V1: ='Check|List'!$S$1 -> Ok
B2: =Index!$C$14 -> Lookup | Tables
B7: Unit Denominations
C9: =B7 -> Unit Denominations | D9: Source | G9: Ref
C10: Dollars | D10: AER | G10: $dollars
C11: Thousands | D11: AER | G11: $000
C12: Millions | D12: AER | G12: $millions
C14: Percent | D14: AER | G14: Per cent
C15: Unit | D15: AER | G15: unit
C16: Number | D16: AER | G16: number
C17: Factor | D17: AER | G17: factor
C19: Actual | D19: AER | G19: Actual
C20: Estimate | D20: AER | G20: Estimate
B22: Years
C24: =B22 -> Years | D24: Source | G24: Ref
C25: nominal | D25: AER | G25: nominal
C26: =G26 -> 2008 | D26: AER | G26: 2008
C27: =G27 -> 2009 | D27: AER | G27: 2009
C28: 2010 | D28: AER | G28: 2010
C29: 2011 | D29: AER | G29: 2011
C30: 2012 | D30: AER | G30: 2012
C31: 2013 | D31: AER | G31: 2013
C32: 2014 | D32: AER | G32: 2014
C33: 2015 | D33: AER | G33: 2015
C34: 2016 | D34: AER | G34: 2016
C35: 2017 | D35: AER | G35: 2017
C36: 2018 | D36: AER | G36: 2018
C37: 2019 | D37: AER | G37: 2019
C38: 2020 | D38: AER | G38: 2020
C39: 2021 | D39: AER | G39: 2021
C40: 2022 | D40: AER | G40: 2022
C41: 2023 | D41: AER | G41: 2023
C42: 2024 | D42: AER | G42: 2024
B44: End

Sheet Check|List
B1: =Index!$B$1 -> AER opex model | J1: Back to Index | L1: Key: | M1: Input | N1: External Link | O1: Internal Link | R1: Overall Check: | S1: =IF(COUNTIF(G10:G15,"Check")=0,"Ok","Check") -> Ok
B2: =Index!$C$15 -> Check | List
B7: Check List
C9: Sheet | D9: Source | E9: Unit | G9: Status
C10: =Index!C7 -> Input | General | D10: =C10 -> Input | General | E10: Ok/Check | G10: ='Input|General'!S1 -> OK
C11: =Index!C9 -> Input | Reported opex | D11: =C11 -> Input | Reported opex | E11: Ok/Check | G11: ='Input|Reported opex'!S1 -> OK
C12: =Index!C10 -> Input | Rate of change | D12: Input | Rate of change | E12: Ok/Check | G12: ='Input|Rate of change'!T1 -> Ok
C13: =Index!C11 -> Input | Step changes | D13: Input | Step changes | E13: Ok/Check | G13: ='Input|Step changes'!S1 -> OK
C14: =Index!C12 -> Calc | Opex Forecast | D14: Calc | Opex Forecast | E14: Ok/Check | G14: ='Calc|Opex forecast'!S1 -> n/a
C15: =Index!C13 -> Output | Models | D15: Output | Models | E15: Ok/Check | G15: ='Output|Models'!S1 -> OK
B17: End
